Workbook

Sheet RESUMO
A2: PLANILHA ORÇAMENTÁRIA RESUMO
A3: OBRA: | B3: PROJETOS DE MODIFICAÇÃO, EXTENSÃO DE REDE E ILUMINAÇÃO PÚBLICA | F3: BDI: | H3: (com desoneração)
A4: LOCAL: | B4: DIVERSOS - MUNICIPIO DE PATOS DE MINAS | D4: ART: | H4: (sem desoneração)
A5: REFERÊNCIA: | B5: PREÇOS DE MERCADO | D5: DATA: | E5: 2020-02-04 | F5: =IF(H5=1,'PLAN. BDI.IMP'!D45,'PLAN. BDI.IMP'!D40) -> 0.3156 | H5: 1
A7: ITEM | B7: Descrição | C7: BAIRRO | D7: REFERÊNCIA | E7: VALOR TOTAL
E8: SEM BDI | F8: COM BDI
A9: 1 | B9: Rua Laumar da Rocha Filgueira (extensão) | C9: JARDIM RECANTO | D9: CVCTEC_PMINAS_77 | E9: ='CVCTEC-77'!F52 -> 15998.86 | F9: ='CVCTEC-77'!H52 -> 21047.85
A10: 2 | B10: Avenida A (extensão) | C10: JARDIM PANORÂMICO | D10: CVCTEC_PMINAS_79 | E10: ='CVCTEC-79'!F61 -> 29475.75 | F10: ='CVCTEC-79'!H61 -> 38777.82
A11: 3 | B11: Av Arthur Magalhães (modificação de rede para duplicação) | C11: NOVA FLORESTA | D11: CVCTEC_PMINAS_80 | E11: ='CVCTEC-80'!F128 -> 84732.42 | F11: ='CVCTEC-80'!H128 -> 111473.99
A12: 4 | B12: Av dos Buritis (modificação de rede para duplicação) | C12: ALTO DA COLINA | D12: CVCTEC_PMINAS_83 | E12: ='CVCTEC-83'!F123 -> 92158.04 | F12: ='CVCTEC-83'!H123 -> 121244.7
A13: 5 | B13: Rua Sagitário (melhoria de rede) | C13: JARDIM PELUZZO | D13: CVCTEC_PMINAS_84 | E13: ='CVCTEC-84'!F90 -> 22070.53 | F13: ='CVCTEC-84'!H90 -> 29036.55
A14: 6 | B14: Praça Frei Ildeu (iluminação) | C14: SEBASTIÃO AMORIM | D14: PMPATOS_004DR | E14: =PMPATOS_004DR!F39 -> 36069.68 | F14: =PMPATOS_004DR!H39 -> 47449.87
A15: 7 | B15: Praça José de Brito (iluminação) | C15: JARDIM PELUZZO | D15: PMPATOS_005DR | E15: =PMPATOS_005DR!F40 -> 37121.09 | F15: =PMPATOS_005DR!H40 -> 48834.11
A16: TOTAL | E16: =SUM(E9:E15) -> 317626.37 | F16: =SUM(F9:G15) -> 417864.89
B18: Patos de Minas, | C18: =CONCATENATE(DAY(E5)," de ",TEXT(MONTH(E5)*29,"mmmm")," de ",YEAR(E5)) -> 4 de fevereiro de 2020
B20: _______________________________________________________
B21: Diogo Soares Resende
B22: Eng. Eletricista
B23: CREA: 194.419D/MG

Sheet TAB.REF
A1: VALORES DE REFERÊNCIA
A2: CÓDIGO | B2: DESCRIÇÃO | C2: UNIDADE | D2: PREÇO
A3: 114 | B3: LUMINARIA LED POTÊNCIA ATÉ 114W FLUXO LUMINOSO APROXIMADO 13.100lm EFICIENCIA LUMINOSA ≥ 115lm/w | C3: PC | D3: 880.15
A4: 120 | B4: LUMINARIA LED POTÊNCIA ATÉ 120W FLUXO LUMINOSO APROXIMADO 13.800lm EFICIENCIA LUMINOSA ≥ 115lm/w | C4: PC | D4: 767
A5: 150 | B5: LUMINARIA LED POTÊNCIA ATÉ 150W FLUXO LUMINOSO APROXIMADO 17.250lm EFICIENCIA LUMINOSA ≥ 115lm/w | C5: PC | D5: 1235
A6: 2931 | B6: CABO DE AÇO MR 1/4P (6,4MM) 7 FIOS | C6: KG | D6: 2.76
A7: 2964 | B7: CABO DE AÇO HS 3/8P (9,5MM²) 7FIOS | C7: KG | D7: 7.78
A8: 3954 | B8: FITA ADESIVA ISOLANTE PVC 19MMX20M | C8: RL | D8: 4.97
A9: 39586 | B9: COBERTURA PROTETORA PARA BUCHA DE EQUIPAMENTO | C9: PC | D9: 9.67
A10: 66688 | B10: PARAFUSO CABEÇA ABAULADA M12X 40MM | C10: PC | D10: 1.63
A11: 66878 | B11: PARAFUSO CABEÇA ABAULADA M16X 45MM | C11: PC | D11: 2.17
A12: 66886 | B12: PARAFUSO CABEÇA ABAULADA M16X 70MM | C12: PC | D12: 2.64
A13: 66894 | B13: PARAFUSO CABEÇA ABAULADA M16X150MM | C13: PC | D13: 4.3
A14: 74799 | B14: PARAFUSO CABEÇA QUADRADA M16X125MM | C14: PC | D14: 3.99
A15: 74807 | B15: PARAFUSO CABEÇA QUADRADA M16X150MM | C15: PC | D15: 4.37
A16: 74831 | B16: PARAFUSO CABEÇA QUADRADA M16X300MM | C16: PC | D16: 6.75
A17: 74864 | B17: PARAFUSO CABEÇA QUADRADA M16X450MM | C17: PC | D17: 9.79
A18: 74872 | B18: PARAFUSO CABEÇA QUADRADA M16X500MM | C18: PC | D18: 11.41
A19: 75036 | B19: PARAFUSO CABEÇA SEXTAVADA M12X 40MM | C19: PC | D19: 12.44
A20: 75630 | B20: PORCA QUADRADA M16 24X24X13MM | C20: PC | D20: 0.68
A21: 75721 | B21: ARRUELA QUADRADA 38X18X3MM | C21: PC | D21: 0.52
A22: 82586 | B22: MASSA CALAFETAR 1KG | C22: KG | D22: 16.78
A23: 207415 | B23: POSTE CONCRETO CIRCULAR 11M 300DAN | C23: PC | D23: 695.96
A24: 207449 | B24: POSTE CONCRETO CIRCULAR 11M 600DAN | C24: PC | D24: 951.41
A25: 207506 | B25: POSTE CONCRETO CIRCULAR 12M 600DAN | C25: PC | D25: 1118.35
A26: 207514 | B26: POSTE CONCRETO CIRCULAR 12M1000DAN | C26: PC | D26: 1597.78
A27: 207522 | B27: POSTE CONCRETO CIRCULAR 12M 300DAN | C27: PC | D27: 765.08
A28: 211771 | B28: BRAÇO SUPORTE L | C28: PC | D28: 72.27
A29: 211789 | B29: BRAÇO SUPORTE C | C29: PC | D29: 92.79
A30: 214668 | B30: POSTE CONCRETO RC IP 11,5M 150DAN | C30: PC | D30: 1122.95
A31: 219634 | B31: ISOLADOR ROLDANA PORCELANA OU VIDRO | C31: PC | D31: 5.42
A32: 219642 | B32: ISOLADOR PINO POLIMÉRICO 15 KV P/BRAÇO SUPORTE C | C32: PC | D32: 20.08
A33: 219659 | B33: ISOLADOR DE ANCORAGEM POLIMÉRICO 15KV ITEM 1 | C33: PC | D33: 41.77
A34: 219709 | B34: ALÇA PREFORMADA OLHAL CA/CAA 34MM² (2AWG) | C34: PC | D34: 12.17
A35: 220434 | B35: CABO CA 53MM² (1/0AWG) | C35: KG | D35: 21.15
A36: 222539 | B36: HASTE ATERRAMENTO 2400MM | C36: PC | D36: 40.75
A37: 223818 | B37: CANTONEIRA PARA BRAÇO C | C37: PC | D37: 60.9
A38: 225615 | B38: CABO CU 1X 1,5MM² 1KV XLPE | C38: M | D38: 1.15
A39: 225623 | B39: CABO AL 1X 16MM² 1KV | C39: M | D39: 1.85
A40: 225656 | B40: CABO AL 1X 70MM² 1KV | C40: M | D40: 6.53
A41: 225896 | B41: CABO CU 1X 2,5MM² 750V | C41: M | D41: 1.53
A42: 226373 | B42: CABO QUADRUPLEX CA 3X1X 70+70 1KV | C42: M | D42: 22.81
A43: 227066 | B43: CONETOR TERMINAL COMP CA/CAA 54MM² / 70MM² COMPACT | C43: PC | D43: 5.48
A44: 227389 | B44: CONETOR TERMINAL COMPRESSÃO 1F AÇO 6,4MM / 21MM² | C44: PC | D44: 2.07
A45: 227769 | B45: CONETOR FORMATO H ITEM 1 CAA 13-34MM² / 13-34MM² | C45: PC | D45: 2.25
A46: 227777 | B46: CONETOR FORMATO H ITEM 2 CAA 27-54MM² / 13-34MM² | C46: PC | D46: 2.71
A47: 227785 | B47: CONETOR FORMATO H ITEM 3 CAA 42-67MM² / 42-67MM² | C47: PC | D47: 4.77
A48: 227850 | B48: CONETOR CUNHA CU ITEM 1 | C48: PC | D48: 3.79
A49: 227868 | B49: CONETOR CUNHA CU ITEM 2 | C49: PC | D49: 2.81
A50: 228874 | B50: ALÇA PREFORMADA NEUTRO CA/CAL 35MM² | C50: PC | D50: 4.77
A51: 228890 | B51: ALÇA PREFORMADA CA/CAA 54MM² (1/0AWG) | C51: PC | D51: 7.35
A52: 228981 | B52: ALÇA PREFORMADA NEUTRO CA/CAL 16MM² | C52: PC | D52: 1.3
A53: 229005 | B53: ALÇA PREFORMADA NEUTRO CA/CAL 70MM² | C53: PC | D53: 6.03
A54: 230367 | B54: LAÇO PREFORMADO DE TOPO CA/CAA 34MM² (2AWG) | C54: PC | D54: 3.52
A55: 231175 | B55: CONETOR PARA ATERRAMENTO DE FERRAGENS DE IP | C55: PC | D55: 1.3
A56: 231522 | B56: ALÇA PARA ESTRIBO FECHADA 2AWG | C56: PC | D56: 8.61
A57: 231548 | B57: CABO AL 1X 50MM² 15KV PROTEGIDO | C57: M | D57: 7.15
A58: 231555 | B58: SUPORTE Z PARA CHAVE FUSÍVEL | C58: PC | D58: 14.06
A59: 231589 | B59: CABO TRIPLEX CA 2X1X70+70 1KV | C59: M | D59: 16.08
A60: 231662 | B60: ESPAÇADOR LOSANGULAR 50-150MM² 15KV | C60: CJ | D60: 21.82
A61: 231688 | B61: CONETOR CUNHA CU ITEM 7 | C61: PC | D61: 3.9
A62: 231696 | B62: CONETOR CUNHA CU ITEM 6 | C62: PC | D62: 4.27
A63: 231712 | B63: BRAÇO SUPORTE COM GRAMPO DE SUSPENSÃO ITEM 2 | C63: CJ | D63: 38.38
A64: 231753 | B64: CONETOR CUNHA AL 150-50MM² | C64: PC | D64: 14.41
A65: 231795 | B65: CONETOR CUNHA AL 50MM² COM ESTRIBO | C65: PC | D65: 14.96
A66: 231811 | B66: CONETOR CUNHA AL 150MM² COM ESTRIBO | C66: PC | D66: 31.85
A67: 231860 | B67: CARTUCHO DE APLICAÇÃO AZUL | C67: PC | D67: 6.53
A68: 231878 | B68: CARTUCHO DE APLICAÇÃO VERMELHO | C68: PC | D68: 6.54
A69: 231886 | B69: CONETOR TERMINAL COMPRESSÃO 1F 50MM² | C69: PC | D69: 1.92
A70: 234567 | B70: GRAMPO ANCORAGEM PARA CABO 50MM² 15KV | C70: PC | D70: 20.12
A71: 234575 | B71: GRAMPO ANCORAGEM PARA CABO 150MM² 15KV | C71: PC | D71: 23.4
A72: 236265 | B72: PINO P/ ISOLADOR POLIMÉRICO ATÉ 36,2 KV - BRAÇO C | C72: PC | D72: 15.35
A73: 236836 | B73: CINTA DE AÇO D 170MM | C73: PC | D73: 16.28
A74: 236844 | B74: CINTA DE AÇO D 180MM | C74: PC | D74: 16.51
A75: 236851 | B75: CINTA DE AÇO D 190MM | C75: PC | D75: 17.48
A76: 236869 | B76: CINTA DE AÇO D 200MM | C76: PC | D76: 17.93
A77: 236877 | B77: CINTA DE AÇO D 210MM | C77: PC | D77: 18.52
A78: 236885 | B78: CINTA DE AÇO D 220MM | C78: PC | D78: 18.66
A79: 236893 | B79: CINTA DE AÇO D 230MM | C79: PC | D79: 19.34
A80: 236901 | B80: CINTA DE AÇO D 240MM | C80: PC | D80: 20.51
A81: 236919 | B81: CINTA DE AÇO D 250MM | C81: PC | D81: 21.79
A82: 236927 | B82: CINTA DE AÇO D 260MM | C82: PC | D82: 21.62
A83: 236935 | B83: CINTA DE AÇO D 270MM | C83: PC | D83: 22.15
A84: 236943 | B84: CINTA DE AÇO D 280MM | C84: PC | D84: 25.47
A85: 236950 | B85: CINTA DE AÇO D 290MM | C85: PC | D85: 23.93
A86: 237081 | B86: SUPORTE 240MM TRANSFORMADOR POSTE CC | C86: PC | D86: 104.81
A87: 237156 | B87: SELA PARA CRUZETA | C87: PC | D87: 8.88
A88: 237172 | B88: SUPORTE L PARA CRUZETA | C88: PC | D88: 25.98
A89: 237222 | B89: AFASTADOR ARMAÇÃO SECUNDÁRIA 500MM | C89: PC | D89: 124.8
A90: 237230 | B90: ARMAÇÃO SECUNDÁRIO 1 ESTRIBO | C90: PC | D90: 11
A91: 237248 | B91: ARMAÇÃO SECUNDÁRIO 2 ESTRIBOS | C91: PC | D91: 23.33
A92: 237271 | B92: MANILHA SAPATILHA CLASSE 50KN | C92: PC | D92: 10.91
A93: 237289 | B93: OLHAL PARA PARAFUSO 50KN | C93: PC | D93: 16.76
A94: 237677 | B94: ALÇA PREFORMADA ESTAI CABO AÇO 9,5MM | C94: PC | D94: 12.24
A95: 237685 | B95: ALÇA PREFORMADA ESTAI CABO AÇO 6,4MM | C95: PC | D95: 6.75
A96: 237701 | B96: FIXADOR PREFORMADO ESTAI 6,4MM | C96: PC | D96: 6.68
A97: 237768 | B97: SAPATILHA | C97: PC | D97: 1.99
A98: 237776 | B98: SUPORTE L DE TOPO DE POSTE ITEM 1 | C98: PC | D98: 32.39
A99: 237784 | B99: MÃO-FRANCESA PERFILADA NORMAL 38X5X726MM | C99: PC | D99: 22.64
A100: 245837 | B100: TRANSFORMADOR TRIFÁSICO 15KV 45KVA | C100: PC | D100: 5284
A101: 258905 | B101: BRAÇO PARA IP TIPO CURTO | C101: PC | D101: 39.8
A102: 258921 | B102: BRAÇO PARA IP TIPO MÉDIO | C102: PC | D102: 166.63
A103: 270439 | B103: CHAVE FUSÍVEL 15KV COM PORTA FUSÍVEL 100A 7,1KA | C103: PC | D103: 243.45
A104: 271353 | B104: ELO FUSÍVEL BOTÃO 500MM 3H | C104: PC | D104: 4.3
A105: 289058 | B105: PÁRA-RAIOS 12KV 10KA ZNO | C105: PC | D105: 153.69
A106: 293357 | B106: PÁRA-RAIOS REDE SECUNDÁRIA ISOLADA 280V 10KA | C106: PC | D106: 59.64
A107: 299560 | B107: ARO COM TAMPA ARTICULADA CAIXA ZA | C107: CJ | D107: 139.08
A108: 306555 | B108: ANEL CAIXA ZA CONCRETO PREMOLDADO | C108: PC | D108: 51.32
A109: 327361 | B109: RELÉ FOTOELÉTRICO ELETRÔNICO 105-305V | C109: PC | D109: 19.1
A110: 327692 | B110: BRAÇADEIRA PLÁSTICA CABO MULTIPLEXADO | C110: PC | D110: 1.15
A111: 327700 | B111: ANEL ELASTOMÉRICO P/ ISOLADOR PINO POLIMÉRICO 15KV | C111: PC | D111: 4.29
A112: 327726 | B112: CONETOR DE PERFURAÇÃO 10-70MM²/6-35MM² | C112: PC | D112: 8.25
A113: 327767 | B113: CONETOR DE PERFURAÇÃO 70-240MM²/70-120MM² | C113: PC | D113: 16
A114: 328120 | B114: ESTRIBO PARA BRAÇO TIPO L PARA RDAP | C114: PC | D114: 10.94
A115: 328138 | B115: BRAÇO ANTIBALANÇO 15KV | C115: PC | D115: 25.79
A116: 331728 | B116: CONETOR CUNHA ITEM 2 + COBERTURA ISOLANTE ITEM 2 | C116: PC | D116: 3.63
A117: 338731 | B117: CONETOR TERMINAL COMPRESSÃO 16MM² | C117: PC | D117: 2.12
A118: 354899 | B118: LÂMPADA VAPOR DE SÓDIO 150W AP E-40 TUBULAR | C118: PC | D118: 30.81
A119: 354900 | B119: LUMINÁRIA COM EQUIPAMENTO VS 150W TUBULAR | C119: PC | D119: 359.87
A120: 354903 | B120: SUPORTE IP 2 LUMINÁRIAS POSTE RC OU AÇO 10/12/14M | C120: PC | D120: 160
A121: 355028 | B121: REATOR LÂMPADA VS 150W INTEGRADO | C121: PC | D121: 75.36
A122: 357342 | B122: FIO PARA AMARRAÇÃO ALUMÍNIO RECOZIDO 5,2MM (4AWG) | C122: KG | D122: 31.05
A123: 374393 | B123: MANTA AUTO-ADESIVA PARA EMENDA CABO 15KV RDP | C123: PC | D123: 66.28
A124: 375058 | B124: COBERTURA PROTETORA P/ BCH BT TRANSFORMADOR ITEM 1 | C124: PC | D124: 8.41
A125: 375718 | B125: ISOLADOR PILAR PORCELANA 15KV | C125: PC | D125: 57.98
A126: 375720 | B126: PINO PARA ISOLADOR PILAR | C126: PC | D126: 7.03
A127: 376109 | B127: LUMINÁRIA COM EQUIPAMENTO VS 100W VIDRO PLANO | C127: PC | D127: 269.72
A128: 376112 | B128: REATOR LÂMPADA VS 100W INTEGRADO CONECTOR RÁPIDO | C128: PC | D128: 45.5
A129: 376238 | B129: LÂMPADA VAPOR DE SÓDIO 100W AP E-40 TUBULAR | C129: PC | D129: 24.46
A130: 377357 | B130: CONETOR TERMINAL ATERRAMENTO TEMPORÁRIO DE CHAVE | C130: PC | D130: 8.63
A131: 377568 | B131: DUTO PEAD CORRUGADO DEN 63MM | C131: M | D131: 10.5
A132: 377705 | B132: CRUZETA DE FIBRA DE VIDRO 2400X112,5X90MM | C132: PC | D132: 210.26
A133: 378809 | B133: CONECTOR TERMINAL P/ BUCHA,50 MM²,RETO,COMPRESSÃO | C133: PC | D133: 12.06
A134: 378842 | B134: GRAMPO DE LINHA VIVA | C134: PC | D134: 57.96
A135: 378849 | B135: CONECTOR,PERFURAÇÃO,AL/CU,16-70/1,5-6MM²,RDS. | C135: PC | D135: 84.24
A136: 379679 | B136: CONETOR DE PERFURAÇÃO 35-120MM²/1,5MM² | C136: PC | D136: 5.98
A137: SINAPI34623 | B137: DISJUNTOR TIPO DIN/IEC, BIPOLAR 40A | C137: PC | D137: 51.47
A138: SUP3 | B138: SUPORTE IP 3 LUMINÁRIAS POSTE RC OU AÇO 10/12/14M | C138: PC | D138: 221
A139: US. CONST. RDA | B139: MÃO DE OBRA DE CONSTRUÇÃO DE REDE ELÉTRICA | C139: US | D139: 1538.3
A140: US. CONST. RDS | B140: MÃO DE OBRA DE CONSTRUÇÃO DE REDE SUBTERRÂNEA | C140: US | D140: 1538.3

Sheet CRONOGRAMA
A2: CRONOGRAMA FISICO-FINANCEIRO
A3: OBRA: | B3: PROJETOS DE MODIFICAÇÃO, EXTENSÃO DE REDE E ILUMINAÇÃO PÚBLICA
A4: LOCAL: | B4: DIVERSOS - MUNICIPIO DE PATOS DE MINAS
A5: REFERÊNCIA: | B5: PREÇOS DE MERCADO_COTAÇÃO Janeiro/2020 | H5: BDI (PUBLICAÇÃO TCU - ACÓRDÃO Nº 2622/2013): | M5: =RESUMO!F5 -> 0.3156 | P5: =RESUMO!E5 -> 2020-02-04
A7: ITEM | B7: DISCRIMINAÇÃO DE SERVIÇOS | H7: VALOR SERVIÇOS (R$) | I7: PESO (%) | J7: SERVIÇOS A EXECUTAR
J8: MÊS - 1 | M8: MÊS - 2 | P8: MÊS - 3
J9: SIMPL.% | K9: R$ | L9: ACUM.% | M9: SIMPL.% | N9: R$ | O9: ACUM.% | P9: SIMPL.% | Q9: R$ | R9: ACUM.%
A10: 1 | B10: ='CVCTEC-77'!$A$4 -> LOCAL: CVCTEC_PMINAS_77 - RUA LAUMAR ROCHA FILGUEIRA E OUTRAS - B. JARDIM RECANTO | H10: =SUM(H11:H12) -> 21047.85
A11: 1.1 | B11: MATERIAL | H11: ='CVCTEC-77'!H50:I50 -> 9815.82 | I11: =H11/$H$32 -> 0.0235 | J11: 0.15 | K11: =J11*H11 -> 1472.37 | L11: =J11 -> 0.15 | M11: 0.35 | N11: =M11*H11 -> 3435.54 | O11: =L11+M11 -> 0.5 | P11: 0.5 | Q11: =P11*H11 -> 4907.91 | R11: =O11+P11 -> 1
A12: 1.2 | B12: MÃO DE OBRA | H12: ='CVCTEC-77'!H51:I51 -> 11232.03 | I12: =H12/$H$32 -> 0.0269 | J12: 0.15 | K12: =J12*H12 -> 1684.8 | L12: =J12 -> 0.15 | M12: 0.35 | N12: =M12*H12 -> 3931.21 | O12: =L12+M12 -> 0.5 | P12: 0.5 | Q12: =P12*H12 -> 5616.02 | R12: =O12+P12 -> 1
A13: 2 | B13: ='CVCTEC-79'!$A$4 -> LOCAL: CVCTEC_PMINAS_79 - AV. A - B. JARDIM PANORAMICO | H13: =SUM(H14:H15) -> 38777.82
A14: 2.1 | B14: MATERIAL | H14: ='CVCTEC-79'!H59:I59 -> 22081.55 | I14: =H14/$H$32 -> 0.0528 | J14: 0.15 | K14: =J14*H14 -> 3312.23 | L14: =J14 -> 0.15 | M14: 0.35 | N14: =M14*H14 -> 7728.54 | O14: =L14+M14 -> 0.5 | P14: 0.5 | Q14: =P14*H14 -> 11040.78 | R14: =O14+P14 -> 1
A15: 2.2 | B15: MÃO DE OBRA | H15: ='CVCTEC-79'!H60:I60 -> 16696.27 | I15: =H15/$H$32 -> 0.04 | J15: 0.15 | K15: =J15*H15 -> 2504.44 | L15: =J15 -> 0.15 | M15: 0.35 | N15: =M15*H15 -> 5843.69 | O15: =L15+M15 -> 0.5 | P15: 0.5 | Q15: =P15*H15 -> 8348.14 | R15: =O15+P15 -> 1
A16: 3 | B16: ='CVCTEC-80'!$A$4 -> LOCAL: CVCTEC_PMINAS_80 - RUA ARTHUR MAGALHAES - B. NOVA FLORESTA | H16: =SUM(H17:H18) -> 111473.99
A17: 3.1 | B17: MATERIAL | H17: ='CVCTEC-80'!H126:I126 -> 73527.93 | I17: =H17/$H$32 -> 0.176 | J17: 0.15 | K17: =J17*H17 -> 11029.19 | L17: =J17 -> 0.15 | M17: 0.35 | N17: =M17*H17 -> 25734.78 | O17: =L17+M17 -> 0.5 | P17: 0.5 | Q17: =P17*H17 -> 36763.97 | R17: =O17+P17 -> 1
A18: 3.2 | B18: MÃO DE OBRA | H18: ='CVCTEC-80'!H127:I127 -> 37946.06 | I18: =H18/$H$32 -> 0.0908 | J18: 0.15 | K18: =J18*H18 -> 5691.91 | L18: =J18 -> 0.15 | M18: 0.35 | N18: =M18*H18 -> 13281.12 | O18: =L18+M18 -> 0.5 | P18: 0.5 | Q18: =P18*H18 -> 18973.03 | R18: =O18+P18 -> 1
A19: 4 | B19: ='CVCTEC-83'!$A$4 -> LOCAL: CVCTEC_PMINAS_83 - AVENIDA DOS BURITIS - B. ALTO DA COLINA | H19: =SUM(H20:H21) -> 121244.7
A20: 4.1 | B20: MATERIAL | H20: ='CVCTEC-83'!H121:I121 -> 83096.26 | I20: =H20/$H$32 -> 0.1989 | J20: 0.15 | K20: =J20*H20 -> 12464.44 | L20: =J20 -> 0.15 | M20: 0.35 | N20: =M20*H20 -> 29083.69 | O20: =L20+M20 -> 0.5 | P20: 0.5 | Q20: =P20*H20 -> 41548.13 | R20: =O20+P20 -> 1
A21: 4.2 | B21: MÃO DE OBRA | H21: ='CVCTEC-83'!H122:I122 -> 38148.44 | I21: =H21/$H$32 -> 0.0913 | J21: 0.15 | K21: =J21*H21 -> 5722.27 | L21: =J21 -> 0.15 | M21: 0.35 | N21: =M21*H21 -> 13351.95 | O21: =L21+M21 -> 0.5 | P21: 0.5 | Q21: =P21*H21 -> 19074.22 | R21: =O21+P21 -> 1
A22: 5 | B22: ='CVCTEC-84'!$A$4 -> LOCAL: CVCTEC_PMINAS_84 - RUA SAGITÁRIO - JARDIM PELUZZO | H22: =SUM(H23:H24) -> 29036.55
A23: 5.1 | B23: MATERIAL | H23: ='CVCTEC-84'!H88:I88 -> 19929.49 | I23: =H23/$H$32 -> 0.0477 | J23: 0.15 | K23: =J23*H23 -> 2989.42 | L23: =J23 -> 0.15 | M23: 0.35 | N23: =M23*H23 -> 6975.32 | O23: =L23+M23 -> 0.5 | P23: 0.5 | Q23: =P23*H23 -> 9964.75 | R23: =O23+P23 -> 1
A24: 5.2 | B24: MÃO DE OBRA | H24: ='CVCTEC-84'!H89:I89 -> 9107.06 | I24: =H24/$H$32 -> 0.0218 | J24: 0.15 | K24: =J24*H24 -> 1366.06 | L24: =J24 -> 0.15 | M24: 0.35 | N24: =M24*H24 -> 3187.47 | O24: =L24+M24 -> 0.5 | P24: 0.5 | Q24: =P24*H24 -> 4553.53 | R24: =O24+P24 -> 1
A25: 6 | B25: =CONCATENATE(PMPATOS_004DR!A5," ",PMPATOS_004DR!B5) -> LOCAL: PMPATOS_004DR - PRAÇA FREI ILDEU - SEBASTIÃO AMORIM | H25: =SUM(H26:H27) -> 47449.87
A26: 6.1 | B26: MATERIAL | H26: =PMPATOS_004DR!H37 -> 34619.04 | I26: =H26/$H$32 -> 0.0828 | J26: 0.15 | K26: =J26*H26 -> 5192.86 | L26: =J26 -> 0.15 | M26: 0.35 | N26: =M26*H26 -> 12116.66 | O26: =L26+M26 -> 0.5 | P26: 0.5 | Q26: =P26*H26 -> 17309.52 | R26: =O26+P26 -> 1
A27: 6.2 | B27: MÃO DE OBRA | H27: =PMPATOS_004DR!H38 -> 12830.83 | I27: =H27/$H$32 -> 0.0307 | J27: 0.15 | K27: =J27*H27 -> 1924.62 | L27: =J27 -> 0.15 | M27: 0.35 | N27: =M27*H27 -> 4490.79 | O27: =L27+M27 -> 0.5 | P27: 0.5 | Q27: =P27*H27 -> 6415.42 | R27: =O27+P27 -> 1
A28: 7 | B28: =CONCATENATE(PMPATOS_004DR!A5," ",PMPATOS_005DR!B5) -> LOCAL: PMPATOS_005DR - PRAÇA JOSÉ DE BRITO - JARDIM PELUZZO | H28: =SUM(H29:H30) -> 48834.11
A29: 7.1 | B29: MATERIAL | H29: =PMPATOS_005DR!H38 -> 26875.99 | I29: =H29/$H$32 -> 0.0643 | J29: 0.15 | K29: =J29*H29 -> 4031.4 | L29: =J29 -> 0.15 | M29: 0.35 | N29: =M29*H29 -> 9406.6 | O29: =L29+M29 -> 0.5 | P29: 0.5 | Q29: =P29*H29 -> 13438 | R29: =O29+P29 -> 1
A30: 7.2 | B30: MÃO DE OBRA | H30: =PMPATOS_005DR!H39 -> 21958.12 | I30: =H30/$H$32 -> 0.0525 | J30: 0.15 | K30: =J30*H30 -> 3293.72 | L30: =J30 -> 0.15 | M30: 0.35 | N30: =M30*H30 -> 7685.34 | O30: =L30+M30 -> 0.5 | P30: 0.5 | Q30: =P30*H30 -> 10979.06 | R30: =O30+P30 -> 1
B32: TOTAIS | H32: =SUM(H10:H30)/2 -> 417864.89 | I32: =H32/$H$32 -> 1 | J32: 0.15 | K32: =J32*H32 -> 62679.73 | L32: =J32 -> 0.15 | M32: 0.35 | N32: =M32*H32 -> 146252.71 | O32: =L32+M32 -> 0.5 | P32: 0.5 | Q32: =P32*H32 -> 208932.45 | R32: =O32+P32 -> 1
E34: =CONCATENATE(RESUMO!B18," ",RESUMO!C18) -> Patos de Minas, 4 de fevereiro de 2020
A37: _______________________________________________________
E38: =RESUMO!B21 -> Diogo Soares Resende
E39: =RESUMO!B22 -> Eng. Eletricista
E40: =RESUMO!B23 -> CREA: 194.419D/MG

Sheet PLAN. BDI.IMP
A2: COMPOSIÇÃO DO BDI (Bonificações e Despesas Indiretas)
A3: "Estações e Redes de Distribuição de Energia Elétrica"
A5: OBJETO: PROJETOS DE MODIFICAÇÃO, EXTENSÃO DE REDE E ILUMINAÇÃO PÚBLICA
A6: LOCAL: DIVERSOS - MUNICIPIO DE PATOS DE MINAS
A7: PROF. RESP.: DIOGO SOARES RESENDE | F7: CREA-MG | G7: 194.419/D | H7: DATA: | I7: =RESUMO!E5 -> 2020-02-04
A9: 1) ADMINISTRAÇÃO CENTRAL - ( 5,29% a 7,93%)
B11: 0.0537
F12: Adm. Central, Seguros e Garantias, Riscos | J12: =1+B11+B15+B20 -> 1.0784
A13: 2) SEGUROS E GARANTIAS - ( 0,25% a 0,56%) | F13: Despesas Financeiras | J13: =1+B24 -> 1.0111
F14: Lucro/Remuneração | J14: =1+B28 -> 1.0841
B15: 0.005 | F15: Impostos (com desoneração) | J15: =1-C34-E34-G34-C36 -> 0.8985
F16: Impostos (sem desoneração) | J16: =1-C34-E34-G34 -> 0.9435
A18: 3) RISCOS - ( 1,00% a 1,97%)
B20: 0.0197
A22: 4) DESPESAS FINANCEIRAS - ( 1,01% a 1,11%)
B24: 0.0111
A26: 5) LUCRO/REMUNERAÇÃO - (8,00% a 9,51%)
B28: 0.0841
A30: 6) IMPOSTOS
A31: - ISS - Variação de 2% a 5% - Justificado pela Legislação Tributária Municipal com apresentação da base de cálculo da alíquota.
B34: COFINS= | C34: 0.03 | D34: PIS= | E34: 0.0065 | F34: ISS= | G34: 0.02
A36: CPRB= | C36: 0.045
A38: A) Sem desoneração:
B40: BDI= | D40: =(J12*J13*J14)/J16-1 -> 0.2529 | F40: Faixa referencial | H40: 1º Quartil | I40: Médio | J40: 3º Quartil
H41: 0.24 | I41: 0.2584 | J41: 0.2786
A43: B) Com desoneração:
B45: BDI= | D45: =(J12*J13*J14/J15)-1 -> 0.3156
A49: Observação:
A50: Composição para "Estações e Redes de Distribuição de Energia Elétrica", conforme classificação 4221-9/03 do CNAE 2.0.
E56: Patos de Minas, | F56: =RESUMO!C18 -> 4 de fevereiro de 2020
A58: _______________________________________________________
A59: =RESUMO!B21 -> Diogo Soares Resende
A60: =RESUMO!B22 -> Eng. Eletricista
A61: =RESUMO!B23 -> CREA: 194.419D/MG

Sheet CVCTEC-77
A2: PLANILHA ORÇAMENTÁRIA
A3: OBJETO: PROJETOS DE MODIFICAÇÃO, EXTENSÃO DE REDE E ILUMINAÇÃO PÚBLICA
A4: LOCAL: CVCTEC_PMINAS_77 - RUA LAUMAR ROCHA FILGUEIRA E OUTRAS - B. JARDIM RECANTO
A5: RESPONSÁVEL TÉCNICO: DIOGO SOARES RESENDE | F5: CREA: | G5: =LEFT(RIGHT(RESUMO!B23,11),8) -> 194.419D | H5: ART:
A6: REFERENCIA DE PREÇOS: PREÇOS DE MERCADO | F6: DATA: | G6: =RESUMO!E5 -> 2020-02-04 | H6: BDI : | I6: =RESUMO!F5 -> 0.3156
A8: ITEM | B8: CÓDIGO | C8: DESCRIÇÃO | D8: UNID. | E8: QUANT. | F8: PREÇO SEM BDI | H8: PREÇO COM BDI
F9: UNITÁRIO | G9: TOTAL | H9: UNITÁRIO | I9: TOTAL
A10: 1 | B10: 228981 | C10: =VLOOKUP(B10,TAB.REF!$A$3:$D$140,2) -> ALÇA PREFORMADA NEUTRO CA/CAL 16MM² | D10: =VLOOKUP(B10,TAB.REF!$A$3:$D$140,3) -> PC | E10: 10 | F10: =VLOOKUP(B10,TAB.REF!$A$3:$D$140,4) -> 1.3 | G10: =ROUND(F10*E10,2) -> 13 | H10: =ROUND(F10*(1+$I$6),2) -> 1.71 | I10: =ROUND(H10*E10,2) -> 17.1
A11: 2 | B11: 229005 | C11: =VLOOKUP(B11,TAB.REF!$A$3:$D$140,2) -> ALÇA PREFORMADA NEUTRO CA/CAL 70MM² | D11: =VLOOKUP(B11,TAB.REF!$A$3:$D$140,3) -> PC | E11: 6 | F11: =VLOOKUP(B11,TAB.REF!$A$3:$D$140,4) -> 6.03 | G11: 36.18 | H11: 7.93 | I11: 47.58
A12: 3 | B12: 327692 | C12: =VLOOKUP(B12,TAB.REF!$A$3:$D$140,2) -> BRAÇADEIRA PLÁSTICA CABO MULTIPLEXADO | D12: =VLOOKUP(B12,TAB.REF!$A$3:$D$140,3) -> PC | E12: 15 | F12: =VLOOKUP(B12,TAB.REF!$A$3:$D$140,4) -> 1.15 | G12: 17.25 | H12: 1.51 | I12: 22.65
A13: 4 | B13: 258905 | C13: =VLOOKUP(B13,TAB.REF!$A$3:$D$140,2) -> BRAÇO PARA IP TIPO CURTO | D13: =VLOOKUP(B13,TAB.REF!$A$3:$D$140,3) -> PC | E13: 2 | F13: =VLOOKUP(B13,TAB.REF!$A$3:$D$140,4) -> 39.8 | G13: 79.6 | H13: 52.36 | I13: 104.72
A14: 5 | B14: 231712 | C14: =VLOOKUP(B14,TAB.REF!$A$3:$D$140,2) -> BRAÇO SUPORTE COM GRAMPO DE SUSPENSÃO ITEM 2 | D14: =VLOOKUP(B14,TAB.REF!$A$3:$D$140,3) -> CJ | E14: 2 | F14: =VLOOKUP(B14,TAB.REF!$A$3:$D$140,4) -> 38.38 | G14: 76.76 | H14: 50.49 | I14: 100.98
A15: 6 | B15: 225615 | C15: =VLOOKUP(B15,TAB.REF!$A$3:$D$140,2) -> CABO CU 1X 1,5MM² 1KV XLPE | D15: =VLOOKUP(B15,TAB.REF!$A$3:$D$140,3) -> M | E15: 18 | F15: =VLOOKUP(B15,TAB.REF!$A$3:$D$140,4) -> 1.15 | G15: 20.7 | H15: 1.51 | I15: 27.18
A16: 7 | B16: 2931 | C16: =VLOOKUP(B16,TAB.REF!$A$3:$D$140,2) -> CABO DE AÇO MR 1/4P (6,4MM) 7 FIOS | D16: =VLOOKUP(B16,TAB.REF!$A$3:$D$140,3) -> KG | E16: 3.6 | F16: =VLOOKUP(B16,TAB.REF!$A$3:$D$140,4) -> 2.76 | G16: 9.94 | H16: 3.63 | I16: 13.07
A17: 8 | B17: 226373 | C17: =VLOOKUP(B17,TAB.REF!$A$3:$D$140,2) -> CABO QUADRUPLEX CA 3X1X 70+70 1KV | D17: =VLOOKUP(B17,TAB.REF!$A$3:$D$140,3) -> M | E17: 91 | F17: =VLOOKUP(B17,TAB.REF!$A$3:$D$140,4) -> 22.81 | G17: 2075.71 | H17: 30.01 | I17: 2730.91
A18: 9 | B18: 231589 | C18: =VLOOKUP(B18,TAB.REF!$A$3:$D$140,2) -> CABO TRIPLEX CA 2X1X70+70 1KV | D18: =VLOOKUP(B18,TAB.REF!$A$3:$D$140,3) -> M | E18: 38 | F18: =VLOOKUP(B18,TAB.REF!$A$3:$D$140,4) -> 16.08 | G18: 611.04 | H18: 21.15 | I18: 803.7
A19: 10 | B19: 236836 | C19: =VLOOKUP(B19,TAB.REF!$A$3:$D$140,2) -> CINTA DE AÇO D 170MM | D19: =VLOOKUP(B19,TAB.REF!$A$3:$D$140,3) -> PC | E19: 2 | F19: =VLOOKUP(B19,TAB.REF!$A$3:$D$140,4) -> 16.28 | G19: 32.56 | H19: 21.42 | I19: 42.84
A20: 11 | B20: 236877 | C20: =VLOOKUP(B20,TAB.REF!$A$3:$D$140,2) -> CINTA DE AÇO D 210MM | D20: =VLOOKUP(B20,TAB.REF!$A$3:$D$140,3) -> PC | E20: 10 | F20: =VLOOKUP(B20,TAB.REF!$A$3:$D$140,4) -> 18.52 | G20: 185.2 | H20: 24.36 | I20: 243.6
A21: 12 | B21: 236893 | C21: =VLOOKUP(B21,TAB.REF!$A$3:$D$140,2) -> CINTA DE AÇO D 230MM | D21: =VLOOKUP(B21,TAB.REF!$A$3:$D$140,3) -> PC | E21: 4 | F21: =VLOOKUP(B21,TAB.REF!$A$3:$D$140,4) -> 19.34 | G21: 77.36 | H21: 25.44 | I21: 101.76
A22: 13 | B22: 227850 | C22: =VLOOKUP(B22,TAB.REF!$A$3:$D$140,2) -> CONETOR CUNHA CU ITEM 1 | D22: =VLOOKUP(B22,TAB.REF!$A$3:$D$140,3) -> PC | E22: 9 | F22: =VLOOKUP(B22,TAB.REF!$A$3:$D$140,4) -> 3.79 | G22: 34.11 | H22: 4.99 | I22: 44.91
A23: 14 | B23: 227868 | C23: =VLOOKUP(B23,TAB.REF!$A$3:$D$140,2) -> CONETOR CUNHA CU ITEM 2 | D23: =VLOOKUP(B23,TAB.REF!$A$3:$D$140,3) -> PC | E23: 5 | F23: =VLOOKUP(B23,TAB.REF!$A$3:$D$140,4) -> 2.81 | G23: 14.05 | H23: 3.7 | I23: 18.5
A24: 15 | B24: 231696 | C24: =VLOOKUP(B24,TAB.REF!$A$3:$D$140,2) -> CONETOR CUNHA CU ITEM 6 | D24: =VLOOKUP(B24,TAB.REF!$A$3:$D$140,3) -> PC | E24: 1 | F24: =VLOOKUP(B24,TAB.REF!$A$3:$D$140,4) -> 4.27 | G24: 4.27 | H24: 5.62 | I24: 5.62
A25: 16 | B25: 331728 | C25: =VLOOKUP(B25,TAB.REF!$A$3:$D$140,2) -> CONETOR CUNHA ITEM 2 + COBERTURA ISOLANTE ITEM 2 | D25: =VLOOKUP(B25,TAB.REF!$A$3:$D$140,3) -> PC | E25: 5 | F25: =VLOOKUP(B25,TAB.REF!$A$3:$D$140,4) -> 3.63 | G25: 18.15 | H25: 4.78 | I25: 23.9
A26: 17 | B26: 327726 | C26: =VLOOKUP(B26,TAB.REF!$A$3:$D$140,2) -> CONETOR DE PERFURAÇÃO 10-70MM²/6-35MM² | D26: =VLOOKUP(B26,TAB.REF!$A$3:$D$140,3) -> PC | E26: 5 | F26: =VLOOKUP(B26,TAB.REF!$A$3:$D$140,4) -> 8.25 | G26: 41.25 | H26: 10.85 | I26: 54.25
A27: 18 | B27: 379679 | C27: =VLOOKUP(B27,TAB.REF!$A$3:$D$140,2) -> CONETOR DE PERFURAÇÃO 35-120MM²/1,5MM² | D27: =VLOOKUP(B27,TAB.REF!$A$3:$D$140,3) -> PC | E27: 8 | F27: =VLOOKUP(B27,TAB.REF!$A$3:$D$140,4) -> 5.98 | G27: 47.84 | H27: 7.87 | I27: 62.96
A28: 19 | B28: 327767 | C28: =VLOOKUP(B28,TAB.REF!$A$3:$D$140,2) -> CONETOR DE PERFURAÇÃO 70-240MM²/70-120MM² | D28: =VLOOKUP(B28,TAB.REF!$A$3:$D$140,3) -> PC | E28: 6 | F28: =VLOOKUP(B28,TAB.REF!$A$3:$D$140,4) -> 16 | G28: 96 | H28: 21.05 | I28: 126.3
A29: 20 | B29: 227777 | C29: =VLOOKUP(B29,TAB.REF!$A$3:$D$140,2) -> CONETOR FORMATO H ITEM 2 CAA 27-54MM² / 13-34MM² | D29: =VLOOKUP(B29,TAB.REF!$A$3:$D$140,3) -> PC | E29: 10 | F29: =VLOOKUP(B29,TAB.REF!$A$3:$D$140,4) -> 2.71 | G29: 27.1 | H29: 3.57 | I29: 35.7
A30: 21 | B30: 227785 | C30: =VLOOKUP(B30,TAB.REF!$A$3:$D$140,2) -> CONETOR FORMATO H ITEM 3 CAA 42-67MM² / 42-67MM² | D30: =VLOOKUP(B30,TAB.REF!$A$3:$D$140,3) -> PC | E30: 16 | F30: =VLOOKUP(B30,TAB.REF!$A$3:$D$140,4) -> 4.77 | G30: 76.32 | H30: 6.28 | I30: 100.48
A31: 22 | B31: 231175 | C31: =VLOOKUP(B31,TAB.REF!$A$3:$D$140,2) -> CONETOR PARA ATERRAMENTO DE FERRAGENS DE IP | D31: =VLOOKUP(B31,TAB.REF!$A$3:$D$140,3) -> PC | E31: 8 | F31: =VLOOKUP(B31,TAB.REF!$A$3:$D$140,4) -> 1.3 | G31: 10.4 | H31: 1.71 | I31: 13.68
A32: 23 | B32: 227389 | C32: =VLOOKUP(B32,TAB.REF!$A$3:$D$140,2) -> CONETOR TERMINAL COMPRESSÃO 1F AÇO 6,4MM / 21MM² | D32: =VLOOKUP(B32,TAB.REF!$A$3:$D$140,3) -> PC | E32: 1 | F32: =VLOOKUP(B32,TAB.REF!$A$3:$D$140,4) -> 2.07 | G32: 2.07 | H32: 2.72 | I32: 2.72
A33: 24 | B33: 222539 | C33: =VLOOKUP(B33,TAB.REF!$A$3:$D$140,2) -> HASTE ATERRAMENTO 2400MM | D33: =VLOOKUP(B33,TAB.REF!$A$3:$D$140,3) -> PC | E33: 1 | F33: =VLOOKUP(B33,TAB.REF!$A$3:$D$140,4) -> 40.75 | G33: 40.75 | H33: 53.61 | I33: 53.61
A34: 25 | B34: 376238 | C34: =VLOOKUP(B34,TAB.REF!$A$3:$D$140,2) -> LÂMPADA VAPOR DE SÓDIO 100W AP E-40 TUBULAR | D34: =VLOOKUP(B34,TAB.REF!$A$3:$D$140,3) -> PC | E34: 2 | F34: =VLOOKUP(B34,TAB.REF!$A$3:$D$140,4) -> 24.46 | G34: 48.92 | H34: 32.18 | I34: 64.36
A35: 26 | B35: 376109 | C35: =VLOOKUP(B35,TAB.REF!$A$3:$D$140,2) -> LUMINÁRIA COM EQUIPAMENTO VS 100W VIDRO PLANO | D35: =VLOOKUP(B35,TAB.REF!$A$3:$D$140,3) -> PC | E35: 2 | F35: =VLOOKUP(B35,TAB.REF!$A$3:$D$140,4) -> 269.72 | G35: 539.44 | H35: 354.84 | I35: 709.68
A36: 27 | B36: 237289 | C36: =VLOOKUP(B36,TAB.REF!$A$3:$D$140,2) -> OLHAL PARA PARAFUSO 50KN | D36: =VLOOKUP(B36,TAB.REF!$A$3:$D$140,3) -> PC | E36: 11 | F36: =VLOOKUP(B36,TAB.REF!$A$3:$D$140,4) -> 16.76 | G36: 184.36 | H36: 22.05 | I36: 242.55
A37: 28 | B37: 66878 | C37: =VLOOKUP(B37,TAB.REF!$A$3:$D$140,2) -> PARAFUSO CABEÇA ABAULADA M16X 45MM | D37: =VLOOKUP(B37,TAB.REF!$A$3:$D$140,3) -> PC | E37: 13 | F37: =VLOOKUP(B37,TAB.REF!$A$3:$D$140,4) -> 2.17 | G37: 28.21 | H37: 2.85 | I37: 37.05
A38: 29 | B38: 66886 | C38: =VLOOKUP(B38,TAB.REF!$A$3:$D$140,2) -> PARAFUSO CABEÇA ABAULADA M16X 70MM | D38: =VLOOKUP(B38,TAB.REF!$A$3:$D$140,3) -> PC | E38: 34 | F38: =VLOOKUP(B38,TAB.REF!$A$3:$D$140,4) -> 2.64 | G38: 89.76 | H38: 3.47 | I38: 117.98
A39: 30 | B39: 207415 | C39: =VLOOKUP(B39,TAB.REF!$A$3:$D$140,2) -> POSTE CONCRETO CIRCULAR 11M 300DAN | D39: =VLOOKUP(B39,TAB.REF!$A$3:$D$140,3) -> PC | E39: 4 | F39: =VLOOKUP(B39,TAB.REF!$A$3:$D$140,4) -> 695.96 | G39: 2783.84 | H39: 915.6 | I39: 3662.4
A40: 31 | B40: 376112 | C40: =VLOOKUP(B40,TAB.REF!$A$3:$D$140,2) -> REATOR LÂMPADA VS 100W INTEGRADO CONECTOR RÁPIDO | D40: =VLOOKUP(B40,TAB.REF!$A$3:$D$140,3) -> PC | E40: 2 | F40: =VLOOKUP(B40,TAB.REF!$A$3:$D$140,4) -> 45.5 | G40: 91 | H40: 59.86 | I40: 119.72
A41: 32 | B41: 327361 | C41: =VLOOKUP(B41,TAB.REF!$A$3:$D$140,2) -> RELÉ FOTOELÉTRICO ELETRÔNICO 105-305V | D41: =VLOOKUP(B41,TAB.REF!$A$3:$D$140,3) -> PC | E41: 2 | F41: =VLOOKUP(B41,TAB.REF!$A$3:$D$140,4) -> 19.1 | G41: 38.2 | H41: 25.13 | I41: 50.26
A42: 33 | B42: 237768 | C42: =VLOOKUP(B42,TAB.REF!$A$3:$D$140,2) -> SAPATILHA | D42: =VLOOKUP(B42,TAB.REF!$A$3:$D$140,3) -> PC | E42: 5 | F42: =VLOOKUP(B42,TAB.REF!$A$3:$D$140,4) -> 1.99 | G42: 9.95 | H42: 2.62 | I42: 13.1
A43: VALOR TOTAL MATERIAIS | F43: =ROUND(SUM(G10:G42),2) -> 7461.29 | H43: =ROUND(SUM(I10:I42),2) -> 9815.82
A44: MÃO DE OBRA DE CONSTRUÇÃO | F44: PREÇO SEM BDI | H44: PREÇO COM BDI
A45: ITEM | B45: CÓDIGO | C45: DESCRIÇÃO | D45: UN | E45: QUANT. | F45: R$.UNIT. | G45: R$. TOTAL | H45: R$.UNIT. | I45: R$. TOTAL
A46: 1 | B46: US. CONST. RDA | C46: =VLOOKUP(B46,TAB.REF!$A$3:$D$140,2) -> MÃO DE OBRA DE CONSTRUÇÃO DE REDE ELÉTRICA | D46: US | E46: 5.55 | F46: =VLOOKUP(B46,TAB.REF!$A$2:$D$140,4) -> 1538.3 | G46: =ROUND(E46*F46,2) -> 8537.57 | H46: =F46*(1+$I$6) -> 2023.79 | I46: =ROUND(H46*E46,2) -> 11232.03
A47: 2 | B47: US. CONST. RDS | C47: =VLOOKUP(B47,TAB.REF!$A$3:$D$140,2) -> MÃO DE OBRA DE CONSTRUÇÃO DE REDE SUBTERRÂNEA | D47: US | F47: =VLOOKUP(B47,TAB.REF!$A$2:$D$140,4) -> 1538.3 | G47: =ROUND(E47*F47,2) -> 0 | H47: =F47*(1+$I$6) -> 2023.79 | I47: =ROUND(H47*E47,2) -> 0
A48: VALOR TOTAL MÃO DE OBRA | F48: =SUM(G46:G47) -> 8537.57 | H48: =SUM(I46:I47) -> 11232.03
A49: RESUMO | F49: PREÇO SEM BDI | H49: PREÇO COM BDI
A50: VALOR TOTAL MATERIAIS | F50: =ROUND(F43,2) -> 7461.29 | H50: =ROUND(H43,2) -> 9815.82
A51: VALOR TOTAL MÃO DE OBRA | F51: =ROUND(F48,2) -> 8537.57 | H51: =H48 -> 11232.03
A52: VALOR TOTAL | F52: =ROUND(SUM(F50:G51),2) -> 15998.86 | H52: =SUM(H50:I51) -> 21047.85
A55: =CONCATENATE(RESUMO!B18," ",RESUMO!C18) -> Patos de Minas, 4 de fevereiro de 2020
A58: _______________________________________________________
A59: =RESUMO!B21 -> Diogo Soares Resende
A60: =RESUMO!B22 -> Eng. Eletricista
A61: =RESUMO!B23 -> CREA: 194.419D/MG

Sheet CVCTEC-79
A2: PLANILHA ORÇAMENTÁRIA
A3: OBJETO: PROJETOS DE MODIFICAÇÃO, EXTENSÃO DE REDE E ILUMINAÇÃO PÚBLICA
A4: LOCAL: CVCTEC_PMINAS_79 - AV. A - B. JARDIM PANORAMICO
A5: RESPONSÁVEL TÉCNICO: DIOGO SOARES RESENDE | F5: CREA: | G5: =LEFT(RIGHT(RESUMO!B23,11),8) -> 194.419D | H5: ART:
A6: REFERENCIA DE PREÇOS: PREÇOS DE MERCADO | F6: DATA: | G6: =RESUMO!E5 -> 2020-02-04 | H6: BDI : | I6: =RESUMO!F5 -> 0.3156
A8: ITEM | B8: CÓDIGO | C8: DESCRIÇÃO | D8: UNID. | E8: QUANT. | F8: PREÇO SEM BDI | H8: PREÇO COM BDI
F9: UNITÁRIO | G9: TOTAL | H9: UNITÁRIO | I9: TOTAL
A10: 1 | B10: 228981 | C10: =VLOOKUP(B10,TAB.REF!$A$3:$D$140,2) -> ALÇA PREFORMADA NEUTRO CA/CAL 16MM² | D10: =VLOOKUP(B10,TAB.REF!$A$3:$D$140,3) -> PC | E10: 16 | F10: =VLOOKUP(B10,TAB.REF!$A$3:$D$140,4) -> 1.3 | G10: =ROUND(F10*E10,2) -> 20.8 | H10: =ROUND(F10*(1+$I$6),2) -> 1.71 | I10: =ROUND(H10*E10,2) -> 27.36
A11: 2 | B11: 229005 | C11: =VLOOKUP(B11,TAB.REF!$A$3:$D$140,2) -> ALÇA PREFORMADA NEUTRO CA/CAL 70MM² | D11: =VLOOKUP(B11,TAB.REF!$A$3:$D$140,3) -> PC | E11: 4 | F11: =VLOOKUP(B11,TAB.REF!$A$3:$D$140,4) -> 6.03 | G11: 24.12 | H11: 7.93 | I11: 31.72
A12: 3 | B12: 327692 | C12: =VLOOKUP(B12,TAB.REF!$A$3:$D$140,2) -> BRAÇADEIRA PLÁSTICA CABO MULTIPLEXADO | D12: =VLOOKUP(B12,TAB.REF!$A$3:$D$140,3) -> PC | E12: 20 | F12: =VLOOKUP(B12,TAB.REF!$A$3:$D$140,4) -> 1.15 | G12: 23 | H12: 1.51 | I12: 30.2
A13: 4 | B13: 258921 | C13: =VLOOKUP(B13,TAB.REF!$A$3:$D$140,2) -> BRAÇO PARA IP TIPO MÉDIO | D13: =VLOOKUP(B13,TAB.REF!$A$3:$D$140,3) -> PC | E13: 6 | F13: =VLOOKUP(B13,TAB.REF!$A$3:$D$140,4) -> 166.63 | G13: 999.78 | H13: 219.22 | I13: 1315.32
A14: 5 | B14: 231712 | C14: =VLOOKUP(B14,TAB.REF!$A$3:$D$140,2) -> BRAÇO SUPORTE COM GRAMPO DE SUSPENSÃO ITEM 2 | D14: =VLOOKUP(B14,TAB.REF!$A$3:$D$140,3) -> CJ | E14: 4 | F14: =VLOOKUP(B14,TAB.REF!$A$3:$D$140,4) -> 38.38 | G14: 153.52 | H14: 50.49 | I14: 201.96
A15: 6 | B15: 225615 | C15: =VLOOKUP(B15,TAB.REF!$A$3:$D$140,2) -> CABO CU 1X 1,5MM² 1KV XLPE | D15: =VLOOKUP(B15,TAB.REF!$A$3:$D$140,3) -> M | E15: 52.5 | F15: =VLOOKUP(B15,TAB.REF!$A$3:$D$140,4) -> 1.15 | G15: 60.38 | H15: 1.51 | I15: 79.28
A16: 7 | B16: 2931 | C16: =VLOOKUP(B16,TAB.REF!$A$3:$D$140,2) -> CABO DE AÇO MR 1/4P (6,4MM) 7 FIOS | D16: =VLOOKUP(B16,TAB.REF!$A$3:$D$140,3) -> KG | E16: 11.3 | F16: =VLOOKUP(B16,TAB.REF!$A$3:$D$140,4) -> 2.76 | G16: 31.19 | H16: 3.63 | I16: 41.02
A17: 8 | B17: 226373 | C17: =VLOOKUP(B17,TAB.REF!$A$3:$D$140,2) -> CABO QUADRUPLEX CA 3X1X 70+70 1KV | D17: =VLOOKUP(B17,TAB.REF!$A$3:$D$140,3) -> M | E17: 210 | F17: =VLOOKUP(B17,TAB.REF!$A$3:$D$140,4) -> 22.81 | G17: 4790.1 | H17: 30.01 | I17: 6302.1
A18: 9 | B18: 231860 | C18: =VLOOKUP(B18,TAB.REF!$A$3:$D$140,2) -> CARTUCHO DE APLICAÇÃO AZUL | D18: =VLOOKUP(B18,TAB.REF!$A$3:$D$140,3) -> PC | E18: 6 | F18: =VLOOKUP(B18,TAB.REF!$A$3:$D$140,4) -> 6.53 | G18: 39.18 | H18: 8.59 | I18: 51.54
A19: 10 | B19: 231878 | C19: =VLOOKUP(B19,TAB.REF!$A$3:$D$140,2) -> CARTUCHO DE APLICAÇÃO VERMELHO | D19: =VLOOKUP(B19,TAB.REF!$A$3:$D$140,3) -> PC | E19: 3 | F19: =VLOOKUP(B19,TAB.REF!$A$3:$D$140,4) -> 6.54 | G19: 19.62 | H19: 8.6 | I19: 25.8
A20: 11 | B20: 236851 | C20: =VLOOKUP(B20,TAB.REF!$A$3:$D$140,2) -> CINTA DE AÇO D 190MM | D20: =VLOOKUP(B20,TAB.REF!$A$3:$D$140,3) -> PC | E20: 2 | F20: =VLOOKUP(B20,TAB.REF!$A$3:$D$140,4) -> 17.48 | G20: 34.96 | H20: 23 | I20: 46
A21: 12 | B21: 236877 | C21: =VLOOKUP(B21,TAB.REF!$A$3:$D$140,2) -> CINTA DE AÇO D 210MM | D21: =VLOOKUP(B21,TAB.REF!$A$3:$D$140,3) -> PC | E21: 14 | F21: =VLOOKUP(B21,TAB.REF!$A$3:$D$140,4) -> 18.52 | G21: 259.28 | H21: 24.36 | I21: 341.04
A22: 13 | B22: 236893 | C22: =VLOOKUP(B22,TAB.REF!$A$3:$D$140,2) -> CINTA DE AÇO D 230MM | D22: =VLOOKUP(B22,TAB.REF!$A$3:$D$140,3) -> PC | E22: 16 | F22: =VLOOKUP(B22,TAB.REF!$A$3:$D$140,4) -> 19.34 | G22: 309.44 | H22: 25.44 | I22: 407.04
A23: 14 | B23: 236919 | C23: =VLOOKUP(B23,TAB.REF!$A$3:$D$140,2) -> CINTA DE AÇO D 250MM | D23: =VLOOKUP(B23,TAB.REF!$A$3:$D$140,3) -> PC | E23: 1 | F23: =VLOOKUP(B23,TAB.REF!$A$3:$D$140,4) -> 21.79 | G23: 21.79 | H23: 28.67 | I23: 28.67
A24: 15 | B24: 231753 | C24: =VLOOKUP(B24,TAB.REF!$A$3:$D$140,2) -> CONETOR CUNHA AL 150-50MM² | D24: =VLOOKUP(B24,TAB.REF!$A$3:$D$140,3) -> PC | E24: 3 | F24: =VLOOKUP(B24,TAB.REF!$A$3:$D$140,4) -> 14.41 | G24: 43.23 | H24: 18.96 | I24: 56.88
A25: 16 | B25: 231811 | C25: =VLOOKUP(B25,TAB.REF!$A$3:$D$140,2) -> CONETOR CUNHA AL 150MM² COM ESTRIBO | D25: =VLOOKUP(B25,TAB.REF!$A$3:$D$140,3) -> PC | E25: 3 | F25: =VLOOKUP(B25,TAB.REF!$A$3:$D$140,4) -> 31.85 | G25: 95.55 | H25: 41.9 | I25: 125.7
A26: 17 | B26: 231795 | C26: =VLOOKUP(B26,TAB.REF!$A$3:$D$140,2) -> CONETOR CUNHA AL 50MM² COM ESTRIBO | D26: =VLOOKUP(B26,TAB.REF!$A$3:$D$140,3) -> PC | E26: 3 | F26: =VLOOKUP(B26,TAB.REF!$A$3:$D$140,4) -> 14.96 | G26: 44.88 | H26: 19.68 | I26: 59.04
A27: 18 | B27: 227850 | C27: =VLOOKUP(B27,TAB.REF!$A$3:$D$140,2) -> CONETOR CUNHA CU ITEM 1 | D27: =VLOOKUP(B27,TAB.REF!$A$3:$D$140,3) -> PC | E27: 16 | F27: =VLOOKUP(B27,TAB.REF!$A$3:$D$140,4) -> 3.79 | G27: 60.64 | H27: 4.99 | I27: 79.84
A28: 19 | B28: 227868 | C28: =VLOOKUP(B28,TAB.REF!$A$3:$D$140,2) -> CONETOR CUNHA CU ITEM 2 | D28: =VLOOKUP(B28,TAB.REF!$A$3:$D$140,3) -> PC | E28: 8 | F28: =VLOOKUP(B28,TAB.REF!$A$3:$D$140,4) -> 2.81 | G28: 22.48 | H28: 3.7 | I28: 29.6
A29: 20 | B29: 231696 | C29: =VLOOKUP(B29,TAB.REF!$A$3:$D$140,2) -> CONETOR CUNHA CU ITEM 6 | D29: =VLOOKUP(B29,TAB.REF!$A$3:$D$140,3) -> PC | E29: 3 | F29: =VLOOKUP(B29,TAB.REF!$A$3:$D$140,4) -> 4.27 | G29: 12.81 | H29: 5.62 | I29: 16.86
A30: 21 | B30: 231688 | C30: =VLOOKUP(B30,TAB.REF!$A$3:$D$140,2) -> CONETOR CUNHA CU ITEM 7 | D30: =VLOOKUP(B30,TAB.REF!$A$3:$D$140,3) -> PC | E30: 6 | F30: =VLOOKUP(B30,TAB.REF!$A$3:$D$140,4) -> 3.9 | G30: 23.4 | H30: 5.13 | I30: 30.78
A31: 22 | B31: 331728 | C31: =VLOOKUP(B31,TAB.REF!$A$3:$D$140,2) -> CONETOR CUNHA ITEM 2 + COBERTURA ISOLANTE ITEM 2 | D31: =VLOOKUP(B31,TAB.REF!$A$3:$D$140,3) -> PC | E31: 13 | F31: =VLOOKUP(B31,TAB.REF!$A$3:$D$140,4) -> 3.63 | G31: 47.19 | H31: 4.78 | I31: 62.14
A32: 23 | B32: 327726 | C32: =VLOOKUP(B32,TAB.REF!$A$3:$D$140,2) -> CONETOR DE PERFURAÇÃO 10-70MM²/6-35MM² | D32: =VLOOKUP(B32,TAB.REF!$A$3:$D$140,3) -> PC | E32: 20 | F32: =VLOOKUP(B32,TAB.REF!$A$3:$D$140,4) -> 8.25 | G32: 165 | H32: 10.85 | I32: 217
A33: 24 | B33: 379679 | C33: =VLOOKUP(B33,TAB.REF!$A$3:$D$140,2) -> CONETOR DE PERFURAÇÃO 35-120MM²/1,5MM² | D33: =VLOOKUP(B33,TAB.REF!$A$3:$D$140,3) -> PC | E33: 14 | F33: =VLOOKUP(B33,TAB.REF!$A$3:$D$140,4) -> 5.98 | G33: 83.72 | H33: 7.87 | I33: 110.18
A34: 25 | B34: 327767 | C34: =VLOOKUP(B34,TAB.REF!$A$3:$D$140,2) -> CONETOR DE PERFURAÇÃO 70-240MM²/70-120MM² | D34: =VLOOKUP(B34,TAB.REF!$A$3:$D$140,3) -> PC | E34: 6 | F34: =VLOOKUP(B34,TAB.REF!$A$3:$D$140,4) -> 16 | G34: 96 | H34: 21.05 | I34: 126.3
A35: 26 | B35: 227769 | C35: =VLOOKUP(B35,TAB.REF!$A$3:$D$140,2) -> CONETOR FORMATO H ITEM 1 CAA 13-34MM² / 13-34MM² | D35: =VLOOKUP(B35,TAB.REF!$A$3:$D$140,3) -> PC | E35: 1 | F35: =VLOOKUP(B35,TAB.REF!$A$3:$D$140,4) -> 2.25 | G35: 2.25 | H35: 2.96 | I35: 2.96
A36: 27 | B36: 227785 | C36: =VLOOKUP(B36,TAB.REF!$A$3:$D$140,2) -> CONETOR FORMATO H ITEM 3 CAA 42-67MM² / 42-67MM² | D36: =VLOOKUP(B36,TAB.REF!$A$3:$D$140,3) -> PC | E36: 3 | F36: =VLOOKUP(B36,TAB.REF!$A$3:$D$140,4) -> 4.77 | G36: 14.31 | H36: 6.28 | I36: 18.84
A37: 28 | B37: 231175 | C37: =VLOOKUP(B37,TAB.REF!$A$3:$D$140,2) -> CONETOR PARA ATERRAMENTO DE FERRAGENS DE IP | D37: =VLOOKUP(B37,TAB.REF!$A$3:$D$140,3) -> PC | E37: 14 | F37: =VLOOKUP(B37,TAB.REF!$A$3:$D$140,4) -> 1.3 | G37: =ROUND(F37*E37,2) -> 18.2 | H37: =ROUND(F37*(1+$I$6),2) -> 1.71 | I37: =ROUND(H37*E37,2) -> 23.94
A38: 29 | B38: 227389 | C38: =VLOOKUP(B38,TAB.REF!$A$3:$D$140,2) -> CONETOR TERMINAL COMPRESSÃO 1F AÇO 6,4MM / 21MM² | D38: =VLOOKUP(B38,TAB.REF!$A$3:$D$140,3) -> PC | E38: 5 | F38: =VLOOKUP(B38,TAB.REF!$A$3:$D$140,4) -> 2.07 | G38: 10.35 | H38: 2.72 | I38: 13.6
A39: 30 | B39: 222539 | C39: =VLOOKUP(B39,TAB.REF!$A$3:$D$140,2) -> HASTE ATERRAMENTO 2400MM | D39: =VLOOKUP(B39,TAB.REF!$A$3:$D$140,3) -> PC | E39: 5 | F39: =VLOOKUP(B39,TAB.REF!$A$3:$D$140,4) -> 40.75 | G39: 203.75 | H39: 53.61 | I39: 268.05
A40: 31 | B40: 354899 | C40: =VLOOKUP(B40,TAB.REF!$A$3:$D$140,2) -> LÂMPADA VAPOR DE SÓDIO 150W AP E-40 TUBULAR | D40: =VLOOKUP(B40,TAB.REF!$A$3:$D$140,3) -> PC | E40: 6 | F40: =VLOOKUP(B40,TAB.REF!$A$3:$D$140,4) -> 30.81 | G40: 184.86 | H40: 40.53 | I40: 243.18
A41: 32 | B41: 354900 | C41: =VLOOKUP(B41,TAB.REF!$A$3:$D$140,2) -> LUMINÁRIA COM EQUIPAMENTO VS 150W TUBULAR | D41: =VLOOKUP(B41,TAB.REF!$A$3:$D$140,3) -> PC | E41: 6 | F41: =VLOOKUP(B41,TAB.REF!$A$3:$D$140,4) -> 359.87 | G41: 2159.22 | H41: 473.44 | I41: 2840.64
A42: 33 | B42: 374393 | C42: =VLOOKUP(B42,TAB.REF!$A$3:$D$140,2) -> MANTA AUTO-ADESIVA PARA EMENDA CABO 15KV RDP | D42: =VLOOKUP(B42,TAB.REF!$A$3:$D$140,3) -> PC | E42: 5 | F42: =VLOOKUP(B42,TAB.REF!$A$3:$D$140,4) -> 66.28 | G42: 331.4 | H42: 87.2 | I42: 436
A43: 34 | B43: 237289 | C43: =VLOOKUP(B43,TAB.REF!$A$3:$D$140,2) -> OLHAL PARA PARAFUSO 50KN | D43: =VLOOKUP(B43,TAB.REF!$A$3:$D$140,3) -> PC | E43: 12 | F43: =VLOOKUP(B43,TAB.REF!$A$3:$D$140,4) -> 16.76 | G43: 201.12 | H43: 22.05 | I43: 264.6
A44: 35 | B44: 66878 | C44: =VLOOKUP(B44,TAB.REF!$A$3:$D$140,2) -> PARAFUSO CABEÇA ABAULADA M16X 45MM | D44: =VLOOKUP(B44,TAB.REF!$A$3:$D$140,3) -> PC | E44: 30 | F44: =VLOOKUP(B44,TAB.REF!$A$3:$D$140,4) -> 2.17 | G44: 65.1 | H44: 2.85 | I44: 85.5
A45: 36 | B45: 66886 | C45: =VLOOKUP(B45,TAB.REF!$A$3:$D$140,2) -> PARAFUSO CABEÇA ABAULADA M16X 70MM | D45: =VLOOKUP(B45,TAB.REF!$A$3:$D$140,3) -> PC | E45: 76 | F45: =VLOOKUP(B45,TAB.REF!$A$3:$D$140,4) -> 2.64 | G45: 200.64 | H45: 3.47 | I45: 263.72
A46: 37 | B46: 207415 | C46: =VLOOKUP(B46,TAB.REF!$A$3:$D$140,2) -> POSTE CONCRETO CIRCULAR 11M 300DAN | D46: =VLOOKUP(B46,TAB.REF!$A$3:$D$140,3) -> PC | E46: 6 | F46: =VLOOKUP(B46,TAB.REF!$A$3:$D$140,4) -> 695.96 | G46: 4175.76 | H46: 915.6 | I46: 5493.6
A47: 38 | B47: 207449 | C47: =VLOOKUP(B47,TAB.REF!$A$3:$D$140,2) -> POSTE CONCRETO CIRCULAR 11M 600DAN | D47: =VLOOKUP(B47,TAB.REF!$A$3:$D$140,3) -> PC | E47: 1 | F47: =VLOOKUP(B47,TAB.REF!$A$3:$D$140,4) -> 951.41 | G47: 951.41 | H47: 1251.67 | I47: 1251.67
A48: 39 | B48: 355028 | C48: =VLOOKUP(B48,TAB.REF!$A$3:$D$140,2) -> REATOR LÂMPADA VS 150W INTEGRADO | D48: =VLOOKUP(B48,TAB.REF!$A$3:$D$140,3) -> PC | E48: 6 | F48: =VLOOKUP(B48,TAB.REF!$A$3:$D$140,4) -> 75.36 | G48: 452.16 | H48: 99.14 | I48: 594.84
A49: 40 | B49: 327361 | C49: =VLOOKUP(B49,TAB.REF!$A$3:$D$140,2) -> RELÉ FOTOELÉTRICO ELETRÔNICO 105-305V | D49: =VLOOKUP(B49,TAB.REF!$A$3:$D$140,3) -> PC | E49: 6 | F49: =VLOOKUP(B49,TAB.REF!$A$3:$D$140,4) -> 19.1 | G49: 114.6 | H49: 25.13 | I49: 150.78
A50: 41 | B50: 237768 | C50: =VLOOKUP(B50,TAB.REF!$A$3:$D$140,2) -> SAPATILHA | D50: =VLOOKUP(B50,TAB.REF!$A$3:$D$140,3) -> PC | E50: 4 | F50: =VLOOKUP(B50,TAB.REF!$A$3:$D$140,4) -> 1.99 | G50: 7.96 | H50: 2.62 | I50: 10.48
A51: 42 | B51: 237081 | C51: =VLOOKUP(B51,TAB.REF!$A$3:$D$140,2) -> SUPORTE 240MM TRANSFORMADOR POSTE CC | D51: =VLOOKUP(B51,TAB.REF!$A$3:$D$140,3) -> PC | E51: 2 | F51: =VLOOKUP(B51,TAB.REF!$A$3:$D$140,4) -> 104.81 | G51: 209.62 | H51: 137.89 | I51: 275.78
A52: VALOR TOTAL MATERIAIS | F52: =ROUND(SUM(G10:G51),2) -> 16784.77 | H52: =ROUND(SUM(I10:I51),2) -> 22081.55
A53: MÃO DE OBRA DE CONSTRUÇÃO | F53: PREÇO SEM BDI | H53: PREÇO COM BDI
A54: ITEM | B54: CÓDIGO | C54: DESCRIÇÃO | D54: UN | E54: QUANT. | F54: R$.UNIT. | G54: R$. TOTAL | H54: R$.UNIT. | I54: R$. TOTAL
A55: 1 | B55: US. CONST. RDA | C55: =VLOOKUP(B55,TAB.REF!$A$2:$D$140,2) -> MÃO DE OBRA DE CONSTRUÇÃO DE REDE ELÉTRICA | D55: US | E55: 8.25 | F55: =VLOOKUP(B55,TAB.REF!$A$2:$D$140,4) -> 1538.3 | G55: =ROUND(E55*F55,2) -> 12690.98 | H55: =F55*(1+$I$6) -> 2023.79 | I55: =ROUND(H55*E55,2) -> 16696.27
A56: 2 | B56: US. CONST. RDS | C56: =VLOOKUP(B56,TAB.REF!$A$2:$D$140,2) -> MÃO DE OBRA DE CONSTRUÇÃO DE REDE SUBTERRÂNEA | D56: US | F56: =VLOOKUP(B56,TAB.REF!$A$2:$D$140,4) -> 1538.3 | G56: =ROUND(E56*F56,2) -> 0 | H56: =F56*(1+$I$6) -> 2023.79 | I56: =ROUND(H56*E56,2) -> 0
A57: VALOR TOTAL MÃO DE OBRA | F57: =SUM(G55:G56) -> 12690.98 | H57: =SUM(I55:I56) -> 16696.27
A58: RESUMO | F58: PREÇO SEM BDI | H58: PREÇO COM BDI
A59: VALOR TOTAL MATERIAIS | F59: =ROUND(F52,2) -> 16784.77 | H59: =ROUND(H52,2) -> 22081.55
A60: VALOR TOTAL MÃO DE OBRA | F60: =ROUND(F57,2) -> 12690.98 | H60: =H57 -> 16696.27
A61: VALOR TOTAL | F61: =ROUND(SUM(F59:G60),2) -> 29475.75 | H61: =SUM(H59:I60) -> 38777.82
A64: =CONCATENATE(RESUMO!B18," ",RESUMO!C18) -> Patos de Minas, 4 de fevereiro de 2020
A67: _______________________________________________________
A68: =RESUMO!B21 -> Diogo Soares Resende
A69: =RESUMO!B22 -> Eng. Eletricista
A70: =RESUMO!B23 -> CREA: 194.419D/MG

Sheet CVCTEC-80
A2: PLANILHA ORÇAMENTÁRIA
A3: OBJETO: PROJETOS DE MODIFICAÇÃO, EXTENSÃO DE REDE E ILUMINAÇÃO PÚBLICA
A4: LOCAL: CVCTEC_PMINAS_80 - RUA ARTHUR MAGALHAES - B. NOVA FLORESTA
A5: RESPONSÁVEL TÉCNICO: DIOGO SOARES RESENDE | F5: CREA: | G5: =LEFT(RIGHT(RESUMO!B23,11),8) -> 194.419D | H5: ART:
A6: REFERENCIA DE PREÇOS: PREÇOS DE MERCADO | F6: DATA: | G6: =RESUMO!E5 -> 2020-02-04 | H6: BDI : | I6: =RESUMO!F5 -> 0.3156
A8: ITEM | B8: CÓDIGO | C8: DESCRIÇÃO | D8: UNID. | E8: QUANT. | F8: PREÇO SEM BDI | H8: PREÇO COM BDI
F9: UNITÁRIO | G9: TOTAL | H9: UNITÁRIO | I9: TOTAL
A10: 1 | B10: 237222 | C10: =VLOOKUP(B10,TAB.REF!$A$3:$D$140,2) -> AFASTADOR ARMAÇÃO SECUNDÁRIA 500MM | D10: =VLOOKUP(B10,TAB.REF!$A$3:$D$140,3) -> PC | E10: 1 | F10: =VLOOKUP(B10,TAB.REF!$A$3:$D$140,4) -> 124.8 | G10: =ROUND(F10*E10,2) -> 124.8 | H10: =ROUND(F10*(1+$I$6),2) -> 164.19 | I10: =ROUND(H10*E10,2) -> 164.19
A11: 2 | B11: 228890 | C11: =VLOOKUP(B11,TAB.REF!$A$3:$D$140,2) -> ALÇA PREFORMADA CA/CAA 54MM² (1/0AWG) | D11: =VLOOKUP(B11,TAB.REF!$A$3:$D$140,3) -> PC | E11: 1 | F11: =VLOOKUP(B11,TAB.REF!$A$3:$D$140,4) -> 7.35 | G11: 7.35 | H11: 9.67 | I11: 9.67
A12: 3 | B12: 237685 | C12: =VLOOKUP(B12,TAB.REF!$A$3:$D$140,2) -> ALÇA PREFORMADA ESTAI CABO AÇO 6,4MM | D12: =VLOOKUP(B12,TAB.REF!$A$3:$D$140,3) -> PC | E12: 3 | F12: =VLOOKUP(B12,TAB.REF!$A$3:$D$140,4) -> 6.75 | G12: 20.25 | H12: 8.88 | I12: 26.64
A13: 4 | B13: 237677 | C13: =VLOOKUP(B13,TAB.REF!$A$3:$D$140,2) -> ALÇA PREFORMADA ESTAI CABO AÇO 9,5MM | D13: =VLOOKUP(B13,TAB.REF!$A$3:$D$140,3) -> PC | E13: 20 | F13: =VLOOKUP(B13,TAB.REF!$A$3:$D$140,4) -> 12.24 | G13: 244.8 | H13: 16.1 | I13: 322
A14: 5 | B14: 228981 | C14: =VLOOKUP(B14,TAB.REF!$A$3:$D$140,2) -> ALÇA PREFORMADA NEUTRO CA/CAL 16MM² | D14: =VLOOKUP(B14,TAB.REF!$A$3:$D$140,3) -> PC | E14: 34 | F14: =VLOOKUP(B14,TAB.REF!$A$3:$D$140,4) -> 1.3 | G14: 44.2 | H14: 1.71 | I14: 58.14
A15: 6 | B15: 229005 | C15: =VLOOKUP(B15,TAB.REF!$A$3:$D$140,2) -> ALÇA PREFORMADA NEUTRO CA/CAL 70MM² | D15: =VLOOKUP(B15,TAB.REF!$A$3:$D$140,3) -> PC | E15: 22 | F15: =VLOOKUP(B15,TAB.REF!$A$3:$D$140,4) -> 6.03 | G15: 132.66 | H15: 7.93 | I15: 174.46
A16: 7 | B16: 219709 | C16: =VLOOKUP(B16,TAB.REF!$A$3:$D$140,2) -> ALÇA PREFORMADA OLHAL CA/CAA 34MM² (2AWG) | D16: =VLOOKUP(B16,TAB.REF!$A$3:$D$140,3) -> PC | E16: 3 | F16: =VLOOKUP(B16,TAB.REF!$A$3:$D$140,4) -> 12.17 | G16: 36.51 | H16: 16.01 | I16: 48.03
A17: 8 | B17: 327700 | C17: =VLOOKUP(B17,TAB.REF!$A$3:$D$140,2) -> ANEL ELASTOMÉRICO P/ ISOLADOR PINO POLIMÉRICO 15KV | D17: =VLOOKUP(B17,TAB.REF!$A$3:$D$140,3) -> PC | E17: 13 | F17: =VLOOKUP(B17,TAB.REF!$A$3:$D$140,4) -> 4.29 | G17: 55.77 | H17: 5.64 | I17: 73.32
A18: 9 | B18: 237230 | C18: =VLOOKUP(B18,TAB.REF!$A$3:$D$140,2) -> ARMAÇÃO SECUNDÁRIO 1 ESTRIBO | D18: =VLOOKUP(B18,TAB.REF!$A$3:$D$140,3) -> PC | E18: 1 | F18: =VLOOKUP(B18,TAB.REF!$A$3:$D$140,4) -> 11 | G18: 11 | H18: 14.47 | I18: 14.47
A19: 10 | B19: 75721 | C19: =VLOOKUP(B19,TAB.REF!$A$3:$D$140,2) -> ARRUELA QUADRADA 38X18X3MM | D19: =VLOOKUP(B19,TAB.REF!$A$3:$D$140,3) -> PC | E19: 53 | F19: =VLOOKUP(B19,TAB.REF!$A$3:$D$140,4) -> 0.52 | G19: 27.56 | H19: 0.68 | I19: 36.04
A20: 11 | B20: 327692 | C20: =VLOOKUP(B20,TAB.REF!$A$3:$D$140,2) -> BRAÇADEIRA PLÁSTICA CABO MULTIPLEXADO | D20: =VLOOKUP(B20,TAB.REF!$A$3:$D$140,3) -> PC | E20: 47 | F20: =VLOOKUP(B20,TAB.REF!$A$3:$D$140,4) -> 1.15 | G20: 54.05 | H20: 1.51 | I20: 70.97
A21: 12 | B21: 328138 | C21: =VLOOKUP(B21,TAB.REF!$A$3:$D$140,2) -> BRAÇO ANTIBALANÇO 15KV | D21: =VLOOKUP(B21,TAB.REF!$A$3:$D$140,3) -> PC | E21: 1 | F21: =VLOOKUP(B21,TAB.REF!$A$3:$D$140,4) -> 25.79 | G21: 25.79 | H21: 33.93 | I21: 33.93
A22: 13 | B22: 258905 | C22: =VLOOKUP(B22,TAB.REF!$A$3:$D$140,2) -> BRAÇO PARA IP TIPO CURTO | D22: =VLOOKUP(B22,TAB.REF!$A$3:$D$140,3) -> PC | E22: 9 | F22: =VLOOKUP(B22,TAB.REF!$A$3:$D$140,4) -> 39.8 | G22: 358.2 | H22: 52.36 | I22: 471.24
A23: 14 | B23: 258921 | C23: =VLOOKUP(B23,TAB.REF!$A$3:$D$140,2) -> BRAÇO PARA IP TIPO MÉDIO | D23: =VLOOKUP(B23,TAB.REF!$A$3:$D$140,3) -> PC | E23: 4 | F23: =VLOOKUP(B23,TAB.REF!$A$3:$D$140,4) -> 166.63 | G23: 666.52 | H23: 219.22 | I23: 876.88
A24: 15 | B24: 211789 | C24: =VLOOKUP(B24,TAB.REF!$A$3:$D$140,2) -> BRAÇO SUPORTE C | D24: =VLOOKUP(B24,TAB.REF!$A$3:$D$140,3) -> PC | E24: 7 | F24: =VLOOKUP(B24,TAB.REF!$A$3:$D$140,4) -> 92.79 | G24: 649.53 | H24: 122.07 | I24: 854.49
A25: 16 | B25: 231712 | C25: =VLOOKUP(B25,TAB.REF!$A$3:$D$140,2) -> BRAÇO SUPORTE COM GRAMPO DE SUSPENSÃO ITEM 2 | D25: =VLOOKUP(B25,TAB.REF!$A$3:$D$140,3) -> CJ | E25: 5 | F25: =VLOOKUP(B25,TAB.REF!$A$3:$D$140,4) -> 38.38 | G25: 191.9 | H25: 50.49 | I25: 252.45
A26: 17 | B26: 211771 | C26: =VLOOKUP(B26,TAB.REF!$A$3:$D$140,2) -> BRAÇO SUPORTE L | D26: =VLOOKUP(B26,TAB.REF!$A$3:$D$140,3) -> PC | E26: 2 | F26: =VLOOKUP(B26,TAB.REF!$A$3:$D$140,4) -> 72.27 | G26: 144.54 | H26: 95.08 | I26: 190.16
A27: 18 | B27: 225623 | C27: =VLOOKUP(B27,TAB.REF!$A$3:$D$140,2) -> CABO AL 1X 16MM² 1KV | D27: =VLOOKUP(B27,TAB.REF!$A$3:$D$140,3) -> M | E27: 3 | F27: =VLOOKUP(B27,TAB.REF!$A$3:$D$140,4) -> 1.85 | G27: 5.55 | H27: 2.43 | I27: 7.29
A28: 19 | B28: 231548 | C28: =VLOOKUP(B28,TAB.REF!$A$3:$D$140,2) -> CABO AL 1X 50MM² 15KV PROTEGIDO | D28: =VLOOKUP(B28,TAB.REF!$A$3:$D$140,3) -> M | E28: 450.5 | F28: =VLOOKUP(B28,TAB.REF!$A$3:$D$140,4) -> 7.15 | G28: 3221.08 | H28: 9.41 | I28: 4239.21
A29: 20 | B29: 225656 | C29: =VLOOKUP(B29,TAB.REF!$A$3:$D$140,2) -> CABO AL 1X 70MM² 1KV | D29: =VLOOKUP(B29,TAB.REF!$A$3:$D$140,3) -> M | E29: 6 | F29: =VLOOKUP(B29,TAB.REF!$A$3:$D$140,4) -> 6.53 | G29: 39.18 | H29: 8.59 | I29: 51.54
A30: 21 | B30: 220434 | C30: =VLOOKUP(B30,TAB.REF!$A$3:$D$140,2) -> CABO CA 53MM² (1/0AWG) | D30: =VLOOKUP(B30,TAB.REF!$A$3:$D$140,3) -> KG | E30: 4.93 | F30: =VLOOKUP(B30,TAB.REF!$A$3:$D$140,4) -> 21.15 | G30: 104.27 | H30: 27.82 | I30: 137.15
A31: 22 | B31: 225615 | C31: =VLOOKUP(B31,TAB.REF!$A$3:$D$140,2) -> CABO CU 1X 1,5MM² 1KV XLPE | D31: =VLOOKUP(B31,TAB.REF!$A$3:$D$140,3) -> M | E31: 112 | F31: =VLOOKUP(B31,TAB.REF!$A$3:$D$140,4) -> 1.15 | G31: 128.8 | H31: 1.51 | I31: 169.12
A32: 23 | B32: 2964 | C32: =VLOOKUP(B32,TAB.REF!$A$3:$D$140,2) -> CABO DE AÇO HS 3/8P (9,5MM²) 7FIOS | D32: =VLOOKUP(B32,TAB.REF!$A$3:$D$140,3) -> KG | E32: 63.74 | F32: =VLOOKUP(B32,TAB.REF!$A$3:$D$140,4) -> 7.78 | G32: 495.9 | H32: 10.24 | I32: 652.7
A33: 24 | B33: 2931 | C33: =VLOOKUP(B33,TAB.REF!$A$3:$D$140,2) -> CABO DE AÇO MR 1/4P (6,4MM) 7 FIOS | D33: =VLOOKUP(B33,TAB.REF!$A$3:$D$140,3) -> KG | E33: 32.6 | F33: =VLOOKUP(B33,TAB.REF!$A$3:$D$140,4) -> 2.76 | G33: 89.98 | H33: 3.63 | I33: 118.34
A34: 25 | B34: 226373 | C34: =VLOOKUP(B34,TAB.REF!$A$3:$D$140,2) -> CABO QUADRUPLEX CA 3X1X 70+70 1KV | D34: =VLOOKUP(B34,TAB.REF!$A$3:$D$140,3) -> M | E34: 277 | F34: =VLOOKUP(B34,TAB.REF!$A$3:$D$140,4) -> 22.81 | G34: 6318.37 | H34: 30.01 | I34: 8312.77
A35: 26 | B35: 231589 | C35: =VLOOKUP(B35,TAB.REF!$A$3:$D$140,2) -> CABO TRIPLEX CA 2X1X70+70 1KV | D35: =VLOOKUP(B35,TAB.REF!$A$3:$D$140,3) -> M | E35: 83 | F35: =VLOOKUP(B35,TAB.REF!$A$3:$D$140,4) -> 16.08 | G35: 1334.64 | H35: 21.15 | I35: 1755.45
A36: 27 | B36: 223818 | C36: =VLOOKUP(B36,TAB.REF!$A$3:$D$140,2) -> CANTONEIRA PARA BRAÇO C | D36: =VLOOKUP(B36,TAB.REF!$A$3:$D$140,3) -> PC | E36: 3 | F36: =VLOOKUP(B36,TAB.REF!$A$3:$D$140,4) -> 60.9 | G36: 182.7 | H36: 80.12 | I36: 240.36
A37: 28 | B37: 231860 | C37: =VLOOKUP(B37,TAB.REF!$A$3:$D$140,2) -> CARTUCHO DE APLICAÇÃO AZUL | D37: =VLOOKUP(B37,TAB.REF!$A$3:$D$140,3) -> PC | E37: 12 | F37: =VLOOKUP(B37,TAB.REF!$A$3:$D$140,4) -> 6.53 | G37: 78.36 | H37: 8.59 | I37: 103.08
A38: 29 | B38: 231878 | C38: =VLOOKUP(B38,TAB.REF!$A$3:$D$140,2) -> CARTUCHO DE APLICAÇÃO VERMELHO | D38: =VLOOKUP(B38,TAB.REF!$A$3:$D$140,3) -> PC | E38: 12 | F38: =VLOOKUP(B38,TAB.REF!$A$3:$D$140,4) -> 6.54 | G38: 78.48 | H38: 8.6 | I38: 103.2
A39: 30 | B39: 270439 | C39: =VLOOKUP(B39,TAB.REF!$A$3:$D$140,2) -> CHAVE FUSÍVEL 15KV COM PORTA FUSÍVEL 100A 7,1KA | D39: =VLOOKUP(B39,TAB.REF!$A$3:$D$140,3) -> PC | E39: 9 | F39: =VLOOKUP(B39,TAB.REF!$A$3:$D$140,4) -> 243.45 | G39: 2191.05 | H39: 320.28 | I39: 2882.52
A40: 31 | B40: 236836 | C40: =VLOOKUP(B40,TAB.REF!$A$3:$D$140,2) -> CINTA DE AÇO D 170MM | D40: =VLOOKUP(B40,TAB.REF!$A$3:$D$140,3) -> PC | E40: 7 | F40: =VLOOKUP(B40,TAB.REF!$A$3:$D$140,4) -> 16.28 | G40: 113.96 | H40: 21.42 | I40: 149.94
A41: 32 | B41: 236844 | C41: =VLOOKUP(B41,TAB.REF!$A$3:$D$140,2) -> CINTA DE AÇO D 180MM | D41: =VLOOKUP(B41,TAB.REF!$A$3:$D$140,3) -> PC | E41: 5 | F41: =VLOOKUP(B41,TAB.REF!$A$3:$D$140,4) -> 16.51 | G41: =ROUND(F41*E41,2) -> 82.55 | H41: =ROUND(F41*(1+$I$6),2) -> 21.72 | I41: =ROUND(H41*E41,2) -> 108.6
A42: 33 | B42: 236851 | C42: =VLOOKUP(B42,TAB.REF!$A$3:$D$140,2) -> CINTA DE AÇO D 190MM | D42: =VLOOKUP(B42,TAB.REF!$A$3:$D$140,3) -> PC | E42: 5 | F42: =VLOOKUP(B42,TAB.REF!$A$3:$D$140,4) -> 17.48 | G42: 87.4 | H42: 23 | I42: 115
A43: 34 | B43: 236869 | C43: =VLOOKUP(B43,TAB.REF!$A$3:$D$140,2) -> CINTA DE AÇO D 200MM | D43: =VLOOKUP(B43,TAB.REF!$A$3:$D$140,3) -> PC | E43: 5 | F43: =VLOOKUP(B43,TAB.REF!$A$3:$D$140,4) -> 17.93 | G43: 89.65 | H43: 23.59 | I43: 117.95
A44: 35 | B44: 236877 | C44: =VLOOKUP(B44,TAB.REF!$A$3:$D$140,2) -> CINTA DE AÇO D 210MM | D44: =VLOOKUP(B44,TAB.REF!$A$3:$D$140,3) -> PC | E44: 24 | F44: =VLOOKUP(B44,TAB.REF!$A$3:$D$140,4) -> 18.52 | G44: 444.48 | H44: 24.36 | I44: 584.64
A45: 36 | B45: 236885 | C45: =VLOOKUP(B45,TAB.REF!$A$3:$D$140,2) -> CINTA DE AÇO D 220MM | D45: =VLOOKUP(B45,TAB.REF!$A$3:$D$140,3) -> PC | E45: 5 | F45: =VLOOKUP(B45,TAB.REF!$A$3:$D$140,4) -> 18.66 | G45: 93.3 | H45: 24.55 | I45: 122.75
A46: 37 | B46: 236893 | C46: =VLOOKUP(B46,TAB.REF!$A$3:$D$140,2) -> CINTA DE AÇO D 230MM | D46: =VLOOKUP(B46,TAB.REF!$A$3:$D$140,3) -> PC | E46: 20 | F46: =VLOOKUP(B46,TAB.REF!$A$3:$D$140,4) -> 19.34 | G46: 386.8 | H46: 25.44 | I46: 508.8
A47: 38 | B47: 236901 | C47: =VLOOKUP(B47,TAB.REF!$A$3:$D$140,2) -> CINTA DE AÇO D 240MM | D47: =VLOOKUP(B47,TAB.REF!$A$3:$D$140,3) -> PC | E47: 3 | F47: =VLOOKUP(B47,TAB.REF!$A$3:$D$140,4) -> 20.51 | G47: 61.53 | H47: 26.98 | I47: 80.94
A48: 39 | B48: 236919 | C48: =VLOOKUP(B48,TAB.REF!$A$3:$D$140,2) -> CINTA DE AÇO D 250MM | D48: =VLOOKUP(B48,TAB.REF!$A$3:$D$140,3) -> PC | E48: 10 | F48: =VLOOKUP(B48,TAB.REF!$A$3:$D$140,4) -> 21.79 | G48: 217.9 | H48: 28.67 | I48: 286.7
A49: 40 | B49: 236927 | C49: =VLOOKUP(B49,TAB.REF!$A$3:$D$140,2) -> CINTA DE AÇO D 260MM | D49: =VLOOKUP(B49,TAB.REF!$A$3:$D$140,3) -> PC | E49: 2 | F49: =VLOOKUP(B49,TAB.REF!$A$3:$D$140,4) -> 21.62 | G49: 43.24 | H49: 28.44 | I49: 56.88
A50: 41 | B50: 236935 | C50: =VLOOKUP(B50,TAB.REF!$A$3:$D$140,2) -> CINTA DE AÇO D 270MM | D50: =VLOOKUP(B50,TAB.REF!$A$3:$D$140,3) -> PC | E50: 4 | F50: =VLOOKUP(B50,TAB.REF!$A$3:$D$140,4) -> 22.15 | G50: 88.6 | H50: 29.14 | I50: 116.56
A51: 42 | B51: 236943 | C51: =VLOOKUP(B51,TAB.REF!$A$3:$D$140,2) -> CINTA DE AÇO D 280MM | D51: =VLOOKUP(B51,TAB.REF!$A$3:$D$140,3) -> PC | E51: 1 | F51: =VLOOKUP(B51,TAB.REF!$A$3:$D$140,4) -> 25.47 | G51: 25.47 | H51: 33.51 | I51: 33.51
A52: 43 | B52: 236950 | C52: =VLOOKUP(B52,TAB.REF!$A$3:$D$140,2) -> CINTA DE AÇO D 290MM | D52: =VLOOKUP(B52,TAB.REF!$A$3:$D$140,3) -> PC | E52: 1 | F52: =VLOOKUP(B52,TAB.REF!$A$3:$D$140,4) -> 23.93 | G52: 23.93 | H52: 31.48 | I52: 31.48
A53: 44 | B53: 375058 | C53: =VLOOKUP(B53,TAB.REF!$A$3:$D$140,2) -> COBERTURA PROTETORA P/ BCH BT TRANSFORMADOR ITEM 1 | D53: =VLOOKUP(B53,TAB.REF!$A$3:$D$140,3) -> PC | E53: 7 | F53: =VLOOKUP(B53,TAB.REF!$A$3:$D$140,4) -> 8.41 | G53: 58.87 | H53: 11.06 | I53: 77.42
A54: 45 | B54: 39586 | C54: =VLOOKUP(B54,TAB.REF!$A$3:$D$140,2) -> COBERTURA PROTETORA PARA BUCHA DE EQUIPAMENTO | D54: =VLOOKUP(B54,TAB.REF!$A$3:$D$140,3) -> PC | E54: 3 | F54: =VLOOKUP(B54,TAB.REF!$A$3:$D$140,4) -> 9.67 | G54: 29.01 | H54: 12.72 | I54: 38.16
A55: 46 | B55: 378809 | C55: =VLOOKUP(B55,TAB.REF!$A$3:$D$140,2) -> CONECTOR TERMINAL P/ BUCHA,50 MM²,RETO,COMPRESSÃO | D55: =VLOOKUP(B55,TAB.REF!$A$3:$D$140,3) -> PC | E55: 3 | F55: =VLOOKUP(B55,TAB.REF!$A$3:$D$140,4) -> 12.06 | G55: 36.18 | H55: 15.87 | I55: 47.61
A56: 47 | B56: 231811 | C56: =VLOOKUP(B56,TAB.REF!$A$3:$D$140,2) -> CONETOR CUNHA AL 150MM² COM ESTRIBO | D56: =VLOOKUP(B56,TAB.REF!$A$3:$D$140,3) -> PC | E56: 3 | F56: =VLOOKUP(B56,TAB.REF!$A$3:$D$140,4) -> 31.85 | G56: 95.55 | H56: 41.9 | I56: 125.7
A57: 48 | B57: 231795 | C57: =VLOOKUP(B57,TAB.REF!$A$3:$D$140,2) -> CONETOR CUNHA AL 50MM² COM ESTRIBO | D57: =VLOOKUP(B57,TAB.REF!$A$3:$D$140,3) -> PC | E57: 12 | F57: =VLOOKUP(B57,TAB.REF!$A$3:$D$140,4) -> 14.96 | G57: 179.52 | H57: 19.68 | I57: 236.16
A58: 49 | B58: 227850 | C58: =VLOOKUP(B58,TAB.REF!$A$3:$D$140,2) -> CONETOR CUNHA CU ITEM 1 | D58: =VLOOKUP(B58,TAB.REF!$A$3:$D$140,3) -> PC | E58: 40 | F58: =VLOOKUP(B58,TAB.REF!$A$3:$D$140,4) -> 3.79 | G58: 151.6 | H58: 4.99 | I58: 199.6
A59: 50 | B59: 227868 | C59: =VLOOKUP(B59,TAB.REF!$A$3:$D$140,2) -> CONETOR CUNHA CU ITEM 2 | D59: =VLOOKUP(B59,TAB.REF!$A$3:$D$140,3) -> PC | E59: 20 | F59: =VLOOKUP(B59,TAB.REF!$A$3:$D$140,4) -> 2.81 | G59: 56.2 | H59: 3.7 | I59: 74
A60: 51 | B60: 231696 | C60: =VLOOKUP(B60,TAB.REF!$A$3:$D$140,2) -> CONETOR CUNHA CU ITEM 6 | D60: =VLOOKUP(B60,TAB.REF!$A$3:$D$140,3) -> PC | E60: 7 | F60: =VLOOKUP(B60,TAB.REF!$A$3:$D$140,4) -> 4.27 | G60: 29.89 | H60: 5.62 | I60: 39.34
A61: 52 | B61: 231688 | C61: =VLOOKUP(B61,TAB.REF!$A$3:$D$140,2) -> CONETOR CUNHA CU ITEM 7 | D61: =VLOOKUP(B61,TAB.REF!$A$3:$D$140,3) -> PC | E61: 18 | F61: =VLOOKUP(B61,TAB.REF!$A$3:$D$140,4) -> 3.9 | G61: 70.2 | H61: 5.13 | I61: 92.34
A62: 53 | B62: 331728 | C62: =VLOOKUP(B62,TAB.REF!$A$3:$D$140,2) -> CONETOR CUNHA ITEM 2 + COBERTURA ISOLANTE ITEM 2 | D62: =VLOOKUP(B62,TAB.REF!$A$3:$D$140,3) -> PC | E62: 31 | F62: =VLOOKUP(B62,TAB.REF!$A$3:$D$140,4) -> 3.63 | G62: 112.53 | H62: 4.78 | I62: 148.18
A63: 54 | B63: 327726 | C63: =VLOOKUP(B63,TAB.REF!$A$3:$D$140,2) -> CONETOR DE PERFURAÇÃO 10-70MM²/6-35MM² | D63: =VLOOKUP(B63,TAB.REF!$A$3:$D$140,3) -> PC | E63: 42 | F63: =VLOOKUP(B63,TAB.REF!$A$3:$D$140,4) -> 8.25 | G63: 346.5 | H63: 10.85 | I63: 455.7
A64: 55 | B64: 379679 | C64: =VLOOKUP(B64,TAB.REF!$A$3:$D$140,2) -> CONETOR DE PERFURAÇÃO 35-120MM²/1,5MM² | D64: =VLOOKUP(B64,TAB.REF!$A$3:$D$140,3) -> PC | E64: 28 | F64: =VLOOKUP(B64,TAB.REF!$A$3:$D$140,4) -> 5.98 | G64: 167.44 | H64: 7.87 | I64: 220.36
A65: 56 | B65: 327767 | C65: =VLOOKUP(B65,TAB.REF!$A$3:$D$140,2) -> CONETOR DE PERFURAÇÃO 70-240MM²/70-120MM² | D65: =VLOOKUP(B65,TAB.REF!$A$3:$D$140,3) -> PC | E65: 18 | F65: =VLOOKUP(B65,TAB.REF!$A$3:$D$140,4) -> 16 | G65: =ROUND(F65*E65,2) -> 288 | H65: =ROUND(F65*(1+$I$6),2) -> 21.05 | I65: =ROUND(H65*E65,2) -> 378.9
A66: 57 | B66: 227769 | C66: =VLOOKUP(B66,TAB.REF!$A$3:$D$140,2) -> CONETOR FORMATO H ITEM 1 CAA 13-34MM² / 13-34MM² | D66: =VLOOKUP(B66,TAB.REF!$A$3:$D$140,3) -> PC | E66: 5 | F66: =VLOOKUP(B66,TAB.REF!$A$3:$D$140,4) -> 2.25 | G66: 11.25 | H66: 2.96 | I66: 14.8
A67: 58 | B67: 227777 | C67: =VLOOKUP(B67,TAB.REF!$A$3:$D$140,2) -> CONETOR FORMATO H ITEM 2 CAA 27-54MM² / 13-34MM² | D67: =VLOOKUP(B67,TAB.REF!$A$3:$D$140,3) -> PC | E67: 25 | F67: =VLOOKUP(B67,TAB.REF!$A$3:$D$140,4) -> 2.71 | G67: 67.75 | H67: 3.57 | I67: 89.25
A68: 59 | B68: 227785 | C68: =VLOOKUP(B68,TAB.REF!$A$3:$D$140,2) -> CONETOR FORMATO H ITEM 3 CAA 42-67MM² / 42-67MM² | D68: =VLOOKUP(B68,TAB.REF!$A$3:$D$140,3) -> PC | E68: 70 | F68: =VLOOKUP(B68,TAB.REF!$A$3:$D$140,4) -> 4.77 | G68: 333.9 | H68: 6.28 | I68: 439.6
A69: 60 | B69: 231175 | C69: =VLOOKUP(B69,TAB.REF!$A$3:$D$140,2) -> CONETOR PARA ATERRAMENTO DE FERRAGENS DE IP | D69: =VLOOKUP(B69,TAB.REF!$A$3:$D$140,3) -> PC | E69: 28 | F69: =VLOOKUP(B69,TAB.REF!$A$3:$D$140,4) -> 1.3 | G69: 36.4 | H69: 1.71 | I69: 47.88
A70: 61 | B70: 377357 | C70: =VLOOKUP(B70,TAB.REF!$A$3:$D$140,2) -> CONETOR TERMINAL ATERRAMENTO TEMPORÁRIO DE CHAVE | D70: =VLOOKUP(B70,TAB.REF!$A$3:$D$140,3) -> PC | E70: 9 | F70: =VLOOKUP(B70,TAB.REF!$A$3:$D$140,4) -> 8.63 | G70: 77.67 | H70: 11.35 | I70: 102.15
A71: 62 | B71: 227066 | C71: =VLOOKUP(B71,TAB.REF!$A$3:$D$140,2) -> CONETOR TERMINAL COMP CA/CAA 54MM² / 70MM² COMPACT | D71: =VLOOKUP(B71,TAB.REF!$A$3:$D$140,3) -> PC | E71: 4 | F71: =VLOOKUP(B71,TAB.REF!$A$3:$D$140,4) -> 5.48 | G71: 21.92 | H71: 7.21 | I71: 28.84
A72: 63 | B72: 338731 | C72: =VLOOKUP(B72,TAB.REF!$A$3:$D$140,2) -> CONETOR TERMINAL COMPRESSÃO 16MM² | D72: =VLOOKUP(B72,TAB.REF!$A$3:$D$140,3) -> PC | E72: 3 | F72: =VLOOKUP(B72,TAB.REF!$A$3:$D$140,4) -> 2.12 | G72: 6.36 | H72: 2.79 | I72: 8.37
A73: 64 | B73: 231886 | C73: =VLOOKUP(B73,TAB.REF!$A$3:$D$140,2) -> CONETOR TERMINAL COMPRESSÃO 1F 50MM² | D73: =VLOOKUP(B73,TAB.REF!$A$3:$D$140,3) -> PC | E73: 6 | F73: =VLOOKUP(B73,TAB.REF!$A$3:$D$140,4) -> 1.92 | G73: 11.52 | H73: 2.53 | I73: 15.18
A74: 65 | B74: 227389 | C74: =VLOOKUP(B74,TAB.REF!$A$3:$D$140,2) -> CONETOR TERMINAL COMPRESSÃO 1F AÇO 6,4MM / 21MM² | D74: =VLOOKUP(B74,TAB.REF!$A$3:$D$140,3) -> PC | E74: 16 | F74: =VLOOKUP(B74,TAB.REF!$A$3:$D$140,4) -> 2.07 | G74: 33.12 | H74: 2.72 | I74: 43.52
A75: 66 | B75: 377705 | C75: =VLOOKUP(B75,TAB.REF!$A$3:$D$140,2) -> CRUZETA DE FIBRA DE VIDRO 2400X112,5X90MM | D75: =VLOOKUP(B75,TAB.REF!$A$3:$D$140,3) -> PC | E75: 8 | F75: =VLOOKUP(B75,TAB.REF!$A$3:$D$140,4) -> 210.26 | G75: 1682.08 | H75: 276.62 | I75: 2212.96
A76: 67 | B76: 271353 | C76: =VLOOKUP(B76,TAB.REF!$A$3:$D$140,2) -> ELO FUSÍVEL BOTÃO 500MM 3H | D76: =VLOOKUP(B76,TAB.REF!$A$3:$D$140,3) -> PC | E76: 3 | F76: =VLOOKUP(B76,TAB.REF!$A$3:$D$140,4) -> 4.3 | G76: 12.9 | H76: 5.66 | I76: 16.98
A77: 68 | B77: 231662 | C77: =VLOOKUP(B77,TAB.REF!$A$3:$D$140,2) -> ESPAÇADOR LOSANGULAR 50-150MM² 15KV | D77: =VLOOKUP(B77,TAB.REF!$A$3:$D$140,3) -> CJ | E77: 16 | F77: =VLOOKUP(B77,TAB.REF!$A$3:$D$140,4) -> 21.82 | G77: 349.12 | H77: 28.71 | I77: 459.36
A78: 69 | B78: 328120 | C78: =VLOOKUP(B78,TAB.REF!$A$3:$D$140,2) -> ESTRIBO PARA BRAÇO TIPO L PARA RDAP | D78: =VLOOKUP(B78,TAB.REF!$A$3:$D$140,3) -> PC | E78: 1 | F78: =VLOOKUP(B78,TAB.REF!$A$3:$D$140,4) -> 10.94 | G78: 10.94 | H78: 14.39 | I78: 14.39
A79: 70 | B79: 357342 | C79: =VLOOKUP(B79,TAB.REF!$A$3:$D$140,2) -> FIO PARA AMARRAÇÃO ALUMÍNIO RECOZIDO 5,2MM (4AWG) | D79: =VLOOKUP(B79,TAB.REF!$A$3:$D$140,3) -> KG | E79: 0.02 | F79: =VLOOKUP(B79,TAB.REF!$A$3:$D$140,4) -> 31.05 | G79: 0.62 | H79: 40.85 | I79: 0.82
A80: 71 | B80: 237701 | C80: =VLOOKUP(B80,TAB.REF!$A$3:$D$140,2) -> FIXADOR PREFORMADO ESTAI 6,4MM | D80: =VLOOKUP(B80,TAB.REF!$A$3:$D$140,3) -> PC | E80: 1 | F80: =VLOOKUP(B80,TAB.REF!$A$3:$D$140,4) -> 6.68 | G80: 6.68 | H80: 8.79 | I80: 8.79
A81: 72 | B81: 234575 | C81: =VLOOKUP(B81,TAB.REF!$A$3:$D$140,2) -> GRAMPO ANCORAGEM PARA CABO 150MM² 15KV | D81: =VLOOKUP(B81,TAB.REF!$A$3:$D$140,3) -> PC | E81: 6 | F81: =VLOOKUP(B81,TAB.REF!$A$3:$D$140,4) -> 23.4 | G81: 140.4 | H81: 30.79 | I81: 184.74
A82: 73 | B82: 234567 | C82: =VLOOKUP(B82,TAB.REF!$A$3:$D$140,2) -> GRAMPO ANCORAGEM PARA CABO 50MM² 15KV | D82: =VLOOKUP(B82,TAB.REF!$A$3:$D$140,3) -> PC | E82: 29 | F82: =VLOOKUP(B82,TAB.REF!$A$3:$D$140,4) -> 20.12 | G82: 583.48 | H82: 26.47 | I82: 767.63
A83: 74 | B83: 222539 | C83: =VLOOKUP(B83,TAB.REF!$A$3:$D$140,2) -> HASTE ATERRAMENTO 2400MM | D83: =VLOOKUP(B83,TAB.REF!$A$3:$D$140,3) -> PC | E83: 13 | F83: =VLOOKUP(B83,TAB.REF!$A$3:$D$140,4) -> 40.75 | G83: 529.75 | H83: 53.61 | I83: 696.93
A84: 75 | B84: 219659 | C84: =VLOOKUP(B84,TAB.REF!$A$3:$D$140,2) -> ISOLADOR DE ANCORAGEM POLIMÉRICO 15KV ITEM 1 | D84: =VLOOKUP(B84,TAB.REF!$A$3:$D$140,3) -> PC | E84: 39 | F84: =VLOOKUP(B84,TAB.REF!$A$3:$D$140,4) -> 41.77 | G84: 1629.03 | H84: 54.95 | I84: 2143.05
A85: 76 | B85: 219642 | C85: =VLOOKUP(B85,TAB.REF!$A$3:$D$140,2) -> ISOLADOR PINO POLIMÉRICO 15 KV P/BRAÇO SUPORTE C | D85: =VLOOKUP(B85,TAB.REF!$A$3:$D$140,3) -> PC | E85: 16 | F85: =VLOOKUP(B85,TAB.REF!$A$3:$D$140,4) -> 20.08 | G85: 321.28 | H85: 26.42 | I85: 422.72
A86: 77 | B86: 219634 | C86: =VLOOKUP(B86,TAB.REF!$A$3:$D$140,2) -> ISOLADOR ROLDANA PORCELANA OU VIDRO | D86: =VLOOKUP(B86,TAB.REF!$A$3:$D$140,3) -> PC | E86: 1 | F86: =VLOOKUP(B86,TAB.REF!$A$3:$D$140,4) -> 5.42 | G86: 5.42 | H86: 7.13 | I86: 7.13
A87: 78 | B87: 376238 | C87: =VLOOKUP(B87,TAB.REF!$A$3:$D$140,2) -> LÂMPADA VAPOR DE SÓDIO 100W AP E-40 TUBULAR | D87: =VLOOKUP(B87,TAB.REF!$A$3:$D$140,3) -> PC | E87: 4 | F87: =VLOOKUP(B87,TAB.REF!$A$3:$D$140,4) -> 24.46 | G87: 97.84 | H87: 32.18 | I87: 128.72
A88: 79 | B88: 376109 | C88: =VLOOKUP(B88,TAB.REF!$A$3:$D$140,2) -> LUMINÁRIA COM EQUIPAMENTO VS 100W VIDRO PLANO | D88: =VLOOKUP(B88,TAB.REF!$A$3:$D$140,3) -> PC | E88: 4 | F88: =VLOOKUP(B88,TAB.REF!$A$3:$D$140,4) -> 269.72 | G88: 1078.88 | H88: 354.84 | I88: 1419.36
A89: 80 | B89: 120 | C89: =VLOOKUP(B89,TAB.REF!$A$3:$D$140,2) -> LUMINARIA LED POTÊNCIA ATÉ 120W FLUXO LUMINOSO APROXIMADO 13.800lm EFICIENCIA LUMINOSA ≥ 115lm/w | D89: =VLOOKUP(B89,TAB.REF!$A$3:$D$140,3) -> PC | E89: 9 | F89: =VLOOKUP(B89,TAB.REF!$A$3:$D$140,4) -> 767 | G89: =ROUND(F89*E89,2) -> 6903 | H89: =ROUND(F89*(1+$I$6),2) -> 1009.07 | I89: =ROUND(H89*E89,2) -> 9081.63
A90: 81 | B90: 237271 | C90: =VLOOKUP(B90,TAB.REF!$A$3:$D$140,2) -> MANILHA SAPATILHA CLASSE 50KN | D90: =VLOOKUP(B90,TAB.REF!$A$3:$D$140,3) -> PC | E90: 39 | F90: =VLOOKUP(B90,TAB.REF!$A$3:$D$140,4) -> 10.91 | G90: 425.49 | H90: 14.35 | I90: 559.65
A91: 82 | B91: 374393 | C91: =VLOOKUP(B91,TAB.REF!$A$3:$D$140,2) -> MANTA AUTO-ADESIVA PARA EMENDA CABO 15KV RDP | D91: =VLOOKUP(B91,TAB.REF!$A$3:$D$140,3) -> PC | E91: 14 | F91: =VLOOKUP(B91,TAB.REF!$A$3:$D$140,4) -> 66.28 | G91: 927.92 | H91: 87.2 | I91: 1220.8
A92: 83 | B92: 237784 | C92: =VLOOKUP(B92,TAB.REF!$A$3:$D$140,2) -> MÃO-FRANCESA PERFILADA NORMAL 38X5X726MM | D92: =VLOOKUP(B92,TAB.REF!$A$3:$D$140,3) -> PC | E92: 8 | F92: =VLOOKUP(B92,TAB.REF!$A$3:$D$140,4) -> 22.64 | G92: 181.12 | H92: 29.79 | I92: 238.32
A93: 84 | B93: 82586 | C93: =VLOOKUP(B93,TAB.REF!$A$3:$D$140,2) -> MASSA CALAFETAR 1KG | D93: =VLOOKUP(B93,TAB.REF!$A$3:$D$140,3) -> KG | E93: 0.1 | F93: =VLOOKUP(B93,TAB.REF!$A$3:$D$140,4) -> 16.78 | G93: 1.68 | H93: 22.08 | I93: 2.21
A94: 85 | B94: 237289 | C94: =VLOOKUP(B94,TAB.REF!$A$3:$D$140,2) -> OLHAL PARA PARAFUSO 50KN | D94: =VLOOKUP(B94,TAB.REF!$A$3:$D$140,3) -> PC | E94: 97 | F94: =VLOOKUP(B94,TAB.REF!$A$3:$D$140,4) -> 16.76 | G94: 1625.72 | H94: 22.05 | I94: 2138.85
A95: 86 | B95: 66878 | C95: =VLOOKUP(B95,TAB.REF!$A$3:$D$140,2) -> PARAFUSO CABEÇA ABAULADA M16X 45MM | D95: =VLOOKUP(B95,TAB.REF!$A$3:$D$140,3) -> PC | E95: 95 | F95: =VLOOKUP(B95,TAB.REF!$A$3:$D$140,4) -> 2.17 | G95: 206.15 | H95: 2.85 | I95: 270.75
A96: 87 | B96: 66886 | C96: =VLOOKUP(B96,TAB.REF!$A$3:$D$140,2) -> PARAFUSO CABEÇA ABAULADA M16X 70MM | D96: =VLOOKUP(B96,TAB.REF!$A$3:$D$140,3) -> PC | E96: 211 | F96: =VLOOKUP(B96,TAB.REF!$A$3:$D$140,4) -> 2.64 | G96: 557.04 | H96: 3.47 | I96: 732.17
A97: 88 | B97: 66894 | C97: =VLOOKUP(B97,TAB.REF!$A$3:$D$140,2) -> PARAFUSO CABEÇA ABAULADA M16X150MM | D97: =VLOOKUP(B97,TAB.REF!$A$3:$D$140,3) -> PC | E97: 8 | F97: =VLOOKUP(B97,TAB.REF!$A$3:$D$140,4) -> 4.3 | G97: =ROUND(F97*E97,2) -> 34.4 | H97: =ROUND(F97*(1+$I$6),2) -> 5.66 | I97: =ROUND(H97*E97,2) -> 45.28
A98: 89 | B98: 74799 | C98: =VLOOKUP(B98,TAB.REF!$A$3:$D$140,2) -> PARAFUSO CABEÇA QUADRADA M16X125MM | D98: =VLOOKUP(B98,TAB.REF!$A$3:$D$140,3) -> PC | E98: 3 | F98: =VLOOKUP(B98,TAB.REF!$A$3:$D$140,4) -> 3.99 | G98: 11.97 | H98: 5.25 | I98: 15.75
A99: 90 | B99: 74807 | C99: =VLOOKUP(B99,TAB.REF!$A$3:$D$140,2) -> PARAFUSO CABEÇA QUADRADA M16X150MM | D99: =VLOOKUP(B99,TAB.REF!$A$3:$D$140,3) -> PC | E99: 8 | F99: =VLOOKUP(B99,TAB.REF!$A$3:$D$140,4) -> 4.37 | G99: 34.96 | H99: 5.75 | I99: 46
A100: 91 | B100: 74831 | C100: =VLOOKUP(B100,TAB.REF!$A$3:$D$140,2) -> PARAFUSO CABEÇA QUADRADA M16X300MM | D100: =VLOOKUP(B100,TAB.REF!$A$3:$D$140,3) -> PC | E100: 2 | F100: =VLOOKUP(B100,TAB.REF!$A$3:$D$140,4) -> 6.75 | G100: 13.5 | H100: 8.88 | I100: 17.76
A101: 92 | B101: 74864 | C101: =VLOOKUP(B101,TAB.REF!$A$3:$D$140,2) -> PARAFUSO CABEÇA QUADRADA M16X450MM | D101: =VLOOKUP(B101,TAB.REF!$A$3:$D$140,3) -> PC | E101: 10 | F101: =VLOOKUP(B101,TAB.REF!$A$3:$D$140,4) -> 9.79 | G101: 97.9 | H101: 12.88 | I101: 128.8
A102: 93 | B102: 74872 | C102: =VLOOKUP(B102,TAB.REF!$A$3:$D$140,2) -> PARAFUSO CABEÇA QUADRADA M16X500MM | D102: =VLOOKUP(B102,TAB.REF!$A$3:$D$140,3) -> PC | E102: 4 | F102: =VLOOKUP(B102,TAB.REF!$A$3:$D$140,4) -> 11.41 | G102: 45.64 | H102: 15.01 | I102: 60.04
A103: 94 | B103: 75036 | C103: =VLOOKUP(B103,TAB.REF!$A$3:$D$140,2) -> PARAFUSO CABEÇA SEXTAVADA M12X 40MM | D103: =VLOOKUP(B103,TAB.REF!$A$3:$D$140,3) -> PC | E103: 8 | F103: =VLOOKUP(B103,TAB.REF!$A$3:$D$140,4) -> 12.44 | G103: 99.52 | H103: 16.37 | I103: 130.96
A104: 95 | B104: 289058 | C104: =VLOOKUP(B104,TAB.REF!$A$3:$D$140,2) -> PÁRA-RAIOS 12KV 10KA ZNO | D104: =VLOOKUP(B104,TAB.REF!$A$3:$D$140,3) -> PC | E104: 3 | F104: =VLOOKUP(B104,TAB.REF!$A$3:$D$140,4) -> 153.69 | G104: 461.07 | H104: 202.19 | I104: 606.57
A105: 96 | B105: 293357 | C105: =VLOOKUP(B105,TAB.REF!$A$3:$D$140,2) -> PÁRA-RAIOS REDE SECUNDÁRIA ISOLADA 280V 10KA | D105: =VLOOKUP(B105,TAB.REF!$A$3:$D$140,3) -> PC | E105: 3 | F105: =VLOOKUP(B105,TAB.REF!$A$3:$D$140,4) -> 59.64 | G105: 178.92 | H105: 78.46 | I105: 235.38
A106: 97 | B106: 236265 | C106: =VLOOKUP(B106,TAB.REF!$A$3:$D$140,2) -> PINO P/ ISOLADOR POLIMÉRICO ATÉ 36,2 KV - BRAÇO C | D106: =VLOOKUP(B106,TAB.REF!$A$3:$D$140,3) -> PC | E106: 13 | F106: =VLOOKUP(B106,TAB.REF!$A$3:$D$140,4) -> 15.35 | G106: 199.55 | H106: 20.19 | I106: 262.47
A107: 98 | B107: 75630 | C107: =VLOOKUP(B107,TAB.REF!$A$3:$D$140,2) -> PORCA QUADRADA M16 24X24X13MM | D107: =VLOOKUP(B107,TAB.REF!$A$3:$D$140,3) -> PC | E107: 34 | F107: =VLOOKUP(B107,TAB.REF!$A$3:$D$140,4) -> 0.68 | G107: 23.12 | H107: 0.89 | I107: 30.26
A108: 99 | B108: 207415 | C108: =VLOOKUP(B108,TAB.REF!$A$3:$D$140,2) -> POSTE CONCRETO CIRCULAR 11M 300DAN | D108: =VLOOKUP(B108,TAB.REF!$A$3:$D$140,3) -> PC | E108: 9 | F108: =VLOOKUP(B108,TAB.REF!$A$3:$D$140,4) -> 695.96 | G108: 6263.64 | H108: 915.6 | I108: 8240.4
A109: 100 | B109: 207449 | C109: =VLOOKUP(B109,TAB.REF!$A$3:$D$140,2) -> POSTE CONCRETO CIRCULAR 11M 600DAN | D109: =VLOOKUP(B109,TAB.REF!$A$3:$D$140,3) -> PC | E109: 2 | F109: =VLOOKUP(B109,TAB.REF!$A$3:$D$140,4) -> 951.41 | G109: 1902.82 | H109: 1251.67 | I109: 2503.34
A110: 101 | B110: 207522 | C110: =VLOOKUP(B110,TAB.REF!$A$3:$D$140,2) -> POSTE CONCRETO CIRCULAR 12M 300DAN | D110: =VLOOKUP(B110,TAB.REF!$A$3:$D$140,3) -> PC | E110: 1 | F110: =VLOOKUP(B110,TAB.REF!$A$3:$D$140,4) -> 765.08 | G110: 765.08 | H110: 1006.54 | I110: 1006.54
A111: 102 | B111: 207506 | C111: =VLOOKUP(B111,TAB.REF!$A$3:$D$140,2) -> POSTE CONCRETO CIRCULAR 12M 600DAN | D111: =VLOOKUP(B111,TAB.REF!$A$3:$D$140,3) -> PC | E111: 1 | F111: =VLOOKUP(B111,TAB.REF!$A$3:$D$140,4) -> 1118.35 | G111: 1118.35 | H111: 1471.3 | I111: 1471.3
A112: 103 | B112: 376112 | C112: =VLOOKUP(B112,TAB.REF!$A$3:$D$140,2) -> REATOR LÂMPADA VS 100W INTEGRADO CONECTOR RÁPIDO | D112: =VLOOKUP(B112,TAB.REF!$A$3:$D$140,3) -> PC | E112: 4 | F112: =VLOOKUP(B112,TAB.REF!$A$3:$D$140,4) -> 45.5 | G112: 182 | H112: 59.86 | I112: 239.44
A113: 104 | B113: 327361 | C113: =VLOOKUP(B113,TAB.REF!$A$3:$D$140,2) -> RELÉ FOTOELÉTRICO ELETRÔNICO 105-305V | D113: =VLOOKUP(B113,TAB.REF!$A$3:$D$140,3) -> PC | E113: 13 | F113: =VLOOKUP(B113,TAB.REF!$A$3:$D$140,4) -> 19.1 | G113: 248.3 | H113: 25.13 | I113: 326.69
A114: 105 | B114: 237768 | C114: =VLOOKUP(B114,TAB.REF!$A$3:$D$140,2) -> SAPATILHA | D114: =VLOOKUP(B114,TAB.REF!$A$3:$D$140,3) -> PC | E114: 45 | F114: =VLOOKUP(B114,TAB.REF!$A$3:$D$140,4) -> 1.99 | G114: 89.55 | H114: 2.62 | I114: 117.9
A115: 106 | B115: 237156 | C115: =VLOOKUP(B115,TAB.REF!$A$3:$D$140,2) -> SELA PARA CRUZETA | D115: =VLOOKUP(B115,TAB.REF!$A$3:$D$140,3) -> PC | E115: 8 | F115: =VLOOKUP(B115,TAB.REF!$A$3:$D$140,4) -> 8.88 | G115: 71.04 | H115: 11.68 | I115: 93.44
A116: 107 | B116: 237081 | C116: =VLOOKUP(B116,TAB.REF!$A$3:$D$140,2) -> SUPORTE 240MM TRANSFORMADOR POSTE CC | D116: =VLOOKUP(B116,TAB.REF!$A$3:$D$140,3) -> PC | E116: 2 | F116: =VLOOKUP(B116,TAB.REF!$A$3:$D$140,4) -> 104.81 | G116: 209.62 | H116: 137.89 | I116: 275.78
A117: 108 | B117: 237172 | C117: =VLOOKUP(B117,TAB.REF!$A$3:$D$140,2) -> SUPORTE L PARA CRUZETA | D117: =VLOOKUP(B117,TAB.REF!$A$3:$D$140,3) -> PC | E117: 9 | F117: =VLOOKUP(B117,TAB.REF!$A$3:$D$140,4) -> 25.98 | G117: 233.82 | H117: 34.18 | I117: 307.62
A118: 109 | B118: 245837 | C118: =VLOOKUP(B118,TAB.REF!$A$3:$D$140,2) -> TRANSFORMADOR TRIFÁSICO 15KV 45KVA | D118: =VLOOKUP(B118,TAB.REF!$A$3:$D$140,3) -> PC | E118: 1 | F118: =VLOOKUP(B118,TAB.REF!$A$3:$D$140,4) -> 5284 | G118: 5284 | H118: 6951.63 | I118: 6951.63
A119: VALOR TOTAL MATERIAIS | F119: =ROUND(SUM(G10:G118),2) -> 55889.29 | H119: =ROUND(SUM(I10:I118),2) -> 73527.93
A120: MÃO DE OBRA DE CONSTRUÇÃO | F120: PREÇO SEM BDI | H120: PREÇO COM BDI
A121: ITEM | B121: CÓDIGO | C121: DESCRIÇÃO | D121: UN | E121: QUANT. | F121: R$.UNIT. | G121: R$. TOTAL | H121: R$.UNIT. | I121: R$. TOTAL
A122: 1 | B122: US. CONST. RDA | C122: =VLOOKUP(B122,TAB.REF!$A$2:$D$140,2) -> MÃO DE OBRA DE CONSTRUÇÃO DE REDE ELÉTRICA | D122: US | E122: 18.75 | F122: =VLOOKUP(B122,TAB.REF!$A$2:$D$140,4) -> 1538.3 | G122: =ROUND(E122*F122,2) -> 28843.13 | H122: =F122*(1+$I$6) -> 2023.79 | I122: =ROUND(H122*E122,2) -> 37946.06
A123: 2 | B123: US. CONST. RDS | C123: =VLOOKUP(B123,TAB.REF!$A$2:$D$140,2) -> MÃO DE OBRA DE CONSTRUÇÃO DE REDE SUBTERRÂNEA | D123: US | F123: =VLOOKUP(B123,TAB.REF!$A$2:$D$140,4) -> 1538.3 | G123: =ROUND(E123*F123,2) -> 0 | H123: =F123*(1+$I$6) -> 2023.79 | I123: =ROUND(H123*E123,2) -> 0
A124: VALOR TOTAL MÃO DE OBRA | F124: =SUM(G122:G123) -> 28843.13 | H124: =SUM(I122:I123) -> 37946.06
A125: RESUMO | F125: PREÇO SEM BDI | H125: PREÇO COM BDI
A126: VALOR TOTAL MATERIAIS | F126: =ROUND(F119,2) -> 55889.29 | H126: =ROUND(H119,2) -> 73527.93
A127: VALOR TOTAL MÃO DE OBRA | F127: =ROUND(F124,2) -> 28843.13 | H127: =H124 -> 37946.06
A128: VALOR TOTAL | F128: =ROUND(SUM(F126:G127),2) -> 84732.42 | H128: =SUM(H126:I127) -> 111473.99
A131: =CONCATENATE(RESUMO!B18," ",RESUMO!C18) -> Patos de Minas, 4 de fevereiro de 2020
A134: _______________________________________________________
A135: =RESUMO!B21 -> Diogo Soares Resende
A136: =RESUMO!B22 -> Eng. Eletricista
A137: =RESUMO!B23 -> CREA: 194.419D/MG

Sheet CVCTEC-83
A2: PLANILHA ORÇAMENTÁRIA
A3: OBJETO: PROJETOS DE MODIFICAÇÃO, EXTENSÃO DE REDE E ILUMINAÇÃO PÚBLICA
A4: LOCAL: CVCTEC_PMINAS_83 - AVENIDA DOS BURITIS - B. ALTO DA COLINA
A5: RESPONSÁVEL TÉCNICO: DIOGO SOARES RESENDE | F5: CREA: | G5: =LEFT(RIGHT(RESUMO!B23,11),8) -> 194.419D | H5: ART:
A6: REFERENCIA DE PREÇOS: PREÇOS DE MERCADO | F6: DATA: | G6: =RESUMO!E5 -> 2020-02-04 | H6: BDI : | I6: =RESUMO!F5 -> 0.3156
A8: ITEM | B8: CÓDIGO | C8: DESCRIÇÃO | D8: UNID. | E8: QUANT. | F8: PREÇO SEM BDI | H8: PREÇO COM BDI
F9: UNITÁRIO | G9: TOTAL | H9: UNITÁRIO | I9: TOTAL
A10: 1 | B10: 237222 | C10: =VLOOKUP(B10,TAB.REF!$A$3:$D$140,2) -> AFASTADOR ARMAÇÃO SECUNDÁRIA 500MM | D10: =VLOOKUP(B10,TAB.REF!$A$3:$D$140,3) -> PC | E10: 1 | F10: =VLOOKUP(B10,TAB.REF!$A$3:$D$140,4) -> 124.8 | G10: =ROUND(F10*E10,2) -> 124.8 | H10: =ROUND(F10*(1+$I$6),2) -> 164.19 | I10: =ROUND(H10*E10,2) -> 164.19
A11: 2 | B11: 231522 | C11: =VLOOKUP(B11,TAB.REF!$A$3:$D$140,2) -> ALÇA PARA ESTRIBO FECHADA 2AWG | D11: =VLOOKUP(B11,TAB.REF!$A$3:$D$140,3) -> PC | E11: 12 | F11: =VLOOKUP(B11,TAB.REF!$A$3:$D$140,4) -> 8.61 | G11: 103.32 | H11: 11.33 | I11: 135.96
A12: 3 | B12: 237677 | C12: =VLOOKUP(B12,TAB.REF!$A$3:$D$140,2) -> ALÇA PREFORMADA ESTAI CABO AÇO 9,5MM | D12: =VLOOKUP(B12,TAB.REF!$A$3:$D$140,3) -> PC | E12: 14 | F12: =VLOOKUP(B12,TAB.REF!$A$3:$D$140,4) -> 12.24 | G12: 171.36 | H12: 16.1 | I12: 225.4
A13: 4 | B13: 228981 | C13: =VLOOKUP(B13,TAB.REF!$A$3:$D$140,2) -> ALÇA PREFORMADA NEUTRO CA/CAL 16MM² | D13: =VLOOKUP(B13,TAB.REF!$A$3:$D$140,3) -> PC | E13: 40 | F13: =VLOOKUP(B13,TAB.REF!$A$3:$D$140,4) -> 1.3 | G13: 52 | H13: 1.71 | I13: 68.4
A14: 5 | B14: 228874 | C14: =VLOOKUP(B14,TAB.REF!$A$3:$D$140,2) -> ALÇA PREFORMADA NEUTRO CA/CAL 35MM² | D14: =VLOOKUP(B14,TAB.REF!$A$3:$D$140,3) -> PC | E14: 1 | F14: =VLOOKUP(B14,TAB.REF!$A$3:$D$140,4) -> 4.77 | G14: 4.77 | H14: 6.28 | I14: 6.28
A15: 6 | B15: 229005 | C15: =VLOOKUP(B15,TAB.REF!$A$3:$D$140,2) -> ALÇA PREFORMADA NEUTRO CA/CAL 70MM² | D15: =VLOOKUP(B15,TAB.REF!$A$3:$D$140,3) -> PC | E15: 11 | F15: =VLOOKUP(B15,TAB.REF!$A$3:$D$140,4) -> 6.03 | G15: 66.33 | H15: 7.93 | I15: 87.23
A16: 7 | B16: 219709 | C16: =VLOOKUP(B16,TAB.REF!$A$3:$D$140,2) -> ALÇA PREFORMADA OLHAL CA/CAA 34MM² (2AWG) | D16: =VLOOKUP(B16,TAB.REF!$A$3:$D$140,3) -> PC | E16: 16 | F16: =VLOOKUP(B16,TAB.REF!$A$3:$D$140,4) -> 12.17 | G16: 194.72 | H16: 16.01 | I16: 256.16
A17: 8 | B17: 327700 | C17: =VLOOKUP(B17,TAB.REF!$A$3:$D$140,2) -> ANEL ELASTOMÉRICO P/ ISOLADOR PINO POLIMÉRICO 15KV | D17: =VLOOKUP(B17,TAB.REF!$A$3:$D$140,3) -> PC | E17: 10 | F17: =VLOOKUP(B17,TAB.REF!$A$3:$D$140,4) -> 4.29 | G17: 42.9 | H17: 5.64 | I17: 56.4
A18: 9 | B18: 237230 | C18: =VLOOKUP(B18,TAB.REF!$A$3:$D$140,2) -> ARMAÇÃO SECUNDÁRIO 1 ESTRIBO | D18: =VLOOKUP(B18,TAB.REF!$A$3:$D$140,3) -> PC | E18: 1 | F18: =VLOOKUP(B18,TAB.REF!$A$3:$D$140,4) -> 11 | G18: 11 | H18: 14.47 | I18: 14.47
A19: 10 | B19: 237248 | C19: =VLOOKUP(B19,TAB.REF!$A$3:$D$140,2) -> ARMAÇÃO SECUNDÁRIO 2 ESTRIBOS | D19: =VLOOKUP(B19,TAB.REF!$A$3:$D$140,3) -> PC | E19: 1 | F19: =VLOOKUP(B19,TAB.REF!$A$3:$D$140,4) -> 23.33 | G19: 23.33 | H19: 30.69 | I19: 30.69
A20: 11 | B20: 75721 | C20: =VLOOKUP(B20,TAB.REF!$A$3:$D$140,2) -> ARRUELA QUADRADA 38X18X3MM | D20: =VLOOKUP(B20,TAB.REF!$A$3:$D$140,3) -> PC | E20: 53 | F20: =VLOOKUP(B20,TAB.REF!$A$3:$D$140,4) -> 0.52 | G20: 27.56 | H20: 0.68 | I20: 36.04
A21: 12 | B21: 327692 | C21: =VLOOKUP(B21,TAB.REF!$A$3:$D$140,2) -> BRAÇADEIRA PLÁSTICA CABO MULTIPLEXADO | D21: =VLOOKUP(B21,TAB.REF!$A$3:$D$140,3) -> PC | E21: 43 | F21: =VLOOKUP(B21,TAB.REF!$A$3:$D$140,4) -> 1.15 | G21: 49.45 | H21: 1.51 | I21: 64.93
A22: 13 | B22: 328138 | C22: =VLOOKUP(B22,TAB.REF!$A$3:$D$140,2) -> BRAÇO ANTIBALANÇO 15KV | D22: =VLOOKUP(B22,TAB.REF!$A$3:$D$140,3) -> PC | E22: 7 | F22: =VLOOKUP(B22,TAB.REF!$A$3:$D$140,4) -> 25.79 | G22: 180.53 | H22: 33.93 | I22: 237.51
A23: 14 | B23: 258921 | C23: =VLOOKUP(B23,TAB.REF!$A$3:$D$140,2) -> BRAÇO PARA IP TIPO MÉDIO | D23: =VLOOKUP(B23,TAB.REF!$A$3:$D$140,3) -> PC | E23: 9 | F23: =VLOOKUP(B23,TAB.REF!$A$3:$D$140,4) -> 166.63 | G23: 1499.67 | H23: 219.22 | I23: 1972.98
A24: 15 | B24: 211789 | C24: =VLOOKUP(B24,TAB.REF!$A$3:$D$140,2) -> BRAÇO SUPORTE C | D24: =VLOOKUP(B24,TAB.REF!$A$3:$D$140,3) -> PC | E24: 6 | F24: =VLOOKUP(B24,TAB.REF!$A$3:$D$140,4) -> 92.79 | G24: 556.74 | H24: 122.07 | I24: 732.42
A25: 16 | B25: 231712 | C25: =VLOOKUP(B25,TAB.REF!$A$3:$D$140,2) -> BRAÇO SUPORTE COM GRAMPO DE SUSPENSÃO ITEM 2 | D25: =VLOOKUP(B25,TAB.REF!$A$3:$D$140,3) -> CJ | E25: 8 | F25: =VLOOKUP(B25,TAB.REF!$A$3:$D$140,4) -> 38.38 | G25: 307.04 | H25: 50.49 | I25: 403.92
A26: 17 | B26: 211771 | C26: =VLOOKUP(B26,TAB.REF!$A$3:$D$140,2) -> BRAÇO SUPORTE L | D26: =VLOOKUP(B26,TAB.REF!$A$3:$D$140,3) -> PC | E26: 7 | F26: =VLOOKUP(B26,TAB.REF!$A$3:$D$140,4) -> 72.27 | G26: 505.89 | H26: 95.08 | I26: 665.56
A27: 18 | B27: 225623 | C27: =VLOOKUP(B27,TAB.REF!$A$3:$D$140,2) -> CABO AL 1X 16MM² 1KV | D27: =VLOOKUP(B27,TAB.REF!$A$3:$D$140,3) -> M | E27: 3 | F27: =VLOOKUP(B27,TAB.REF!$A$3:$D$140,4) -> 1.85 | G27: 5.55 | H27: 2.43 | I27: 7.29
A28: 19 | B28: 231548 | C28: =VLOOKUP(B28,TAB.REF!$A$3:$D$140,2) -> CABO AL 1X 50MM² 15KV PROTEGIDO | D28: =VLOOKUP(B28,TAB.REF!$A$3:$D$140,3) -> M | E28: 829 | F28: =VLOOKUP(B28,TAB.REF!$A$3:$D$140,4) -> 7.15 | G28: 5927.35 | H28: 9.41 | I28: 7800.89
A29: 20 | B29: 225656 | C29: =VLOOKUP(B29,TAB.REF!$A$3:$D$140,2) -> CABO AL 1X 70MM² 1KV | D29: =VLOOKUP(B29,TAB.REF!$A$3:$D$140,3) -> M | E29: 6 | F29: =VLOOKUP(B29,TAB.REF!$A$3:$D$140,4) -> 6.53 | G29: 39.18 | H29: 8.59 | I29: 51.54
A30: 21 | B30: 225615 | C30: =VLOOKUP(B30,TAB.REF!$A$3:$D$140,2) -> CABO CU 1X 1,5MM² 1KV XLPE | D30: =VLOOKUP(B30,TAB.REF!$A$3:$D$140,3) -> M | E30: 104 | F30: =VLOOKUP(B30,TAB.REF!$A$3:$D$140,4) -> 1.15 | G30: 119.6 | H30: 1.51 | I30: 157.04
A31: 22 | B31: 2964 | C31: =VLOOKUP(B31,TAB.REF!$A$3:$D$140,2) -> CABO DE AÇO HS 3/8P (9,5MM²) 7FIOS | D31: =VLOOKUP(B31,TAB.REF!$A$3:$D$140,3) -> KG | E31: 110.03 | F31: =VLOOKUP(B31,TAB.REF!$A$3:$D$140,4) -> 7.78 | G31: 856.03 | H31: 10.24 | I31: 1126.71
A32: 23 | B32: 2931 | C32: =VLOOKUP(B32,TAB.REF!$A$3:$D$140,2) -> CABO DE AÇO MR 1/4P (6,4MM) 7 FIOS | D32: =VLOOKUP(B32,TAB.REF!$A$3:$D$140,3) -> KG | E32: 31.7 | F32: =VLOOKUP(B32,TAB.REF!$A$3:$D$140,4) -> 2.76 | G32: 87.49 | H32: 3.63 | I32: 115.07
A33: 24 | B33: 226373 | C33: =VLOOKUP(B33,TAB.REF!$A$3:$D$140,2) -> CABO QUADRUPLEX CA 3X1X 70+70 1KV | D33: =VLOOKUP(B33,TAB.REF!$A$3:$D$140,3) -> M | E33: 343 | F33: =VLOOKUP(B33,TAB.REF!$A$3:$D$140,4) -> 22.81 | G33: 7823.83 | H33: 30.01 | I33: 10293.43
A34: 25 | B34: 231589 | C34: =VLOOKUP(B34,TAB.REF!$A$3:$D$140,2) -> CABO TRIPLEX CA 2X1X70+70 1KV | D34: =VLOOKUP(B34,TAB.REF!$A$3:$D$140,3) -> M | E34: 69 | F34: =VLOOKUP(B34,TAB.REF!$A$3:$D$140,4) -> 16.08 | G34: 1109.52 | H34: 21.15 | I34: 1459.35
A35: 26 | B35: 223818 | C35: =VLOOKUP(B35,TAB.REF!$A$3:$D$140,2) -> CANTONEIRA PARA BRAÇO C | D35: =VLOOKUP(B35,TAB.REF!$A$3:$D$140,3) -> PC | E35: 5 | F35: =VLOOKUP(B35,TAB.REF!$A$3:$D$140,4) -> 60.9 | G35: 304.5 | H35: 80.12 | I35: 400.6
A36: 27 | B36: 231878 | C36: =VLOOKUP(B36,TAB.REF!$A$3:$D$140,2) -> CARTUCHO DE APLICAÇÃO VERMELHO | D36: =VLOOKUP(B36,TAB.REF!$A$3:$D$140,3) -> PC | E36: 21 | F36: =VLOOKUP(B36,TAB.REF!$A$3:$D$140,4) -> 6.54 | G36: 137.34 | H36: 8.6 | I36: 180.6
A37: 28 | B37: 270439 | C37: =VLOOKUP(B37,TAB.REF!$A$3:$D$140,2) -> CHAVE FUSÍVEL 15KV COM PORTA FUSÍVEL 100A 7,1KA | D37: =VLOOKUP(B37,TAB.REF!$A$3:$D$140,3) -> PC | E37: 4 | F37: =VLOOKUP(B37,TAB.REF!$A$3:$D$140,4) -> 243.45 | G37: 973.8 | H37: 320.28 | I37: 1281.12
A38: 29 | B38: 236836 | C38: =VLOOKUP(B38,TAB.REF!$A$3:$D$140,2) -> CINTA DE AÇO D 170MM | D38: =VLOOKUP(B38,TAB.REF!$A$3:$D$140,3) -> PC | E38: 15 | F38: =VLOOKUP(B38,TAB.REF!$A$3:$D$140,4) -> 16.28 | G38: 244.2 | H38: 21.42 | I38: 321.3
A39: 30 | B39: 236844 | C39: =VLOOKUP(B39,TAB.REF!$A$3:$D$140,2) -> CINTA DE AÇO D 180MM | D39: =VLOOKUP(B39,TAB.REF!$A$3:$D$140,3) -> PC | E39: 7 | F39: =VLOOKUP(B39,TAB.REF!$A$3:$D$140,4) -> 16.51 | G39: 115.57 | H39: 21.72 | I39: 152.04
A40: 31 | B40: 236851 | C40: =VLOOKUP(B40,TAB.REF!$A$3:$D$140,2) -> CINTA DE AÇO D 190MM | D40: =VLOOKUP(B40,TAB.REF!$A$3:$D$140,3) -> PC | E40: 7 | F40: =VLOOKUP(B40,TAB.REF!$A$3:$D$140,4) -> 17.48 | G40: 122.36 | H40: 23 | I40: 161
A41: 32 | B41: 236869 | C41: =VLOOKUP(B41,TAB.REF!$A$3:$D$140,2) -> CINTA DE AÇO D 200MM | D41: =VLOOKUP(B41,TAB.REF!$A$3:$D$140,3) -> PC | E41: 6 | F41: =VLOOKUP(B41,TAB.REF!$A$3:$D$140,4) -> 17.93 | G41: =ROUND(F41*E41,2) -> 107.58 | H41: =ROUND(F41*(1+$I$6),2) -> 23.59 | I41: =ROUND(H41*E41,2) -> 141.54
A42: 33 | B42: 236877 | C42: =VLOOKUP(B42,TAB.REF!$A$3:$D$140,2) -> CINTA DE AÇO D 210MM | D42: =VLOOKUP(B42,TAB.REF!$A$3:$D$140,3) -> PC | E42: 15 | F42: =VLOOKUP(B42,TAB.REF!$A$3:$D$140,4) -> 18.52 | G42: 277.8 | H42: 24.36 | I42: 365.4
A43: 34 | B43: 236885 | C43: =VLOOKUP(B43,TAB.REF!$A$3:$D$140,2) -> CINTA DE AÇO D 220MM | D43: =VLOOKUP(B43,TAB.REF!$A$3:$D$140,3) -> PC | E43: 6 | F43: =VLOOKUP(B43,TAB.REF!$A$3:$D$140,4) -> 18.66 | G43: 111.96 | H43: 24.55 | I43: 147.3
A44: 35 | B44: 236893 | C44: =VLOOKUP(B44,TAB.REF!$A$3:$D$140,2) -> CINTA DE AÇO D 230MM | D44: =VLOOKUP(B44,TAB.REF!$A$3:$D$140,3) -> PC | E44: 28 | F44: =VLOOKUP(B44,TAB.REF!$A$3:$D$140,4) -> 19.34 | G44: 541.52 | H44: 25.44 | I44: 712.32
A45: 36 | B45: 236901 | C45: =VLOOKUP(B45,TAB.REF!$A$3:$D$140,2) -> CINTA DE AÇO D 240MM | D45: =VLOOKUP(B45,TAB.REF!$A$3:$D$140,3) -> PC | E45: 7 | F45: =VLOOKUP(B45,TAB.REF!$A$3:$D$140,4) -> 20.51 | G45: 143.57 | H45: 26.98 | I45: 188.86
A46: 37 | B46: 236919 | C46: =VLOOKUP(B46,TAB.REF!$A$3:$D$140,2) -> CINTA DE AÇO D 250MM | D46: =VLOOKUP(B46,TAB.REF!$A$3:$D$140,3) -> PC | E46: 17 | F46: =VLOOKUP(B46,TAB.REF!$A$3:$D$140,4) -> 21.79 | G46: 370.43 | H46: 28.67 | I46: 487.39
A47: 38 | B47: 236927 | C47: =VLOOKUP(B47,TAB.REF!$A$3:$D$140,2) -> CINTA DE AÇO D 260MM | D47: =VLOOKUP(B47,TAB.REF!$A$3:$D$140,3) -> PC | E47: 1 | F47: =VLOOKUP(B47,TAB.REF!$A$3:$D$140,4) -> 21.62 | G47: 21.62 | H47: 28.44 | I47: 28.44
A48: 39 | B48: 236935 | C48: =VLOOKUP(B48,TAB.REF!$A$3:$D$140,2) -> CINTA DE AÇO D 270MM | D48: =VLOOKUP(B48,TAB.REF!$A$3:$D$140,3) -> PC | E48: 4 | F48: =VLOOKUP(B48,TAB.REF!$A$3:$D$140,4) -> 22.15 | G48: 88.6 | H48: 29.14 | I48: 116.56
A49: 40 | B49: 236943 | C49: =VLOOKUP(B49,TAB.REF!$A$3:$D$140,2) -> CINTA DE AÇO D 280MM | D49: =VLOOKUP(B49,TAB.REF!$A$3:$D$140,3) -> PC | E49: 1 | F49: =VLOOKUP(B49,TAB.REF!$A$3:$D$140,4) -> 25.47 | G49: 25.47 | H49: 33.51 | I49: 33.51
A50: 41 | B50: 236950 | C50: =VLOOKUP(B50,TAB.REF!$A$3:$D$140,2) -> CINTA DE AÇO D 290MM | D50: =VLOOKUP(B50,TAB.REF!$A$3:$D$140,3) -> PC | E50: 1 | F50: =VLOOKUP(B50,TAB.REF!$A$3:$D$140,4) -> 23.93 | G50: 23.93 | H50: 31.48 | I50: 31.48
A51: 42 | B51: 375058 | C51: =VLOOKUP(B51,TAB.REF!$A$3:$D$140,2) -> COBERTURA PROTETORA P/ BCH BT TRANSFORMADOR ITEM 1 | D51: =VLOOKUP(B51,TAB.REF!$A$3:$D$140,3) -> PC | E51: 10 | F51: =VLOOKUP(B51,TAB.REF!$A$3:$D$140,4) -> 8.41 | G51: 84.1 | H51: 11.06 | I51: 110.6
A52: 43 | B52: 39586 | C52: =VLOOKUP(B52,TAB.REF!$A$3:$D$140,2) -> COBERTURA PROTETORA PARA BUCHA DE EQUIPAMENTO | D52: =VLOOKUP(B52,TAB.REF!$A$3:$D$140,3) -> PC | E52: 3 | F52: =VLOOKUP(B52,TAB.REF!$A$3:$D$140,4) -> 9.67 | G52: 29.01 | H52: 12.72 | I52: 38.16
A53: 44 | B53: 378809 | C53: =VLOOKUP(B53,TAB.REF!$A$3:$D$140,2) -> CONECTOR TERMINAL P/ BUCHA,50 MM²,RETO,COMPRESSÃO | D53: =VLOOKUP(B53,TAB.REF!$A$3:$D$140,3) -> PC | E53: 3 | F53: =VLOOKUP(B53,TAB.REF!$A$3:$D$140,4) -> 12.06 | G53: 36.18 | H53: 15.87 | I53: 47.61
A54: 45 | B54: 231795 | C54: =VLOOKUP(B54,TAB.REF!$A$3:$D$140,2) -> CONETOR CUNHA AL 50MM² COM ESTRIBO | D54: =VLOOKUP(B54,TAB.REF!$A$3:$D$140,3) -> PC | E54: 21 | F54: =VLOOKUP(B54,TAB.REF!$A$3:$D$140,4) -> 14.96 | G54: 314.16 | H54: 19.68 | I54: 413.28
A55: 46 | B55: 227850 | C55: =VLOOKUP(B55,TAB.REF!$A$3:$D$140,2) -> CONETOR CUNHA CU ITEM 1 | D55: =VLOOKUP(B55,TAB.REF!$A$3:$D$140,3) -> PC | E55: 44 | F55: =VLOOKUP(B55,TAB.REF!$A$3:$D$140,4) -> 3.79 | G55: 166.76 | H55: 4.99 | I55: 219.56
A56: 47 | B56: 227868 | C56: =VLOOKUP(B56,TAB.REF!$A$3:$D$140,2) -> CONETOR CUNHA CU ITEM 2 | D56: =VLOOKUP(B56,TAB.REF!$A$3:$D$140,3) -> PC | E56: 20 | F56: =VLOOKUP(B56,TAB.REF!$A$3:$D$140,4) -> 2.81 | G56: 56.2 | H56: 3.7 | I56: 74
A57: 48 | B57: 231696 | C57: =VLOOKUP(B57,TAB.REF!$A$3:$D$140,2) -> CONETOR CUNHA CU ITEM 6 | D57: =VLOOKUP(B57,TAB.REF!$A$3:$D$140,3) -> PC | E57: 7 | F57: =VLOOKUP(B57,TAB.REF!$A$3:$D$140,4) -> 4.27 | G57: 29.89 | H57: 5.62 | I57: 39.34
A58: 49 | B58: 231688 | C58: =VLOOKUP(B58,TAB.REF!$A$3:$D$140,2) -> CONETOR CUNHA CU ITEM 7 | D58: =VLOOKUP(B58,TAB.REF!$A$3:$D$140,3) -> PC | E58: 15 | F58: =VLOOKUP(B58,TAB.REF!$A$3:$D$140,4) -> 3.9 | G58: 58.5 | H58: 5.13 | I58: 76.95
A59: 50 | B59: 331728 | C59: =VLOOKUP(B59,TAB.REF!$A$3:$D$140,2) -> CONETOR CUNHA ITEM 2 + COBERTURA ISOLANTE ITEM 2 | D59: =VLOOKUP(B59,TAB.REF!$A$3:$D$140,3) -> PC | E59: 36 | F59: =VLOOKUP(B59,TAB.REF!$A$3:$D$140,4) -> 3.63 | G59: 130.68 | H59: 4.78 | I59: 172.08
A60: 51 | B60: 327726 | C60: =VLOOKUP(B60,TAB.REF!$A$3:$D$140,2) -> CONETOR DE PERFURAÇÃO 10-70MM²/6-35MM² | D60: =VLOOKUP(B60,TAB.REF!$A$3:$D$140,3) -> PC | E60: 46 | F60: =VLOOKUP(B60,TAB.REF!$A$3:$D$140,4) -> 8.25 | G60: 379.5 | H60: 10.85 | I60: 499.1
A61: 52 | B61: 379679 | C61: =VLOOKUP(B61,TAB.REF!$A$3:$D$140,2) -> CONETOR DE PERFURAÇÃO 35-120MM²/1,5MM² | D61: =VLOOKUP(B61,TAB.REF!$A$3:$D$140,3) -> PC | E61: 26 | F61: =VLOOKUP(B61,TAB.REF!$A$3:$D$140,4) -> 5.98 | G61: 155.48 | H61: 7.87 | I61: 204.62
A62: 53 | B62: 327767 | C62: =VLOOKUP(B62,TAB.REF!$A$3:$D$140,2) -> CONETOR DE PERFURAÇÃO 70-240MM²/70-120MM² | D62: =VLOOKUP(B62,TAB.REF!$A$3:$D$140,3) -> PC | E62: 10 | F62: =VLOOKUP(B62,TAB.REF!$A$3:$D$140,4) -> 16 | G62: 160 | H62: 21.05 | I62: 210.5
A63: 54 | B63: 227769 | C63: =VLOOKUP(B63,TAB.REF!$A$3:$D$140,2) -> CONETOR FORMATO H ITEM 1 CAA 13-34MM² / 13-34MM² | D63: =VLOOKUP(B63,TAB.REF!$A$3:$D$140,3) -> PC | E63: 5 | F63: =VLOOKUP(B63,TAB.REF!$A$3:$D$140,4) -> 2.25 | G63: 11.25 | H63: 2.96 | I63: 14.8
A64: 55 | B64: 227777 | C64: =VLOOKUP(B64,TAB.REF!$A$3:$D$140,2) -> CONETOR FORMATO H ITEM 2 CAA 27-54MM² / 13-34MM² | D64: =VLOOKUP(B64,TAB.REF!$A$3:$D$140,3) -> PC | E64: 45 | F64: =VLOOKUP(B64,TAB.REF!$A$3:$D$140,4) -> 2.71 | G64: 121.95 | H64: 3.57 | I64: 160.65
A65: 56 | B65: 227785 | C65: =VLOOKUP(B65,TAB.REF!$A$3:$D$140,2) -> CONETOR FORMATO H ITEM 3 CAA 42-67MM² / 42-67MM² | D65: =VLOOKUP(B65,TAB.REF!$A$3:$D$140,3) -> PC | E65: 43 | F65: =VLOOKUP(B65,TAB.REF!$A$3:$D$140,4) -> 4.77 | G65: 205.11 | H65: 6.28 | I65: 270.04
A66: 57 | B66: 231175 | C66: =VLOOKUP(B66,TAB.REF!$A$3:$D$140,2) -> CONETOR PARA ATERRAMENTO DE FERRAGENS DE IP | D66: =VLOOKUP(B66,TAB.REF!$A$3:$D$140,3) -> PC | E66: 26 | F66: =VLOOKUP(B66,TAB.REF!$A$3:$D$140,4) -> 1.3 | G66: 33.8 | H66: 1.71 | I66: 44.46
A67: 58 | B67: 377357 | C67: =VLOOKUP(B67,TAB.REF!$A$3:$D$140,2) -> CONETOR TERMINAL ATERRAMENTO TEMPORÁRIO DE CHAVE | D67: =VLOOKUP(B67,TAB.REF!$A$3:$D$140,3) -> PC | E67: 4 | F67: =VLOOKUP(B67,TAB.REF!$A$3:$D$140,4) -> 8.63 | G67: =ROUND(F67*E67,2) -> 34.52 | H67: =ROUND(F67*(1+$I$6),2) -> 11.35 | I67: =ROUND(H67*E67,2) -> 45.4
A68: 59 | B68: 227066 | C68: =VLOOKUP(B68,TAB.REF!$A$3:$D$140,2) -> CONETOR TERMINAL COMP CA/CAA 54MM² / 70MM² COMPACT | D68: =VLOOKUP(B68,TAB.REF!$A$3:$D$140,3) -> PC | E68: 4 | F68: =VLOOKUP(B68,TAB.REF!$A$3:$D$140,4) -> 5.48 | G68: 21.92 | H68: 7.21 | I68: 28.84
A69: 60 | B69: 338731 | C69: =VLOOKUP(B69,TAB.REF!$A$3:$D$140,2) -> CONETOR TERMINAL COMPRESSÃO 16MM² | D69: =VLOOKUP(B69,TAB.REF!$A$3:$D$140,3) -> PC | E69: 3 | F69: =VLOOKUP(B69,TAB.REF!$A$3:$D$140,4) -> 2.12 | G69: 6.36 | H69: 2.79 | I69: 8.37
A70: 61 | B70: 231886 | C70: =VLOOKUP(B70,TAB.REF!$A$3:$D$140,2) -> CONETOR TERMINAL COMPRESSÃO 1F 50MM² | D70: =VLOOKUP(B70,TAB.REF!$A$3:$D$140,3) -> PC | E70: 18 | F70: =VLOOKUP(B70,TAB.REF!$A$3:$D$140,4) -> 1.92 | G70: 34.56 | H70: 2.53 | I70: 45.54
A71: 62 | B71: 227389 | C71: =VLOOKUP(B71,TAB.REF!$A$3:$D$140,2) -> CONETOR TERMINAL COMPRESSÃO 1F AÇO 6,4MM / 21MM² | D71: =VLOOKUP(B71,TAB.REF!$A$3:$D$140,3) -> PC | E71: 32 | F71: =VLOOKUP(B71,TAB.REF!$A$3:$D$140,4) -> 2.07 | G71: 66.24 | H71: 2.72 | I71: 87.04
A72: 63 | B72: 377705 | C72: =VLOOKUP(B72,TAB.REF!$A$3:$D$140,2) -> CRUZETA DE FIBRA DE VIDRO 2400X112,5X90MM | D72: =VLOOKUP(B72,TAB.REF!$A$3:$D$140,3) -> PC | E72: 9 | F72: =VLOOKUP(B72,TAB.REF!$A$3:$D$140,4) -> 210.26 | G72: 1892.34 | H72: 276.62 | I72: 2489.58
A73: 64 | B73: 271353 | C73: =VLOOKUP(B73,TAB.REF!$A$3:$D$140,2) -> ELO FUSÍVEL BOTÃO 500MM 3H | D73: =VLOOKUP(B73,TAB.REF!$A$3:$D$140,3) -> PC | E73: 3 | F73: =VLOOKUP(B73,TAB.REF!$A$3:$D$140,4) -> 4.3 | G73: 12.9 | H73: 5.66 | I73: 16.98
A74: 65 | B74: 231662 | C74: =VLOOKUP(B74,TAB.REF!$A$3:$D$140,2) -> ESPAÇADOR LOSANGULAR 50-150MM² 15KV | D74: =VLOOKUP(B74,TAB.REF!$A$3:$D$140,3) -> CJ | E74: 31 | F74: =VLOOKUP(B74,TAB.REF!$A$3:$D$140,4) -> 21.82 | G74: 676.42 | H74: 28.71 | I74: 890.01
A75: 66 | B75: 328120 | C75: =VLOOKUP(B75,TAB.REF!$A$3:$D$140,2) -> ESTRIBO PARA BRAÇO TIPO L PARA RDAP | D75: =VLOOKUP(B75,TAB.REF!$A$3:$D$140,3) -> PC | E75: 7 | F75: =VLOOKUP(B75,TAB.REF!$A$3:$D$140,4) -> 10.94 | G75: 76.58 | H75: 14.39 | I75: 100.73
A76: 67 | B76: 357342 | C76: =VLOOKUP(B76,TAB.REF!$A$3:$D$140,2) -> FIO PARA AMARRAÇÃO ALUMÍNIO RECOZIDO 5,2MM (4AWG) | D76: =VLOOKUP(B76,TAB.REF!$A$3:$D$140,3) -> KG | E76: 0.16 | F76: =VLOOKUP(B76,TAB.REF!$A$3:$D$140,4) -> 31.05 | G76: 4.97 | H76: 40.85 | I76: 6.54
A77: 68 | B77: 234567 | C77: =VLOOKUP(B77,TAB.REF!$A$3:$D$140,2) -> GRAMPO ANCORAGEM PARA CABO 50MM² 15KV | D77: =VLOOKUP(B77,TAB.REF!$A$3:$D$140,3) -> PC | E77: 21 | F77: =VLOOKUP(B77,TAB.REF!$A$3:$D$140,4) -> 20.12 | G77: 422.52 | H77: 26.47 | I77: 555.87
A78: 69 | B78: 378842 | C78: =VLOOKUP(B78,TAB.REF!$A$3:$D$140,2) -> GRAMPO DE LINHA VIVA | D78: =VLOOKUP(B78,TAB.REF!$A$3:$D$140,3) -> PC | E78: 12 | F78: =VLOOKUP(B78,TAB.REF!$A$3:$D$140,4) -> 57.96 | G78: 695.52 | H78: 76.25 | I78: 915
A79: 70 | B79: 222539 | C79: =VLOOKUP(B79,TAB.REF!$A$3:$D$140,2) -> HASTE ATERRAMENTO 2400MM | D79: =VLOOKUP(B79,TAB.REF!$A$3:$D$140,3) -> PC | E79: 17 | F79: =VLOOKUP(B79,TAB.REF!$A$3:$D$140,4) -> 40.75 | G79: 692.75 | H79: 53.61 | I79: 911.37
A80: 71 | B80: 219659 | C80: =VLOOKUP(B80,TAB.REF!$A$3:$D$140,2) -> ISOLADOR DE ANCORAGEM POLIMÉRICO 15KV ITEM 1 | D80: =VLOOKUP(B80,TAB.REF!$A$3:$D$140,3) -> PC | E80: 37 | F80: =VLOOKUP(B80,TAB.REF!$A$3:$D$140,4) -> 41.77 | G80: 1545.49 | H80: 54.95 | I80: 2033.15
A81: 72 | B81: 375718 | C81: =VLOOKUP(B81,TAB.REF!$A$3:$D$140,2) -> ISOLADOR PILAR PORCELANA 15KV | D81: =VLOOKUP(B81,TAB.REF!$A$3:$D$140,3) -> PC | E81: 3 | F81: =VLOOKUP(B81,TAB.REF!$A$3:$D$140,4) -> 57.98 | G81: 173.94 | H81: 76.28 | I81: 228.84
A82: 73 | B82: 219642 | C82: =VLOOKUP(B82,TAB.REF!$A$3:$D$140,2) -> ISOLADOR PINO POLIMÉRICO 15 KV P/BRAÇO SUPORTE C | D82: =VLOOKUP(B82,TAB.REF!$A$3:$D$140,3) -> PC | E82: 10 | F82: =VLOOKUP(B82,TAB.REF!$A$3:$D$140,4) -> 20.08 | G82: 200.8 | H82: 26.42 | I82: 264.2
A83: 74 | B83: 219634 | C83: =VLOOKUP(B83,TAB.REF!$A$3:$D$140,2) -> ISOLADOR ROLDANA PORCELANA OU VIDRO | D83: =VLOOKUP(B83,TAB.REF!$A$3:$D$140,3) -> PC | E83: 3 | F83: =VLOOKUP(B83,TAB.REF!$A$3:$D$140,4) -> 5.42 | G83: 16.26 | H83: 7.13 | I83: 21.39
A84: 75 | B84: 230367 | C84: =VLOOKUP(B84,TAB.REF!$A$3:$D$140,2) -> LAÇO PREFORMADO DE TOPO CA/CAA 34MM² (2AWG) | D84: =VLOOKUP(B84,TAB.REF!$A$3:$D$140,3) -> PC | E84: 3 | F84: =VLOOKUP(B84,TAB.REF!$A$3:$D$140,4) -> 3.52 | G84: 10.56 | H84: 4.63 | I84: 13.89
A85: 76 | B85: 120 | C85: =VLOOKUP(B85,TAB.REF!$A$3:$D$140,2) -> LUMINARIA LED POTÊNCIA ATÉ 120W FLUXO LUMINOSO APROXIMADO 13.800lm EFICIENCIA LUMINOSA ≥ 115lm/w | D85: =VLOOKUP(B85,TAB.REF!$A$3:$D$140,3) -> PC | E85: 9 | F85: =VLOOKUP(B85,TAB.REF!$A$3:$D$140,4) -> 767 | G85: 6903 | H85: 1009.07 | I85: 9081.63
A86: 77 | B86: 237271 | C86: =VLOOKUP(B86,TAB.REF!$A$3:$D$140,2) -> MANILHA SAPATILHA CLASSE 50KN | D86: =VLOOKUP(B86,TAB.REF!$A$3:$D$140,3) -> PC | E86: 39 | F86: =VLOOKUP(B86,TAB.REF!$A$3:$D$140,4) -> 10.91 | G86: 425.49 | H86: 14.35 | I86: 559.65
A87: 78 | B87: 374393 | C87: =VLOOKUP(B87,TAB.REF!$A$3:$D$140,2) -> MANTA AUTO-ADESIVA PARA EMENDA CABO 15KV RDP | D87: =VLOOKUP(B87,TAB.REF!$A$3:$D$140,3) -> PC | E87: 12 | F87: =VLOOKUP(B87,TAB.REF!$A$3:$D$140,4) -> 66.28 | G87: 795.36 | H87: 87.2 | I87: 1046.4
A88: 79 | B88: 237784 | C88: =VLOOKUP(B88,TAB.REF!$A$3:$D$140,2) -> MÃO-FRANCESA PERFILADA NORMAL 38X5X726MM | D88: =VLOOKUP(B88,TAB.REF!$A$3:$D$140,3) -> PC | E88: 9 | F88: =VLOOKUP(B88,TAB.REF!$A$3:$D$140,4) -> 22.64 | G88: 203.76 | H88: 29.79 | I88: 268.11
A89: 80 | B89: 82586 | C89: =VLOOKUP(B89,TAB.REF!$A$3:$D$140,2) -> MASSA CALAFETAR 1KG | D89: =VLOOKUP(B89,TAB.REF!$A$3:$D$140,3) -> KG | E89: 0.2 | F89: =VLOOKUP(B89,TAB.REF!$A$3:$D$140,4) -> 16.78 | G89: 3.36 | H89: 22.08 | I89: 4.42
A90: 81 | B90: 237289 | C90: =VLOOKUP(B90,TAB.REF!$A$3:$D$140,2) -> OLHAL PARA PARAFUSO 50KN | D90: =VLOOKUP(B90,TAB.REF!$A$3:$D$140,3) -> PC | E90: 79 | F90: =VLOOKUP(B90,TAB.REF!$A$3:$D$140,4) -> 16.76 | G90: 1324.04 | H90: 22.05 | I90: 1741.95
A91: 82 | B91: 66878 | C91: =VLOOKUP(B91,TAB.REF!$A$3:$D$140,2) -> PARAFUSO CABEÇA ABAULADA M16X 45MM | D91: =VLOOKUP(B91,TAB.REF!$A$3:$D$140,3) -> PC | E91: 105 | F91: =VLOOKUP(B91,TAB.REF!$A$3:$D$140,4) -> 2.17 | G91: 227.85 | H91: 2.85 | I91: 299.25
A92: 83 | B92: 66886 | C92: =VLOOKUP(B92,TAB.REF!$A$3:$D$140,2) -> PARAFUSO CABEÇA ABAULADA M16X 70MM | D92: =VLOOKUP(B92,TAB.REF!$A$3:$D$140,3) -> PC | E92: 266 | F92: =VLOOKUP(B92,TAB.REF!$A$3:$D$140,4) -> 2.64 | G92: 702.24 | H92: 3.47 | I92: 923.02
A93: 84 | B93: 66894 | C93: =VLOOKUP(B93,TAB.REF!$A$3:$D$140,2) -> PARAFUSO CABEÇA ABAULADA M16X150MM | D93: =VLOOKUP(B93,TAB.REF!$A$3:$D$140,3) -> PC | E93: 9 | F93: =VLOOKUP(B93,TAB.REF!$A$3:$D$140,4) -> 4.3 | G93: 38.7 | H93: 5.66 | I93: 50.94
A94: 85 | B94: 74807 | C94: =VLOOKUP(B94,TAB.REF!$A$3:$D$140,2) -> PARAFUSO CABEÇA QUADRADA M16X150MM | D94: =VLOOKUP(B94,TAB.REF!$A$3:$D$140,3) -> PC | E94: 9 | F94: =VLOOKUP(B94,TAB.REF!$A$3:$D$140,4) -> 4.37 | G94: 39.33 | H94: 5.75 | I94: 51.75
A95: 86 | B95: 74872 | C95: =VLOOKUP(B95,TAB.REF!$A$3:$D$140,2) -> PARAFUSO CABEÇA QUADRADA M16X500MM | D95: =VLOOKUP(B95,TAB.REF!$A$3:$D$140,3) -> PC | E95: 14 | F95: =VLOOKUP(B95,TAB.REF!$A$3:$D$140,4) -> 11.41 | G95: 159.74 | H95: 15.01 | I95: 210.14
A96: 87 | B96: 75036 | C96: =VLOOKUP(B96,TAB.REF!$A$3:$D$140,2) -> PARAFUSO CABEÇA SEXTAVADA M12X 40MM | D96: =VLOOKUP(B96,TAB.REF!$A$3:$D$140,3) -> PC | E96: 8 | F96: =VLOOKUP(B96,TAB.REF!$A$3:$D$140,4) -> 12.44 | G96: 99.52 | H96: 16.37 | I96: 130.96
A97: 88 | B97: 289058 | C97: =VLOOKUP(B97,TAB.REF!$A$3:$D$140,2) -> PÁRA-RAIOS 12KV 10KA ZNO | D97: =VLOOKUP(B97,TAB.REF!$A$3:$D$140,3) -> PC | E97: 15 | F97: =VLOOKUP(B97,TAB.REF!$A$3:$D$140,4) -> 153.69 | G97: =ROUND(F97*E97,2) -> 2305.35 | H97: =ROUND(F97*(1+$I$6),2) -> 202.19 | I97: =ROUND(H97*E97,2) -> 3032.85
A98: 89 | B98: 293357 | C98: =VLOOKUP(B98,TAB.REF!$A$3:$D$140,2) -> PÁRA-RAIOS REDE SECUNDÁRIA ISOLADA 280V 10KA | D98: =VLOOKUP(B98,TAB.REF!$A$3:$D$140,3) -> PC | E98: 3 | F98: =VLOOKUP(B98,TAB.REF!$A$3:$D$140,4) -> 59.64 | G98: 178.92 | H98: 78.46 | I98: 235.38
A99: 90 | B99: 236265 | C99: =VLOOKUP(B99,TAB.REF!$A$3:$D$140,2) -> PINO P/ ISOLADOR POLIMÉRICO ATÉ 36,2 KV - BRAÇO C | D99: =VLOOKUP(B99,TAB.REF!$A$3:$D$140,3) -> PC | E99: 4 | F99: =VLOOKUP(B99,TAB.REF!$A$3:$D$140,4) -> 15.35 | G99: 61.4 | H99: 20.19 | I99: 80.76
A100: 91 | B100: 375720 | C100: =VLOOKUP(B100,TAB.REF!$A$3:$D$140,2) -> PINO PARA ISOLADOR PILAR | D100: =VLOOKUP(B100,TAB.REF!$A$3:$D$140,3) -> PC | E100: 3 | F100: =VLOOKUP(B100,TAB.REF!$A$3:$D$140,4) -> 7.03 | G100: 21.09 | H100: 9.25 | I100: 27.75
A101: 92 | B101: 75630 | C101: =VLOOKUP(B101,TAB.REF!$A$3:$D$140,2) -> PORCA QUADRADA M16 24X24X13MM | D101: =VLOOKUP(B101,TAB.REF!$A$3:$D$140,3) -> PC | E101: 34 | F101: =VLOOKUP(B101,TAB.REF!$A$3:$D$140,4) -> 0.68 | G101: 23.12 | H101: 0.89 | I101: 30.26
A102: 93 | B102: 207415 | C102: =VLOOKUP(B102,TAB.REF!$A$3:$D$140,2) -> POSTE CONCRETO CIRCULAR 11M 300DAN | D102: =VLOOKUP(B102,TAB.REF!$A$3:$D$140,3) -> PC | E102: 7 | F102: =VLOOKUP(B102,TAB.REF!$A$3:$D$140,4) -> 695.96 | G102: 4871.72 | H102: 915.6 | I102: 6409.2
A103: 94 | B103: 207449 | C103: =VLOOKUP(B103,TAB.REF!$A$3:$D$140,2) -> POSTE CONCRETO CIRCULAR 11M 600DAN | D103: =VLOOKUP(B103,TAB.REF!$A$3:$D$140,3) -> PC | E103: 2 | F103: =VLOOKUP(B103,TAB.REF!$A$3:$D$140,4) -> 951.41 | G103: 1902.82 | H103: 1251.67 | I103: 2503.34
A104: 95 | B104: 207522 | C104: =VLOOKUP(B104,TAB.REF!$A$3:$D$140,2) -> POSTE CONCRETO CIRCULAR 12M 300DAN | D104: =VLOOKUP(B104,TAB.REF!$A$3:$D$140,3) -> PC | E104: 1 | F104: =VLOOKUP(B104,TAB.REF!$A$3:$D$140,4) -> 765.08 | G104: 765.08 | H104: 1006.54 | I104: 1006.54
A105: 96 | B105: 207506 | C105: =VLOOKUP(B105,TAB.REF!$A$3:$D$140,2) -> POSTE CONCRETO CIRCULAR 12M 600DAN | D105: =VLOOKUP(B105,TAB.REF!$A$3:$D$140,3) -> PC | E105: 2 | F105: =VLOOKUP(B105,TAB.REF!$A$3:$D$140,4) -> 1118.35 | G105: 2236.7 | H105: 1471.3 | I105: 2942.6
A106: 97 | B106: 207514 | C106: =VLOOKUP(B106,TAB.REF!$A$3:$D$140,2) -> POSTE CONCRETO CIRCULAR 12M1000DAN | D106: =VLOOKUP(B106,TAB.REF!$A$3:$D$140,3) -> PC | E106: 1 | F106: =VLOOKUP(B106,TAB.REF!$A$3:$D$140,4) -> 1597.78 | G106: 1597.78 | H106: 2102.04 | I106: 2102.04
A107: 98 | B107: 327361 | C107: =VLOOKUP(B107,TAB.REF!$A$3:$D$140,2) -> RELÉ FOTOELÉTRICO ELETRÔNICO 105-305V | D107: =VLOOKUP(B107,TAB.REF!$A$3:$D$140,3) -> PC | E107: 9 | F107: =VLOOKUP(B107,TAB.REF!$A$3:$D$140,4) -> 19.1 | G107: 171.9 | H107: 25.13 | I107: 226.17
A108: 99 | B108: 237768 | C108: =VLOOKUP(B108,TAB.REF!$A$3:$D$140,2) -> SAPATILHA | D108: =VLOOKUP(B108,TAB.REF!$A$3:$D$140,3) -> PC | E108: 25 | F108: =VLOOKUP(B108,TAB.REF!$A$3:$D$140,4) -> 1.99 | G108: 49.75 | H108: 2.62 | I108: 65.5
A109: 100 | B109: 237156 | C109: =VLOOKUP(B109,TAB.REF!$A$3:$D$140,2) -> SELA PARA CRUZETA | D109: =VLOOKUP(B109,TAB.REF!$A$3:$D$140,3) -> PC | E109: 9 | F109: =VLOOKUP(B109,TAB.REF!$A$3:$D$140,4) -> 8.88 | G109: 79.92 | H109: 11.68 | I109: 105.12
A110: 101 | B110: 237081 | C110: =VLOOKUP(B110,TAB.REF!$A$3:$D$140,2) -> SUPORTE 240MM TRANSFORMADOR POSTE CC | D110: =VLOOKUP(B110,TAB.REF!$A$3:$D$140,3) -> PC | E110: 2 | F110: =VLOOKUP(B110,TAB.REF!$A$3:$D$140,4) -> 104.81 | G110: 209.62 | H110: 137.89 | I110: 275.78
A111: 102 | B111: 237776 | C111: =VLOOKUP(B111,TAB.REF!$A$3:$D$140,2) -> SUPORTE L DE TOPO DE POSTE ITEM 1 | D111: =VLOOKUP(B111,TAB.REF!$A$3:$D$140,3) -> PC | E111: 1 | F111: =VLOOKUP(B111,TAB.REF!$A$3:$D$140,4) -> 32.39 | G111: 32.39 | H111: 42.61 | I111: 42.61
A112: 103 | B112: 237172 | C112: =VLOOKUP(B112,TAB.REF!$A$3:$D$140,2) -> SUPORTE L PARA CRUZETA | D112: =VLOOKUP(B112,TAB.REF!$A$3:$D$140,3) -> PC | E112: 15 | F112: =VLOOKUP(B112,TAB.REF!$A$3:$D$140,4) -> 25.98 | G112: 389.7 | H112: 34.18 | I112: 512.7
A113: 104 | B113: 245837 | C113: =VLOOKUP(B113,TAB.REF!$A$3:$D$140,2) -> TRANSFORMADOR TRIFÁSICO 15KV 45KVA | D113: =VLOOKUP(B113,TAB.REF!$A$3:$D$140,3) -> PC | E113: 1 | F113: =VLOOKUP(B113,TAB.REF!$A$3:$D$140,4) -> 5284 | G113: 5284 | H113: 6951.63 | I113: 6951.63
A114: VALOR TOTAL MATERIAIS | F114: =ROUND(SUM(G10:G113),2) -> 63161.08 | H114: =ROUND(SUM(I10:I113),2) -> 83096.26
A115: MÃO DE OBRA DE CONSTRUÇÃO | F115: PREÇO SEM BDI | H115: PREÇO COM BDI
A116: ITEM | B116: CÓDIGO | C116: DESCRIÇÃO | D116: UN | E116: QUANT. | F116: R$.UNIT. | G116: R$. TOTAL | H116: R$.UNIT. | I116: R$. TOTAL
A117: 1 | B117: US. CONST. RDA | C117: =VLOOKUP(B117,TAB.REF!$A$2:$D$140,2) -> MÃO DE OBRA DE CONSTRUÇÃO DE REDE ELÉTRICA | D117: US | E117: 18.85 | F117: =VLOOKUP(B117,TAB.REF!$A$2:$D$140,4) -> 1538.3 | G117: =ROUND(E117*F117,2) -> 28996.96 | H117: =F117*(1+$I$6) -> 2023.79 | I117: =ROUND(H117*E117,2) -> 38148.44
A118: 2 | B118: US. CONST. RDS | C118: =VLOOKUP(B118,TAB.REF!$A$2:$D$140,2) -> MÃO DE OBRA DE CONSTRUÇÃO DE REDE SUBTERRÂNEA | D118: US | F118: =VLOOKUP(B118,TAB.REF!$A$2:$D$140,4) -> 1538.3 | G118: =ROUND(E118*F118,2) -> 0 | H118: =F118*(1+$I$6) -> 2023.79 | I118: =ROUND(H118*E118,2) -> 0
A119: VALOR TOTAL MÃO DE OBRA | F119: =SUM(G117:G118) -> 28996.96 | H119: =SUM(I117:I118) -> 38148.44
A120: RESUMO | F120: PREÇO SEM BDI | H120: PREÇO COM BDI
A121: VALOR TOTAL MATERIAIS | F121: =ROUND(F114,2) -> 63161.08 | H121: =ROUND(H114,2) -> 83096.26
A122: VALOR TOTAL MÃO DE OBRA | F122: =ROUND(F119,2) -> 28996.96 | H122: =H119 -> 38148.44
A123: VALOR TOTAL | F123: =ROUND(SUM(F121:G122),2) -> 92158.04 | H123: =SUM(H121:I122) -> 121244.7
A126: =CONCATENATE(RESUMO!B18," ",RESUMO!C18) -> Patos de Minas, 4 de fevereiro de 2020
A129: _______________________________________________________
A130: =RESUMO!B21 -> Diogo Soares Resende
A131: =RESUMO!B22 -> Eng. Eletricista
A132: =RESUMO!B23 -> CREA: 194.419D/MG

Sheet CVCTEC-84
A2: PLANILHA ORÇAMENTÁRIA
A3: OBJETO: PROJETOS DE MODIFICAÇÃO, EXTENSÃO DE REDE E ILUMINAÇÃO PÚBLICA
A4: LOCAL: CVCTEC_PMINAS_84 - RUA SAGITÁRIO - JARDIM PELUZZO
A5: RESPONSÁVEL TÉCNICO: DIOGO SOARES RESENDE | F5: CREA: | G5: =LEFT(RIGHT(RESUMO!B23,11),8) -> 194.419D | H5: ART:
A6: REFERENCIA DE PREÇOS: PREÇOS DE MERCADO | F6: DATA: | G6: =RESUMO!E5 -> 2020-02-04 | H6: BDI : | I6: =RESUMO!F5 -> 0.3156
A8: ITEM | B8: CÓDIGO | C8: DESCRIÇÃO | D8: UNID. | E8: QUANT. | F8: PREÇO SEM BDI | H8: PREÇO COM BDI
F9: UNITÁRIO | G9: TOTAL | H9: UNITÁRIO | I9: TOTAL
A10: 1 | B10: 237222 | C10: =VLOOKUP(B10,TAB.REF!$A$3:$D$140,2) -> AFASTADOR ARMAÇÃO SECUNDÁRIA 500MM | D10: =VLOOKUP(B10,TAB.REF!$A$3:$D$140,3) -> PC | E10: 1 | F10: =VLOOKUP(B10,TAB.REF!$A$3:$D$140,4) -> 124.8 | G10: =ROUND(F10*E10,2) -> 124.8 | H10: =ROUND(F10*(1+$I$6),2) -> 164.19 | I10: =ROUND(H10*E10,2) -> 164.19
A11: 2 | B11: 229005 | C11: =VLOOKUP(B11,TAB.REF!$A$3:$D$140,2) -> ALÇA PREFORMADA NEUTRO CA/CAL 70MM² | D11: =VLOOKUP(B11,TAB.REF!$A$3:$D$140,3) -> PC | E11: 4 | F11: =VLOOKUP(B11,TAB.REF!$A$3:$D$140,4) -> 6.03 | G11: 24.12 | H11: 7.93 | I11: 31.72
A12: 3 | B12: 237677 | C12: =VLOOKUP(B12,TAB.REF!$A$3:$D$140,2) -> ALÇA PREFORMADA ESTAI CABO AÇO 9,5MM | D12: =VLOOKUP(B12,TAB.REF!$A$3:$D$140,3) -> PC | E12: 6 | F12: =VLOOKUP(B12,TAB.REF!$A$3:$D$140,4) -> 12.24 | G12: 73.44 | H12: 16.1 | I12: 96.6
A13: 4 | B13: 327700 | C13: =VLOOKUP(B13,TAB.REF!$A$3:$D$140,2) -> ANEL ELASTOMÉRICO P/ ISOLADOR PINO POLIMÉRICO 15KV | D13: =VLOOKUP(B13,TAB.REF!$A$3:$D$140,3) -> PC | E13: 6 | F13: =VLOOKUP(B13,TAB.REF!$A$3:$D$140,4) -> 4.29 | G13: 25.74 | H13: 5.64 | I13: 33.84
A14: 5 | B14: 327692 | C14: =VLOOKUP(B14,TAB.REF!$A$3:$D$140,2) -> BRAÇADEIRA PLÁSTICA CABO MULTIPLEXADO | D14: =VLOOKUP(B14,TAB.REF!$A$3:$D$140,3) -> PC | E14: 9 | F14: =VLOOKUP(B14,TAB.REF!$A$3:$D$140,4) -> 1.15 | G14: 10.35 | H14: 1.51 | I14: 13.59
A15: 6 | B15: 231712 | C15: =VLOOKUP(B15,TAB.REF!$A$3:$D$140,2) -> BRAÇO SUPORTE COM GRAMPO DE SUSPENSÃO ITEM 2 | D15: =VLOOKUP(B15,TAB.REF!$A$3:$D$140,3) -> CJ | E15: 2 | F15: =VLOOKUP(B15,TAB.REF!$A$3:$D$140,4) -> 38.38 | G15: 76.76 | H15: 50.49 | I15: 100.98
A16: 7 | B16: 211789 | C16: =VLOOKUP(B16,TAB.REF!$A$3:$D$140,2) -> BRAÇO SUPORTE C | D16: =VLOOKUP(B16,TAB.REF!$A$3:$D$140,3) -> PC | E16: 4 | F16: =VLOOKUP(B16,TAB.REF!$A$3:$D$140,4) -> 92.79 | G16: 371.16 | H16: 122.07 | I16: 488.28
A17: 8 | B17: 223818 | C17: =VLOOKUP(B17,TAB.REF!$A$3:$D$140,2) -> CANTONEIRA PARA BRAÇO C | D17: =VLOOKUP(B17,TAB.REF!$A$3:$D$140,3) -> PC | E17: 2 | F17: =VLOOKUP(B17,TAB.REF!$A$3:$D$140,4) -> 60.9 | G17: 121.8 | H17: 80.12 | I17: 160.24
A18: 9 | B18: 231878 | C18: =VLOOKUP(B18,TAB.REF!$A$3:$D$140,2) -> CARTUCHO DE APLICAÇÃO VERMELHO | D18: =VLOOKUP(B18,TAB.REF!$A$3:$D$140,3) -> PC | E18: 6 | F18: =VLOOKUP(B18,TAB.REF!$A$3:$D$140,4) -> 6.54 | G18: 39.24 | H18: 8.6 | I18: 51.6
A19: 10 | B19: 2964 | C19: =VLOOKUP(B19,TAB.REF!$A$3:$D$140,2) -> CABO DE AÇO HS 3/8P (9,5MM²) 7FIOS | D19: =VLOOKUP(B19,TAB.REF!$A$3:$D$140,3) -> KG | E19: 26.8 | F19: =VLOOKUP(B19,TAB.REF!$A$3:$D$140,4) -> 7.78 | G19: 208.5 | H19: 10.24 | I19: 274.43
A20: 11 | B20: 2931 | C20: =VLOOKUP(B20,TAB.REF!$A$3:$D$140,2) -> CABO DE AÇO MR 1/4P (6,4MM) 7 FIOS | D20: =VLOOKUP(B20,TAB.REF!$A$3:$D$140,3) -> KG | E20: 4.5 | F20: =VLOOKUP(B20,TAB.REF!$A$3:$D$140,4) -> 2.76 | G20: 12.42 | H20: 3.63 | I20: 16.34
A21: 12 | B21: 225623 | C21: =VLOOKUP(B21,TAB.REF!$A$3:$D$140,2) -> CABO AL 1X 16MM² 1KV | D21: =VLOOKUP(B21,TAB.REF!$A$3:$D$140,3) -> M | E21: 3 | F21: =VLOOKUP(B21,TAB.REF!$A$3:$D$140,4) -> 1.85 | G21: 5.55 | H21: 2.43 | I21: 7.29
A22: 13 | B22: 231548 | C22: =VLOOKUP(B22,TAB.REF!$A$3:$D$140,2) -> CABO AL 1X 50MM² 15KV PROTEGIDO | D22: =VLOOKUP(B22,TAB.REF!$A$3:$D$140,3) -> M | E22: 206.5 | F22: =VLOOKUP(B22,TAB.REF!$A$3:$D$140,4) -> 7.15 | G22: 1476.48 | H22: 9.41 | I22: 1943.17
A23: 14 | B23: 225656 | C23: =VLOOKUP(B23,TAB.REF!$A$3:$D$140,2) -> CABO AL 1X 70MM² 1KV | D23: =VLOOKUP(B23,TAB.REF!$A$3:$D$140,3) -> M | E23: 6 | F23: =VLOOKUP(B23,TAB.REF!$A$3:$D$140,4) -> 6.53 | G23: 39.18 | H23: 8.59 | I23: 51.54
A24: 15 | B24: 270439 | C24: =VLOOKUP(B24,TAB.REF!$A$3:$D$140,2) -> CHAVE FUSÍVEL 15KV COM PORTA FUSÍVEL 100A 7,1KA | D24: =VLOOKUP(B24,TAB.REF!$A$3:$D$140,3) -> PC | E24: 3 | F24: =VLOOKUP(B24,TAB.REF!$A$3:$D$140,4) -> 243.45 | G24: 730.35 | H24: 320.28 | I24: 960.84
A25: 16 | B25: 236802 | C25: =VLOOKUP(B25,TAB.REF!$A$3:$D$140,2) -> PINO P/ ISOLADOR POLIMÉRICO ATÉ 36,2 KV - BRAÇO C | D25: =VLOOKUP(B25,TAB.REF!$A$3:$D$140,3) -> PC | E25: 1 | F25: =VLOOKUP(B25,TAB.REF!$A$3:$D$140,4) -> 15.35 | G25: 15.35 | H25: 20.19 | I25: 20.19
A26: 17 | B26: 236810 | C26: =VLOOKUP(B26,TAB.REF!$A$3:$D$140,2) -> PINO P/ ISOLADOR POLIMÉRICO ATÉ 36,2 KV - BRAÇO C | D26: =VLOOKUP(B26,TAB.REF!$A$3:$D$140,3) -> PC | E26: 1 | F26: =VLOOKUP(B26,TAB.REF!$A$3:$D$140,4) -> 15.35 | G26: =ROUND(F26*E26,2) -> 15.35 | H26: =ROUND(F26*(1+$I$6),2) -> 20.19 | I26: =ROUND(H26*E26,2) -> 20.19
A27: 18 | B27: 236851 | C27: =VLOOKUP(B27,TAB.REF!$A$3:$D$140,2) -> CINTA DE AÇO D 190MM | D27: =VLOOKUP(B27,TAB.REF!$A$3:$D$140,3) -> PC | E27: 3 | F27: =VLOOKUP(B27,TAB.REF!$A$3:$D$140,4) -> 17.48 | G27: =ROUND(F27*E27,2) -> 52.44 | H27: =ROUND(F27*(1+$I$6),2) -> 23 | I27: =ROUND(H27*E27,2) -> 69
A28: 19 | B28: 236869 | C28: =VLOOKUP(B28,TAB.REF!$A$3:$D$140,2) -> CINTA DE AÇO D 200MM | D28: =VLOOKUP(B28,TAB.REF!$A$3:$D$140,3) -> PC | E28: 2 | F28: =VLOOKUP(B28,TAB.REF!$A$3:$D$140,4) -> 17.93 | G28: 35.86 | H28: 23.59 | I28: 47.18
A29: 20 | B29: 236877 | C29: =VLOOKUP(B29,TAB.REF!$A$3:$D$140,2) -> CINTA DE AÇO D 210MM | D29: =VLOOKUP(B29,TAB.REF!$A$3:$D$140,3) -> PC | E29: 3 | F29: =VLOOKUP(B29,TAB.REF!$A$3:$D$140,4) -> 18.52 | G29: 55.56 | H29: 24.36 | I29: 73.08
A30: 21 | B30: 236885 | C30: =VLOOKUP(B30,TAB.REF!$A$3:$D$140,2) -> CINTA DE AÇO D 220MM | D30: =VLOOKUP(B30,TAB.REF!$A$3:$D$140,3) -> PC | E30: 3 | F30: =VLOOKUP(B30,TAB.REF!$A$3:$D$140,4) -> 18.66 | G30: 55.98 | H30: 24.55 | I30: 73.65
A31: 22 | B31: 236893 | C31: =VLOOKUP(B31,TAB.REF!$A$3:$D$140,2) -> CINTA DE AÇO D 230MM | D31: =VLOOKUP(B31,TAB.REF!$A$3:$D$140,3) -> PC | E31: 6 | F31: =VLOOKUP(B31,TAB.REF!$A$3:$D$140,4) -> 19.34 | G31: 116.04 | H31: 25.44 | I31: 152.64
A32: 23 | B32: 375058 | C32: =VLOOKUP(B32,TAB.REF!$A$3:$D$140,2) -> COBERTURA PROTETORA P/ BCH BT TRANSFORMADOR ITEM 1 | D32: =VLOOKUP(B32,TAB.REF!$A$3:$D$140,3) -> PC | E32: 4 | F32: =VLOOKUP(B32,TAB.REF!$A$3:$D$140,4) -> 8.41 | G32: 33.64 | H32: 11.06 | I32: 44.24
A33: 24 | B33: 39586 | C33: =VLOOKUP(B33,TAB.REF!$A$3:$D$140,2) -> COBERTURA PROTETORA PARA BUCHA DE EQUIPAMENTO | D33: =VLOOKUP(B33,TAB.REF!$A$3:$D$140,3) -> PC | E33: 3 | F33: =VLOOKUP(B33,TAB.REF!$A$3:$D$140,4) -> 9.67 | G33: 29.01 | H33: 12.72 | I33: 38.16
A34: 25 | B34: 377357 | C34: =VLOOKUP(B34,TAB.REF!$A$3:$D$140,2) -> CONETOR TERMINAL ATERRAMENTO TEMPORÁRIO DE CHAVE | D34: =VLOOKUP(B34,TAB.REF!$A$3:$D$140,3) -> PC | E34: 3 | F34: =VLOOKUP(B34,TAB.REF!$A$3:$D$140,4) -> 8.63 | G34: 25.89 | H34: 11.35 | I34: 34.05
A35: 26 | B35: 378809 | C35: =VLOOKUP(B35,TAB.REF!$A$3:$D$140,2) -> CONECTOR TERMINAL P/ BUCHA,50 MM²,RETO,COMPRESSÃO | D35: =VLOOKUP(B35,TAB.REF!$A$3:$D$140,3) -> PC | E35: 3 | F35: =VLOOKUP(B35,TAB.REF!$A$3:$D$140,4) -> 12.06 | G35: 36.18 | H35: 15.87 | I35: 47.61
A36: 27 | B36: 231795 | C36: =VLOOKUP(B36,TAB.REF!$A$3:$D$140,2) -> CONETOR CUNHA AL 50MM² COM ESTRIBO | D36: =VLOOKUP(B36,TAB.REF!$A$3:$D$140,3) -> PC | E36: 6 | F36: =VLOOKUP(B36,TAB.REF!$A$3:$D$140,4) -> 14.96 | G36: 89.76 | H36: 19.68 | I36: 118.08
A37: 28 | B37: 227850 | C37: =VLOOKUP(B37,TAB.REF!$A$3:$D$140,2) -> CONETOR CUNHA CU ITEM 1 | D37: =VLOOKUP(B37,TAB.REF!$A$3:$D$140,3) -> PC | E37: 3 | F37: =VLOOKUP(B37,TAB.REF!$A$3:$D$140,4) -> 3.79 | G37: 11.37 | H37: 4.99 | I37: 14.97
A38: 29 | B38: 231696 | C38: =VLOOKUP(B38,TAB.REF!$A$3:$D$140,2) -> CONETOR CUNHA CU ITEM 6 | D38: =VLOOKUP(B38,TAB.REF!$A$3:$D$140,3) -> PC | E38: 1 | F38: =VLOOKUP(B38,TAB.REF!$A$3:$D$140,4) -> 4.27 | G38: 4.27 | H38: 5.62 | I38: 5.62
A39: 30 | B39: 231688 | C39: =VLOOKUP(B39,TAB.REF!$A$3:$D$140,2) -> CONETOR CUNHA CU ITEM 7 | D39: =VLOOKUP(B39,TAB.REF!$A$3:$D$140,3) -> PC | E39: 12 | F39: =VLOOKUP(B39,TAB.REF!$A$3:$D$140,4) -> 3.9 | G39: 46.8 | H39: 5.13 | I39: 61.56
A40: 31 | B40: 327767 | C40: =VLOOKUP(B40,TAB.REF!$A$3:$D$140,2) -> CONETOR DE PERFURAÇÃO 70-240MM²/70-120MM² | D40: =VLOOKUP(B40,TAB.REF!$A$3:$D$140,3) -> PC | E40: 6 | F40: =VLOOKUP(B40,TAB.REF!$A$3:$D$140,4) -> 16 | G40: 96 | H40: 21.05 | I40: 126.3
A41: 32 | B41: 227769 | C41: =VLOOKUP(B41,TAB.REF!$A$3:$D$140,2) -> CONETOR FORMATO H ITEM 1 CAA 13-34MM² / 13-34MM² | D41: =VLOOKUP(B41,TAB.REF!$A$3:$D$140,3) -> PC | E41: 1 | F41: =VLOOKUP(B41,TAB.REF!$A$3:$D$140,4) -> 2.25 | G41: 2.25 | H41: 2.96 | I41: 2.96
A42: 33 | B42: 227777 | C42: =VLOOKUP(B42,TAB.REF!$A$3:$D$140,2) -> CONETOR FORMATO H ITEM 2 CAA 27-54MM² / 13-34MM² | D42: =VLOOKUP(B42,TAB.REF!$A$3:$D$140,3) -> PC | E42: 4 | F42: =VLOOKUP(B42,TAB.REF!$A$3:$D$140,4) -> 2.71 | G42: 10.84 | H42: 3.57 | I42: 14.28
A43: 34 | B43: 227785 | C43: =VLOOKUP(B43,TAB.REF!$A$3:$D$140,2) -> CONETOR FORMATO H ITEM 3 CAA 42-67MM² / 42-67MM² | D43: =VLOOKUP(B43,TAB.REF!$A$3:$D$140,3) -> PC | E43: 19 | F43: =VLOOKUP(B43,TAB.REF!$A$3:$D$140,4) -> 4.77 | G43: 90.63 | H43: 6.28 | I43: 119.32
A44: 35 | B44: 327726 | C44: =VLOOKUP(B44,TAB.REF!$A$3:$D$140,2) -> CONETOR DE PERFURAÇÃO 10-70MM²/6-35MM² | D44: =VLOOKUP(B44,TAB.REF!$A$3:$D$140,3) -> PC | E44: 7 | F44: =VLOOKUP(B44,TAB.REF!$A$3:$D$140,4) -> 8.25 | G44: 57.75 | H44: 10.85 | I44: 75.95
A45: 36 | B45: 231886 | C45: =VLOOKUP(B45,TAB.REF!$A$3:$D$140,2) -> CONETOR TERMINAL COMPRESSÃO 1F 50MM² | D45: =VLOOKUP(B45,TAB.REF!$A$3:$D$140,3) -> PC | E45: 6 | F45: =VLOOKUP(B45,TAB.REF!$A$3:$D$140,4) -> 1.92 | G45: =ROUND(F45*E45,2) -> 11.52 | H45: =ROUND(F45*(1+$I$6),2) -> 2.53 | I45: =ROUND(H45*E45,2) -> 15.18
A46: 37 | B46: 227066 | C46: =VLOOKUP(B46,TAB.REF!$A$3:$D$140,2) -> CONETOR TERMINAL COMP CA/CAA 54MM² / 70MM² COMPACT | D46: =VLOOKUP(B46,TAB.REF!$A$3:$D$140,3) -> PC | E46: 4 | F46: =VLOOKUP(B46,TAB.REF!$A$3:$D$140,4) -> 5.48 | G46: =ROUND(F46*E46,2) -> 21.92 | H46: =ROUND(F46*(1+$I$6),2) -> 7.21 | I46: =ROUND(H46*E46,2) -> 28.84
A47: 38 | B47: 227389 | C47: =VLOOKUP(B47,TAB.REF!$A$3:$D$140,2) -> CONETOR TERMINAL COMPRESSÃO 1F AÇO 6,4MM / 21MM² | D47: =VLOOKUP(B47,TAB.REF!$A$3:$D$140,3) -> PC | E47: 6 | F47: =VLOOKUP(B47,TAB.REF!$A$3:$D$140,4) -> 2.07 | G47: 12.42 | H47: 2.72 | I47: 16.32
A48: 39 | B48: 338731 | C48: =VLOOKUP(B48,TAB.REF!$A$3:$D$140,2) -> CONETOR TERMINAL COMPRESSÃO 16MM² | D48: =VLOOKUP(B48,TAB.REF!$A$3:$D$140,3) -> PC | E48: 3 | F48: =VLOOKUP(B48,TAB.REF!$A$3:$D$140,4) -> 2.12 | G48: 6.36 | H48: 2.79 | I48: 8.37
A49: 40 | B49: 271353 | C49: =VLOOKUP(B49,TAB.REF!$A$3:$D$140,2) -> ELO FUSÍVEL BOTÃO 500MM 3H | D49: =VLOOKUP(B49,TAB.REF!$A$3:$D$140,3) -> PC | E49: 3 | F49: =VLOOKUP(B49,TAB.REF!$A$3:$D$140,4) -> 4.3 | G49: 12.9 | H49: 5.66 | I49: 16.98
A50: 41 | B50: 234567 | C50: =VLOOKUP(B50,TAB.REF!$A$3:$D$140,2) -> GRAMPO ANCORAGEM PARA CABO 50MM² 15KV | D50: =VLOOKUP(B50,TAB.REF!$A$3:$D$140,3) -> PC | E50: 6 | F50: =VLOOKUP(B50,TAB.REF!$A$3:$D$140,4) -> 20.12 | G50: 120.72 | H50: 26.47 | I50: 158.82
A51: 42 | B51: 222539 | C51: =VLOOKUP(B51,TAB.REF!$A$3:$D$140,2) -> HASTE ATERRAMENTO 2400MM | D51: =VLOOKUP(B51,TAB.REF!$A$3:$D$140,3) -> PC | E51: 3 | F51: =VLOOKUP(B51,TAB.REF!$A$3:$D$140,4) -> 40.75 | G51: 122.25 | H51: 53.61 | I51: 160.83
A52: 43 | B52: 219659 | C52: =VLOOKUP(B52,TAB.REF!$A$3:$D$140,2) -> ISOLADOR DE ANCORAGEM POLIMÉRICO 15KV ITEM 1 | D52: =VLOOKUP(B52,TAB.REF!$A$3:$D$140,3) -> PC | E52: 6 | F52: =VLOOKUP(B52,TAB.REF!$A$3:$D$140,4) -> 41.77 | G52: 250.62 | H52: 54.95 | I52: 329.7
A53: 44 | B53: 219642 | C53: =VLOOKUP(B53,TAB.REF!$A$3:$D$140,2) -> ISOLADOR PINO POLIMÉRICO 15 KV P/BRAÇO SUPORTE C | D53: =VLOOKUP(B53,TAB.REF!$A$3:$D$140,3) -> PC | E53: 6 | F53: =VLOOKUP(B53,TAB.REF!$A$3:$D$140,4) -> 20.08 | G53: 120.48 | H53: 26.42 | I53: 158.52
A54: 45 | B54: 237271 | C54: =VLOOKUP(B54,TAB.REF!$A$3:$D$140,2) -> MANILHA SAPATILHA CLASSE 50KN | D54: =VLOOKUP(B54,TAB.REF!$A$3:$D$140,3) -> PC | E54: 6 | F54: =VLOOKUP(B54,TAB.REF!$A$3:$D$140,4) -> 10.91 | G54: 65.46 | H54: 14.35 | I54: 86.1
A55: 46 | B55: 374393 | C55: =VLOOKUP(B55,TAB.REF!$A$3:$D$140,2) -> MANTA AUTO-ADESIVA PARA EMENDA CABO 15KV RDP | D55: =VLOOKUP(B55,TAB.REF!$A$3:$D$140,3) -> PC | E55: 6 | F55: =VLOOKUP(B55,TAB.REF!$A$3:$D$140,4) -> 66.28 | G55: 397.68 | H55: 87.2 | I55: 523.2
A56: 47 | B56: 237289 | C56: =VLOOKUP(B56,TAB.REF!$A$3:$D$140,2) -> OLHAL PARA PARAFUSO 50KN | D56: =VLOOKUP(B56,TAB.REF!$A$3:$D$140,3) -> PC | E56: 17 | F56: =VLOOKUP(B56,TAB.REF!$A$3:$D$140,4) -> 16.76 | G56: 284.92 | H56: 22.05 | I56: 374.85
A57: 48 | B57: 66688 | C57: =VLOOKUP(B57,TAB.REF!$A$3:$D$140,2) -> PARAFUSO CABEÇA ABAULADA M12X 40MM | D57: =VLOOKUP(B57,TAB.REF!$A$3:$D$140,3) -> PC | E57: 2 | F57: =VLOOKUP(B57,TAB.REF!$A$3:$D$140,4) -> 1.63 | G57: 3.26 | H57: 2.14 | I57: 4.28
A58: 49 | B58: 66878 | C58: =VLOOKUP(B58,TAB.REF!$A$3:$D$140,2) -> PARAFUSO CABEÇA ABAULADA M16X 45MM | D58: =VLOOKUP(B58,TAB.REF!$A$3:$D$140,3) -> PC | E58: 23 | F58: =VLOOKUP(B58,TAB.REF!$A$3:$D$140,4) -> 2.17 | G58: 49.91 | H58: 2.85 | I58: 65.55
A59: 50 | B59: 66886 | C59: =VLOOKUP(B59,TAB.REF!$A$3:$D$140,2) -> PARAFUSO CABEÇA ABAULADA M16X 70MM | D59: =VLOOKUP(B59,TAB.REF!$A$3:$D$140,3) -> PC | E59: 54 | F59: =VLOOKUP(B59,TAB.REF!$A$3:$D$140,4) -> 2.64 | G59: 142.56 | H59: 3.47 | I59: 187.38
A60: 51 | B60: 75036 | C60: =VLOOKUP(B60,TAB.REF!$A$3:$D$140,2) -> PARAFUSO CABEÇA SEXTAVADA M12X 40MM | D60: =VLOOKUP(B60,TAB.REF!$A$3:$D$140,3) -> PC | E60: 8 | F60: =VLOOKUP(B60,TAB.REF!$A$3:$D$140,4) -> 12.44 | G60: 99.52 | H60: 16.37 | I60: 130.96
A61: 52 | B61: 289058 | C61: =VLOOKUP(B61,TAB.REF!$A$3:$D$140,2) -> PÁRA-RAIOS 12KV 10KA ZNO | D61: =VLOOKUP(B61,TAB.REF!$A$3:$D$140,3) -> PC | E61: 3 | F61: =VLOOKUP(B61,TAB.REF!$A$3:$D$140,4) -> 153.69 | G61: 461.07 | H61: 202.19 | I61: 606.57
A62: 53 | B62: 293357 | C62: =VLOOKUP(B62,TAB.REF!$A$3:$D$140,2) -> PÁRA-RAIOS REDE SECUNDÁRIA ISOLADA 280V 10KA | D62: =VLOOKUP(B62,TAB.REF!$A$3:$D$140,3) -> PC | E62: 3 | F62: =VLOOKUP(B62,TAB.REF!$A$3:$D$140,4) -> 59.64 | G62: 178.92 | H62: 78.46 | I62: 235.38
A63: 54 | B63: 236265 | C63: =VLOOKUP(B63,TAB.REF!$A$3:$D$140,2) -> PINO P/ ISOLADOR POLIMÉRICO ATÉ 36,2 KV - BRAÇO C | D63: =VLOOKUP(B63,TAB.REF!$A$3:$D$140,3) -> PC | E63: 6 | F63: =VLOOKUP(B63,TAB.REF!$A$3:$D$140,4) -> 15.35 | G63: 92.1 | H63: 20.19 | I63: 121.14
A64: 55 | B64: 207449 | C64: =VLOOKUP(B64,TAB.REF!$A$3:$D$140,2) -> POSTE CONCRETO CIRCULAR 11M 600DAN | D64: =VLOOKUP(B64,TAB.REF!$A$3:$D$140,3) -> PC | E64: 2 | F64: =VLOOKUP(B64,TAB.REF!$A$3:$D$140,4) -> 951.41 | G64: 1902.82 | H64: 1251.67 | I64: 2503.34
A65: 56 | B65: 237768 | C65: =VLOOKUP(B65,TAB.REF!$A$3:$D$140,2) -> SAPATILHA | D65: =VLOOKUP(B65,TAB.REF!$A$3:$D$140,3) -> PC | E65: 9 | F65: =VLOOKUP(B65,TAB.REF!$A$3:$D$140,4) -> 1.99 | G65: 17.91 | H65: 2.62 | I65: 23.58
A66: 57 | B66: 237081 | C66: =VLOOKUP(B66,TAB.REF!$A$3:$D$140,2) -> SUPORTE 240MM TRANSFORMADOR POSTE CC | D66: =VLOOKUP(B66,TAB.REF!$A$3:$D$140,3) -> PC | E66: 2 | F66: =VLOOKUP(B66,TAB.REF!$A$3:$D$140,4) -> 104.81 | G66: 209.62 | H66: 137.89 | I66: 275.78
A67: 58 | B67: 231555 | C67: =VLOOKUP(B67,TAB.REF!$A$3:$D$140,2) -> SUPORTE Z PARA CHAVE FUSÍVEL | D67: =VLOOKUP(B67,TAB.REF!$A$3:$D$140,3) -> PC | E67: 1 | F67: =VLOOKUP(B67,TAB.REF!$A$3:$D$140,4) -> 14.06 | G67: 14.06 | H67: 18.5 | I67: 18.5
A68: 59 | B68: 245837 | C68: =VLOOKUP(B68,TAB.REF!$A$3:$D$140,2) -> TRANSFORMADOR TRIFÁSICO 15KV 45KVA | D68: =VLOOKUP(B68,TAB.REF!$A$3:$D$140,3) -> PC | E68: 1 | F68: =VLOOKUP(B68,TAB.REF!$A$3:$D$140,4) -> 5284 | G68: 5284 | H68: 6951.63 | I68: 6951.63
A69: 60 | B69: 2931 | C69: =VLOOKUP(B69,TAB.REF!$A$3:$D$140,2) -> CABO DE AÇO MR 1/4P (6,4MM) 7 FIOS | D69: =VLOOKUP(B69,TAB.REF!$A$3:$D$140,3) -> KG | E69: 1.6 | F69: =VLOOKUP(B69,TAB.REF!$A$3:$D$140,4) -> 2.76 | G69: 4.42 | H69: 3.63 | I69: 5.81
A70: 61 | B70: 225615 | C70: =VLOOKUP(B70,TAB.REF!$A$3:$D$140,2) -> CABO CU 1X 1,5MM² 1KV XLPE | D70: =VLOOKUP(B70,TAB.REF!$A$3:$D$140,3) -> M | E70: 32 | F70: =VLOOKUP(B70,TAB.REF!$A$3:$D$140,4) -> 1.15 | G70: 36.8 | H70: 1.51 | I70: 48.32
A71: 62 | B71: 236919 | C71: =VLOOKUP(B71,TAB.REF!$A$3:$D$140,2) -> CINTA DE AÇO D 250MM | D71: =VLOOKUP(B71,TAB.REF!$A$3:$D$140,3) -> PC | E71: 6 | F71: =VLOOKUP(B71,TAB.REF!$A$3:$D$140,4) -> 21.79 | G71: 130.74 | H71: 28.67 | I71: 172.02
A72: 63 | B72: 231175 | C72: =VLOOKUP(B72,TAB.REF!$A$3:$D$140,2) -> CONETOR PARA ATERRAMENTO DE FERRAGENS DE IP | D72: =VLOOKUP(B72,TAB.REF!$A$3:$D$140,3) -> PC | E72: 8 | F72: =VLOOKUP(B72,TAB.REF!$A$3:$D$140,4) -> 1.3 | G72: 10.4 | H72: 1.71 | I72: 13.68
A73: 64 | B73: 227850 | C73: =VLOOKUP(B73,TAB.REF!$A$3:$D$140,2) -> CONETOR CUNHA CU ITEM 1 | D73: =VLOOKUP(B73,TAB.REF!$A$3:$D$140,3) -> PC | E73: 4 | F73: =VLOOKUP(B73,TAB.REF!$A$3:$D$140,4) -> 3.79 | G73: =ROUND(F73*E73,2) -> 15.16 | H73: =ROUND(F73*(1+$I$6),2) -> 4.99 | I73: =ROUND(H73*E73,2) -> 19.96
A74: 65 | B74: 379679 | C74: =VLOOKUP(B74,TAB.REF!$A$3:$D$140,2) -> CONETOR DE PERFURAÇÃO 35-120MM²/1,5MM² | D74: =VLOOKUP(B74,TAB.REF!$A$3:$D$140,3) -> PC | E74: 8 | F74: =VLOOKUP(B74,TAB.REF!$A$3:$D$140,4) -> 5.98 | G74: =ROUND(F74*E74,2) -> 47.84 | H74: =ROUND(F74*(1+$I$6),2) -> 7.87 | I74: =ROUND(H74*E74,2) -> 62.96
A75: 66 | B75: 66886 | C75: =VLOOKUP(B75,TAB.REF!$A$3:$D$140,2) -> PARAFUSO CABEÇA ABAULADA M16X 70MM | D75: =VLOOKUP(B75,TAB.REF!$A$3:$D$140,3) -> PC | E75: 12 | F75: =VLOOKUP(B75,TAB.REF!$A$3:$D$140,4) -> 2.64 | G75: 31.68 | H75: 3.47 | I75: 41.64
A76: 67 | B76: 228981 | C76: =VLOOKUP(B76,TAB.REF!$A$3:$D$140,2) -> ALÇA PREFORMADA NEUTRO CA/CAL 16MM² | D76: =VLOOKUP(B76,TAB.REF!$A$3:$D$140,3) -> PC | E76: 48 | F76: =VLOOKUP(B76,TAB.REF!$A$3:$D$140,4) -> 1.3 | G76: 62.4 | H76: 1.71 | I76: 82.08
A77: 68 | B77: 331728 | C77: =VLOOKUP(B77,TAB.REF!$A$3:$D$140,2) -> CONETOR CUNHA ITEM 2 + COBERTURA ISOLANTE ITEM 2 | D77: =VLOOKUP(B77,TAB.REF!$A$3:$D$140,3) -> PC | E77: 46 | F77: =VLOOKUP(B77,TAB.REF!$A$3:$D$140,4) -> 3.63 | G77: 166.98 | H77: 4.78 | I77: 219.88
A78: 69 | B78: 227850 | C78: =VLOOKUP(B78,TAB.REF!$A$3:$D$140,2) -> CONETOR CUNHA CU ITEM 1 | D78: =VLOOKUP(B78,TAB.REF!$A$3:$D$140,3) -> PC | E78: 24 | F78: =VLOOKUP(B78,TAB.REF!$A$3:$D$140,4) -> 3.79 | G78: 90.96 | H78: 4.99 | I78: 119.76
A79: 70 | B79: 227868 | C79: =VLOOKUP(B79,TAB.REF!$A$3:$D$140,2) -> CONETOR CUNHA CU ITEM 2 | D79: =VLOOKUP(B79,TAB.REF!$A$3:$D$140,3) -> PC | E79: 24 | F79: =VLOOKUP(B79,TAB.REF!$A$3:$D$140,4) -> 2.81 | G79: 67.44 | H79: 3.7 | I79: 88.8
A80: 71 | B80: 327726 | C80: =VLOOKUP(B80,TAB.REF!$A$3:$D$140,2) -> CONETOR DE PERFURAÇÃO 10-70MM²/6-35MM² | D80: =VLOOKUP(B80,TAB.REF!$A$3:$D$140,3) -> PC | E80: 46 | F80: =VLOOKUP(B80,TAB.REF!$A$3:$D$140,4) -> 8.25 | G80: 379.5 | H80: 10.85 | I80: 499.1
A81: VALOR TOTAL MATERIAIS | F81: =ROUND(SUM(G10:G80),2) -> 15148.18 | H81: =ROUND(SUM(I10:I80),2) -> 19929.49
A82: MÃO DE OBRA DE CONSTRUÇÃO | F82: PREÇO SEM BDI | H82: PREÇO COM BDI
A83: ITEM | B83: CÓDIGO | C83: DESCRIÇÃO | D83: UN | E83: QUANT. | F83: R$.UNIT. | G83: R$. TOTAL | H83: R$.UNIT. | I83: R$. TOTAL
A84: 1 | B84: US. CONST. RDA | C84: =VLOOKUP(B84,TAB.REF!$A$2:$D$140,2) -> MÃO DE OBRA DE CONSTRUÇÃO DE REDE ELÉTRICA | D84: US | E84: 4.5 | F84: =VLOOKUP(B84,TAB.REF!$A$2:$D$140,4) -> 1538.3 | G84: =ROUND(E84*F84,2) -> 6922.35 | H84: =F84*(1+$I$6) -> 2023.79 | I84: =ROUND(H84*E84,2) -> 9107.06
A85: 2 | B85: US. CONST. RDS | C85: =VLOOKUP(B85,TAB.REF!$A$2:$D$140,2) -> MÃO DE OBRA DE CONSTRUÇÃO DE REDE SUBTERRÂNEA | D85: US | F85: =VLOOKUP(B85,TAB.REF!$A$2:$D$140,4) -> 1538.3 | G85: =ROUND(E85*F85,2) -> 0 | H85: =F85*(1+$I$6) -> 2023.79 | I85: =ROUND(H85*E85,2) -> 0
A86: VALOR TOTAL MÃO DE OBRA | F86: =SUM(G84:G85) -> 6922.35 | H86: =SUM(I84:I85) -> 9107.06
A87: RESUMO | F87: PREÇO SEM BDI | H87: PREÇO COM BDI
A88: VALOR TOTAL MATERIAIS | F88: =ROUND(F81,2) -> 15148.18 | H88: =ROUND(H81,2) -> 19929.49
A89: VALOR TOTAL MÃO DE OBRA | F89: =ROUND(F86,2) -> 6922.35 | H89: =H86 -> 9107.06
A90: VALOR TOTAL | F90: =ROUND(SUM(F88:G89),2) -> 22070.53 | H90: =SUM(H88:I89) -> 29036.55
A93: =CONCATENATE(RESUMO!B18," ",RESUMO!C18) -> Patos de Minas, 4 de fevereiro de 2020
A96: _______________________________________________________
A97: =RESUMO!B21 -> Diogo Soares Resende
A98: =RESUMO!B22 -> Eng. Eletricista
A99: =RESUMO!B23 -> CREA: 194.419D/MG

Sheet PMPATOS_004DR
A2: PLANILHA ORÇAMENTÁRIA
A3: OBJETO: PROJETOS DE MODIFICAÇÃO, EXTENSÃO DE REDE E ILUMINAÇÃO PÚBLICA
A4: OBRA: OBRAS DE EXTENSÃO E MODIFICAÇÃO DE REDE DE DISTRIBUIÇÃO DE ENERGIA ELÉTRICA COM INSTALAÇÃO E SUBSTITUIÇÃO DE LUMINÁRIAS PARA EFICIENTIZAÇÃO DA ILUMINAÇÃO PÚBLICA NO MUNICÍPIO DE PATOS DE MINAS-MG.
A5: LOCAL: | B5: PMPATOS_004DR - PRAÇA FREI ILDEU - SEBASTIÃO AMORIM
A6: RESPONSÁVEL TÉCNICO: DIOGO SOARES RESENDE | F6: CREA: | G6: =LEFT(RIGHT(RESUMO!B23,11),8) -> 194.419D | H6: ART:
A7: REFERENCIA DE PREÇOS: PREÇOS DE MERCADO | F7: DATA: | G7: =RESUMO!E5 -> 2020-02-04 | H7: BDI : | I7: =RESUMO!F5 -> 0.3156
A9: ITEM | B9: CÓDIGO | C9: DESCRIÇÃO | D9: UNID. | E9: QUANT. | F9: PREÇO SEM BDI | H9: PREÇO COM BDI
F10: UNITÁRIO | G10: TOTAL | H10: UNITÁRIO | I10: TOTAL
A11: 1 | B11: 306555 | C11: =VLOOKUP(B11,TAB.REF!$A$3:$D$140,2) -> ANEL CAIXA ZA CONCRETO PREMOLDADO | D11: =VLOOKUP(B11,TAB.REF!$A$3:$D$140,3) -> PC | E11: 6 | F11: =VLOOKUP(B11,TAB.REF!$A$3:$D$140,4) -> 51.32 | G11: =ROUND(F11*E11,2) -> 307.92 | H11: =ROUND(F11*(1+$I$7),2) -> 67.52 | I11: =ROUND(H11*E11,2) -> 405.12
A12: =A11+1 -> 2 | B12: 299560 | C12: =VLOOKUP(B12,TAB.REF!$A$3:$D$140,2) -> ARO COM TAMPA ARTICULADA CAIXA ZA | D12: =VLOOKUP(B12,TAB.REF!$A$3:$D$140,3) -> CJ | E12: 6 | F12: =VLOOKUP(B12,TAB.REF!$A$3:$D$140,4) -> 139.08 | G12: 834.48 | H12: 182.97 | I12: 1097.82
A13: =A12+1 -> 3 | B13: 2931 | C13: =VLOOKUP(B13,TAB.REF!$A$3:$D$140,2) -> CABO DE AÇO MR 1/4P (6,4MM) 7 FIOS | D13: =VLOOKUP(B13,TAB.REF!$A$3:$D$140,3) -> KG | E13: 6 | F13: =VLOOKUP(B13,TAB.REF!$A$3:$D$140,4) -> 2.76 | G13: 16.56 | H13: 3.63 | I13: 21.78
A14: 4 | B14: 225623 | C14: =VLOOKUP(B14,TAB.REF!$A$3:$D$140,2) -> CABO AL 1X 16MM² 1KV | D14: =VLOOKUP(B14,TAB.REF!$A$3:$D$140,3) -> M | E14: 486 | F14: =VLOOKUP(B14,TAB.REF!$A$3:$D$140,4) -> 1.85 | G14: 899.1 | H14: 2.43 | I14: 1180.98
A15: 5 | B15: 225896 | C15: =VLOOKUP(B15,TAB.REF!$A$3:$D$140,2) -> CABO CU 1X 2,5MM² 750V | D15: =VLOOKUP(B15,TAB.REF!$A$3:$D$140,3) -> M | E15: 396 | F15: =VLOOKUP(B15,TAB.REF!$A$3:$D$140,4) -> 1.53 | G15: 605.88 | H15: 2.01 | I15: 795.96
A16: 6 | B16: 378849 | C16: =VLOOKUP(B16,TAB.REF!$A$3:$D$140,2) -> CONECTOR,PERFURAÇÃO,AL/CU,16-70/1,5-6MM²,RDS. | D16: =VLOOKUP(B16,TAB.REF!$A$3:$D$140,3) -> PC | E16: 33 | F16: =VLOOKUP(B16,TAB.REF!$A$3:$D$140,4) -> 84.24 | G16: 2779.92 | H16: 110.83 | I16: 3657.39
A17: 7 | B17: 227769 | C17: =VLOOKUP(B17,TAB.REF!$A$3:$D$140,2) -> CONETOR FORMATO H ITEM 1 CAA 13-34MM² / 13-34MM² | D17: =VLOOKUP(B17,TAB.REF!$A$3:$D$140,3) -> PC | E17: 3 | F17: =VLOOKUP(B17,TAB.REF!$A$3:$D$140,4) -> 2.25 | G17: 6.75 | H17: 2.96 | I17: 8.88
A18: 8 | B18: 227389 | C18: =VLOOKUP(B18,TAB.REF!$A$3:$D$140,2) -> CONETOR TERMINAL COMPRESSÃO 1F AÇO 6,4MM / 21MM² | D18: =VLOOKUP(B18,TAB.REF!$A$3:$D$140,3) -> PC | E18: 3 | F18: =VLOOKUP(B18,TAB.REF!$A$3:$D$140,4) -> 2.07 | G18: 6.21 | H18: 2.72 | I18: 8.16
A19: 9 | B19: 377568 | C19: =VLOOKUP(B19,TAB.REF!$A$3:$D$140,2) -> DUTO PEAD CORRUGADO DEN 63MM | D19: =VLOOKUP(B19,TAB.REF!$A$3:$D$140,3) -> M | E19: 157 | F19: =VLOOKUP(B19,TAB.REF!$A$3:$D$140,4) -> 10.5 | G19: 1648.5 | H19: 13.81 | I19: 2168.17
A20: 10 | B20: 3954 | C20: =VLOOKUP(B20,TAB.REF!$A$3:$D$140,2) -> FITA ADESIVA ISOLANTE PVC 19MMX20M | D20: =VLOOKUP(B20,TAB.REF!$A$3:$D$140,3) -> RL | E20: 4 | F20: =VLOOKUP(B20,TAB.REF!$A$3:$D$140,4) -> 4.97 | G20: 19.88 | H20: 6.54 | I20: 26.16
A21: 11 | B21: 222539 | C21: =VLOOKUP(B21,TAB.REF!$A$3:$D$140,2) -> HASTE ATERRAMENTO 2400MM | D21: =VLOOKUP(B21,TAB.REF!$A$3:$D$140,3) -> PC | E21: 3 | F21: =VLOOKUP(B21,TAB.REF!$A$3:$D$140,4) -> 40.75 | G21: 122.25 | H21: 53.61 | I21: 160.83
A22: 12 | B22: 150 | C22: =VLOOKUP(B22,TAB.REF!$A$3:$D$140,2) -> LUMINARIA LED POTÊNCIA ATÉ 150W FLUXO LUMINOSO APROXIMADO 17.250lm EFICIENCIA LUMINOSA ≥ 115lm/w | D22: =VLOOKUP(B22,TAB.REF!$A$3:$D$140,3) -> PC | E22: 10 | F22: =VLOOKUP(B22,TAB.REF!$A$3:$D$140,4) -> 1235 | G22: 12350 | H22: 1624.77 | I22: 16247.7
A23: 13 | B23: 82586 | C23: =VLOOKUP(B23,TAB.REF!$A$3:$D$140,2) -> MASSA CALAFETAR 1KG | D23: =VLOOKUP(B23,TAB.REF!$A$3:$D$140,3) -> KG | E23: 2 | F23: =VLOOKUP(B23,TAB.REF!$A$3:$D$140,4) -> 16.78 | G23: 33.56 | H23: 22.08 | I23: 44.16
A24: 14 | B24: 214668 | C24: =VLOOKUP(B24,TAB.REF!$A$3:$D$140,2) -> POSTE CONCRETO RC IP 11,5M 150DAN | D24: =VLOOKUP(B24,TAB.REF!$A$3:$D$140,3) -> PC | E24: 5 | F24: =VLOOKUP(B24,TAB.REF!$A$3:$D$140,4) -> 1122.95 | G24: 5614.75 | H24: 1477.35 | I24: 7386.75
A25: 15 | B25: 327361 | C25: =VLOOKUP(B25,TAB.REF!$A$3:$D$140,2) -> RELÉ FOTOELÉTRICO ELETRÔNICO 105-305V | D25: =VLOOKUP(B25,TAB.REF!$A$3:$D$140,3) -> PC | E25: 11 | F25: =VLOOKUP(B25,TAB.REF!$A$3:$D$140,4) -> 19.1 | G25: 210.1 | H25: 25.13 | I25: 276.43
A26: =A25+1 -> 16 | B26: SUP3 | C26: =VLOOKUP(B26,TAB.REF!$A$3:$D$140,2) -> SUPORTE IP 3 LUMINÁRIAS POSTE RC OU AÇO 10/12/14M | D26: =VLOOKUP(B26,TAB.REF!$A$3:$D$140,3) -> PC | E26: 1 | F26: =VLOOKUP(B26,TAB.REF!$A$3:$D$140,4) -> 221 | G26: 221 | H26: =ROUND(F26*(1+$I$7),2) -> 290.75 | I26: =ROUND(H26*E26,2) -> 290.75
A27: =A26+1 -> 17 | B27: 354903 | C27: =VLOOKUP(B27,TAB.REF!$A$3:$D$140,2) -> SUPORTE IP 2 LUMINÁRIAS POSTE RC OU AÇO 10/12/14M | D27: =VLOOKUP(B27,TAB.REF!$A$3:$D$140,3) -> PC | E27: 4 | F27: =VLOOKUP(B27,TAB.REF!$A$3:$D$140,4) -> 160 | G27: =ROUND(F27*E27,2) -> 640 | H27: =ROUND(F27*(1+$I$7),2) -> 210.5 | I27: =ROUND(H27*E27,2) -> 842
A28: VALOR TOTAL MATERIAIS | F28: =SUM(G11:G27) -> 26316.86 | H28: =SUM(I11:I27) -> 34619.04
A31: MÃO DE OBRA DE CONSTRUÇÃO | F31: PREÇO SEM BDI | H31: PREÇO COM BDI
A32: ITEM | B32: CÓDIGO | C32: DESCRIÇÃO | D32: UN | E32: QUANT. | F32: R$.UNIT. | G32: R$. TOTAL | H32: R$.UNIT. | I32: R$. TOTAL
A33: 1 | B33: US. CONST. RDA | C33: =VLOOKUP(B33,TAB.REF!$A$2:$D$140,2) -> MÃO DE OBRA DE CONSTRUÇÃO DE REDE ELÉTRICA | D33: US | F33: =VLOOKUP(B33,TAB.REF!$A$2:$D$140,4) -> 1538.3 | G33: =ROUND(F33*E33,2) -> 0 | H33: =ROUND(F33*(1+$I$7),2) -> 2023.79 | I33: =ROUND(H33*E33,2) -> 0
A34: 2 | B34: US. CONST. RDS | C34: =VLOOKUP(B34,TAB.REF!$A$2:$D$140,2) -> MÃO DE OBRA DE CONSTRUÇÃO DE REDE SUBTERRÂNEA | D34: US | E34: 6.34 | F34: =VLOOKUP(B34,TAB.REF!$A$2:$D$140,4) -> 1538.3 | G34: =ROUND(F34*E34,2) -> 9752.82 | H34: =ROUND(F34*(1+$I$7),2) -> 2023.79 | I34: =ROUND(H34*E34,2) -> 12830.83
A35: VALOR TOTAL MÃO DE OBRA | F35: =SUM(G33:G34) -> 9752.82 | H35: =SUM(I33:I34) -> 12830.83
A36: RESUMO | F36: PREÇO SEM BDI | H36: PREÇO COM BDI
A37: VALOR TOTAL MATERIAIS | F37: =F28 -> 26316.86 | H37: =H28 -> 34619.04
A38: VALOR TOTAL MÃO DE OBRA | F38: =F35 -> 9752.82 | H38: =H35 -> 12830.83
A39: VALOR TOTAL | F39: =SUM(F37:G38) -> 36069.68 | H39: =SUM(H37:I38) -> 47449.87
A42: =CONCATENATE(RESUMO!B18," ",RESUMO!C18) -> Patos de Minas, 4 de fevereiro de 2020
A45: _______________________________________________________
A46: =RESUMO!B21 -> Diogo Soares Resende
A47: =RESUMO!B22 -> Eng. Eletricista
A48: =RESUMO!B23 -> CREA: 194.419D/MG

Sheet PMPATOS_005DR
A2: PLANILHA ORÇAMENTÁRIA
A3: OBJETO: PROJETOS DE MODIFICAÇÃO, EXTENSÃO DE REDE E ILUMINAÇÃO PÚBLICA
A4: OBRA: OBRAS DE EXTENSÃO E MODIFICAÇÃO DE REDE DE DISTRIBUIÇÃO DE ENERGIA ELÉTRICA COM INSTALAÇÃO E SUBSTITUIÇÃO DE LUMINÁRIAS PARA EFICIENTIZAÇÃO DA ILUMINAÇÃO PÚBLICA NO MUNICÍPIO DE PATOS DE MINAS-MG.
A5: LOCAL: | B5: PMPATOS_005DR - PRAÇA JOSÉ DE BRITO - JARDIM PELUZZO
A6: RESPONSÁVEL TÉCNICO: DIOGO SOARES RESENDE | F6: CREA: | G6: =LEFT(RIGHT(RESUMO!B23,11),8) -> 194.419D | H6: ART:
A7: REFERENCIA DE PREÇOS: PREÇOS DE MERCADO | F7: DATA: | G7: =RESUMO!E5 -> 2020-02-04 | H7: BDI : | I7: =RESUMO!F5 -> 0.3156
A9: ITEM | B9: CÓDIGO | C9: DESCRIÇÃO | D9: UNID. | E9: QUANT. | F9: PREÇO SEM BDI | H9: PREÇO COM BDI
F10: UNITÁRIO | G10: TOTAL | H10: UNITÁRIO | I10: TOTAL
A11: 1 | B11: 306555 | C11: =VLOOKUP(B11,TAB.REF!$A$3:$D$140,2) -> ANEL CAIXA ZA CONCRETO PREMOLDADO | D11: =VLOOKUP(B11,TAB.REF!$A$3:$D$140,3) -> PC | E11: 3 | F11: =VLOOKUP(B11,TAB.REF!$A$3:$D$140,4) -> 51.32 | G11: =ROUND(F11*E11,2) -> 153.96 | H11: =ROUND(F11*(1+$I$7),2) -> 67.52 | I11: =ROUND(H11*E11,2) -> 202.56
A12: =A11+1 -> 2 | B12: 299560 | C12: =VLOOKUP(B12,TAB.REF!$A$3:$D$140,2) -> ARO COM TAMPA ARTICULADA CAIXA ZA | D12: =VLOOKUP(B12,TAB.REF!$A$3:$D$140,3) -> CJ | E12: 3 | F12: =VLOOKUP(B12,TAB.REF!$A$3:$D$140,4) -> 139.08 | G12: 417.24 | H12: 182.97 | I12: 548.91
A13: =A12+1 -> 3 | B13: 2931 | C13: =VLOOKUP(B13,TAB.REF!$A$3:$D$140,2) -> CABO DE AÇO MR 1/4P (6,4MM) 7 FIOS | D13: =VLOOKUP(B13,TAB.REF!$A$3:$D$140,3) -> KG | E13: 3 | F13: =VLOOKUP(B13,TAB.REF!$A$3:$D$140,4) -> 2.76 | G13: 8.28 | H13: 3.63 | I13: 10.89
A14: 4 | B14: 225623 | C14: =VLOOKUP(B14,TAB.REF!$A$3:$D$140,2) -> CABO AL 1X 16MM² 1KV | D14: =VLOOKUP(B14,TAB.REF!$A$3:$D$140,3) -> M | E14: 351 | F14: =VLOOKUP(B14,TAB.REF!$A$3:$D$140,4) -> 1.85 | G14: 649.35 | H14: 2.43 | I14: 852.93
A15: 5 | B15: 225896 | C15: =VLOOKUP(B15,TAB.REF!$A$3:$D$140,2) -> CABO CU 1X 2,5MM² 750V | D15: =VLOOKUP(B15,TAB.REF!$A$3:$D$140,3) -> M | E15: 324 | F15: =VLOOKUP(B15,TAB.REF!$A$3:$D$140,4) -> 1.53 | G15: 495.72 | H15: 2.01 | I15: 651.24
A16: 6 | B16: 378849 | C16: =VLOOKUP(B16,TAB.REF!$A$3:$D$140,2) -> CONECTOR,PERFURAÇÃO,AL/CU,16-70/1,5-6MM²,RDS. | D16: =VLOOKUP(B16,TAB.REF!$A$3:$D$140,3) -> PC | E16: 27 | F16: =VLOOKUP(B16,TAB.REF!$A$3:$D$140,4) -> 84.24 | G16: 2274.48 | H16: 110.83 | I16: 2992.41
A17: 7 | B17: 227769 | C17: =VLOOKUP(B17,TAB.REF!$A$3:$D$140,2) -> CONETOR FORMATO H ITEM 1 CAA 13-34MM² / 13-34MM² | D17: =VLOOKUP(B17,TAB.REF!$A$3:$D$140,3) -> PC | E17: 1 | F17: =VLOOKUP(B17,TAB.REF!$A$3:$D$140,4) -> 2.25 | G17: 2.25 | H17: 2.96 | I17: 2.96
A18: 8 | B18: 227389 | C18: =VLOOKUP(B18,TAB.REF!$A$3:$D$140,2) -> CONETOR TERMINAL COMPRESSÃO 1F AÇO 6,4MM / 21MM² | D18: =VLOOKUP(B18,TAB.REF!$A$3:$D$140,3) -> PC | E18: 2 | F18: =VLOOKUP(B18,TAB.REF!$A$3:$D$140,4) -> 2.07 | G18: 4.14 | H18: 2.72 | I18: 5.44
A19: 9 | B19: 377568 | C19: =VLOOKUP(B19,TAB.REF!$A$3:$D$140,2) -> DUTO PEAD CORRUGADO DEN 63MM | D19: =VLOOKUP(B19,TAB.REF!$A$3:$D$140,3) -> M | E19: 73 | F19: =VLOOKUP(B19,TAB.REF!$A$3:$D$140,4) -> 10.5 | G19: 766.5 | H19: 13.81 | I19: 1008.13
A20: 10 | B20: 3954 | C20: =VLOOKUP(B20,TAB.REF!$A$3:$D$140,2) -> FITA ADESIVA ISOLANTE PVC 19MMX20M | D20: =VLOOKUP(B20,TAB.REF!$A$3:$D$140,3) -> RL | E20: 3 | F20: =VLOOKUP(B20,TAB.REF!$A$3:$D$140,4) -> 4.97 | G20: 14.91 | H20: 6.54 | I20: 19.62
A21: 11 | B21: 222539 | C21: =VLOOKUP(B21,TAB.REF!$A$3:$D$140,2) -> HASTE ATERRAMENTO 2400MM | D21: =VLOOKUP(B21,TAB.REF!$A$3:$D$140,3) -> PC | E21: 2 | F21: =VLOOKUP(B21,TAB.REF!$A$3:$D$140,4) -> 40.75 | G21: 81.5 | H21: 53.61 | I21: 107.22
A22: 12 | B22: 114 | C22: =VLOOKUP(B22,TAB.REF!$A$3:$D$140,2) -> LUMINARIA LED POTÊNCIA ATÉ 114W FLUXO LUMINOSO APROXIMADO 13.100lm EFICIENCIA LUMINOSA ≥ 115lm/w | D22: =VLOOKUP(B22,TAB.REF!$A$3:$D$140,3) -> PC | E22: 9 | F22: =VLOOKUP(B22,TAB.REF!$A$3:$D$140,4) -> 880.15 | G22: 7921.35 | H22: 1157.93 | I22: 10421.37
A23: 13 | B23: 82586 | C23: =VLOOKUP(B23,TAB.REF!$A$3:$D$140,2) -> MASSA CALAFETAR 1KG | D23: =VLOOKUP(B23,TAB.REF!$A$3:$D$140,3) -> KG | E23: 1 | F23: =VLOOKUP(B23,TAB.REF!$A$3:$D$140,4) -> 16.78 | G23: 16.78 | H23: 22.08 | I23: 22.08
A24: 14 | B24: 214668 | C24: =VLOOKUP(B24,TAB.REF!$A$3:$D$140,2) -> POSTE CONCRETO RC IP 11,5M 150DAN | D24: =VLOOKUP(B24,TAB.REF!$A$3:$D$140,3) -> PC | E24: 3 | F24: =VLOOKUP(B24,TAB.REF!$A$3:$D$140,4) -> 1122.95 | G24: 3368.85 | H24: 1477.35 | I24: 4432.05
A25: 15 | B25: 327361 | C25: =VLOOKUP(B25,TAB.REF!$A$3:$D$140,2) -> RELÉ FOTOELÉTRICO ELETRÔNICO 105-305V | D25: =VLOOKUP(B25,TAB.REF!$A$3:$D$140,3) -> PC | E25: 9 | F25: =VLOOKUP(B25,TAB.REF!$A$3:$D$140,4) -> 19.1 | G25: 171.9 | H25: 25.13 | I25: 226.17
A26: 16 | B26: SINAPI34623 | C26: =VLOOKUP(B26,TAB.REF!$A$3:$D$140,2) -> DISJUNTOR TIPO DIN/IEC, BIPOLAR 40A | D26: =VLOOKUP(B26,TAB.REF!$A$3:$D$140,3) -> PC | E26: 1 | F26: =VLOOKUP(B26,TAB.REF!$A$3:$D$140,4) -> 51.47 | G26: 51.47 | H26: 67.71 | I26: 67.71
A27: 17 | B27: 214668 | C27: =VLOOKUP(B27,TAB.REF!$A$3:$D$140,2) -> POSTE CONCRETO RC IP 11,5M 150DAN | D27: =VLOOKUP(B27,TAB.REF!$A$3:$D$140,3) -> PC | E27: 3 | F27: =VLOOKUP(B27,TAB.REF!$A$3:$D$140,4) -> 1122.95 | G27: =ROUND(F27*E27,2) -> 3368.85 | H27: =ROUND(F27*(1+$I$7),2) -> 1477.35 | I27: =ROUND(H27*E27,2) -> 4432.05
A28: 18 | B28: SUP3 | C28: =VLOOKUP(B28,TAB.REF!$A$3:$D$140,2) -> SUPORTE IP 3 LUMINÁRIAS POSTE RC OU AÇO 10/12/14M | D28: =VLOOKUP(B28,TAB.REF!$A$3:$D$140,3) -> PC | E28: 3 | F28: =VLOOKUP(B28,TAB.REF!$A$3:$D$140,4) -> 221 | G28: 663 | H28: 290.75 | I28: 872.25
A29: VALOR TOTAL MATERIAIS | F29: =SUM(G11:G28) -> 20430.53 | H29: =SUM(I11:I28) -> 26875.99
A32: MÃO DE OBRA DE CONSTRUÇÃO | F32: PREÇO SEM BDI | H32: PREÇO COM BDI
A33: ITEM | B33: CÓDIGO | C33: DESCRIÇÃO | D33: UN | E33: QUANT. | F33: R$.UNIT. | G33: R$. TOTAL | H33: R$.UNIT. | I33: R$. TOTAL
A34: 1 | B34: US. CONST. RDA | C34: =VLOOKUP(B34,TAB.REF!$A$2:$D$140,2) -> MÃO DE OBRA DE CONSTRUÇÃO DE REDE ELÉTRICA | D34: US | F34: =VLOOKUP(B34,TAB.REF!$A$2:$D$140,4) -> 1538.3 | G34: =ROUND(F34*E34,2) -> 0 | H34: =ROUND(F34*(1+$I$7),2) -> 2023.79 | I34: =ROUND(H34*E34,2) -> 0
A35: 2 | B35: US. CONST. RDS | C35: =VLOOKUP(B35,TAB.REF!$A$2:$D$140,2) -> MÃO DE OBRA DE CONSTRUÇÃO DE REDE SUBTERRÂNEA | D35: US | E35: 10.85 | F35: =VLOOKUP(B35,TAB.REF!$A$2:$D$140,4) -> 1538.3 | G35: =ROUND(F35*E35,2) -> 16690.56 | H35: =ROUND(F35*(1+$I$7),2) -> 2023.79 | I35: =ROUND(H35*E35,2) -> 21958.12
A36: VALOR TOTAL MÃO DE OBRA | F36: =SUM(G34:G35) -> 16690.56 | H36: =SUM(I34:I35) -> 21958.12
A37: RESUMO | F37: PREÇO SEM BDI | H37: PREÇO COM BDI
A38: VALOR TOTAL MATERIAIS | F38: =F29 -> 20430.53 | H38: =H29 -> 26875.99
A39: VALOR TOTAL MÃO DE OBRA | F39: =F36 -> 16690.56 | H39: =H36 -> 21958.12
A40: VALOR TOTAL | F40: =SUM(F38:G39) -> 37121.09 | H40: =SUM(H38:I39) -> 48834.11
A43: =CONCATENATE(RESUMO!B18," ",RESUMO!C18) -> Patos de Minas, 4 de fevereiro de 2020
A46: _______________________________________________________
A47: =RESUMO!B21 -> Diogo Soares Resende
A48: =RESUMO!B22 -> Eng. Eletricista
A49: =RESUMO!B23 -> CREA: 194.419D/MG
